Business Unit Description,Expense Code,Expense Code Description,GL Date,Document No.,Invoice No.,Invoiced Value,Supplier Name,Address Book No.,Proclass Details Level 1,Thomson Classification Description
CARE PROCEEDINGS (LEGAL FEES) ,8470,LEGAL FEES                    ,03/04/2013,3434267,ERS INVOICE81567         ,"1,755.00",NAVJOT AHLUAWALIA PARTNERSHIP LIMITED   ,424561,Medical ,PSYCHIATRISTS                 
FAMILY & COMM MANAGEMENT      ,8440,FEE EXPENSES                  ,03/04/2013,3434270,ERS INVOICE81570         ,"1,500.00",PJ TASTE LLP                            ,525816,Catering,CATERERS                      
NORFOLK (HERITAGE) PARK (CITY),8010,EQUIPMENT PURCHASE AND REPAIR ,03/04/2013,3434271,ERS INVOICE81572         ,"3,000.00",FRIENDS OF NORFOLK PARK                 ,404792,Unclassified Non Trade,CHARITIES & VOLUNTARY ORGANISA
COMMUNITY SUPPRT SERVICE FORUM,8370,PRINTING                      ,03/04/2013,3434276,ERS INVOICE81581         ,270.00,CATHEDRAL ARCHER PROJECT LTD            ,479884,Unclassified Non Trade,CHARITIES & VOLUNTARY ORGANISA
NORFOLK (HERITAGE) PARK (CITY),8010,EQUIPMENT PURCHASE AND REPAIR ,03/04/2013,3434279,ERS INVOICE81585         ,700.00,TRUDI PATIENT                           ,503822,Leisure Services,ENTERTAINERS                  
FAMILY & COMM MANAGEMENT      ,9120,OTHER AGENCIES                ,03/04/2013,3434280,ERS INVOICE81586         ,750.00,MELLOR WARE LTD                         ,566303,Furniture,SOFT FURNISHINGS - RETAIL     
FAMILY & COMM MANAGEMENT      ,9120,OTHER AGENCIES                ,03/04/2013,3434281,ERS INVOICE81587         ,750.00,PJ TASTE LLP                            ,525816,Catering,CATERERS                      
FAMILY & COMM MANAGEMENT      ,9120,OTHER AGENCIES                ,03/04/2013,3434282,ERS INVOICE81588         ,"1,500.00",BURNGREAVE MESSENGER LTD                ,301418,Education,NEWSPAPER & MAGAZINE PUBLISHER
COM.UNITY                     ,9120,OTHER AGENCIES                ,03/04/2013,3424720,INV000394                ,"7,255.96",SHORTBROOK PRIMARY SCHOOL - LADYBIRDS   ,537449,Unclassified Non Trade,SCHOOLS - LOCAL AUTHORITY     
COM.UNITY                     ,9120,OTHER AGENCIES                ,03/04/2013,3424721,INV000396                ,"5,865.14",SHORTBROOK PRIMARY SCHOOL - LADYBIRDS   ,537449,Unclassified Non Trade,SCHOOLS - LOCAL AUTHORITY     
COM.UNITY                     ,9120,OTHER AGENCIES                ,03/04/2013,3424722,INV000397                ,"5,865.14",SHORTBROOK PRIMARY SCHOOL - LADYBIRDS   ,537449,Unclassified Non Trade,SCHOOLS - LOCAL AUTHORITY     
COM.UNITY                     ,9120,OTHER AGENCIES                ,03/04/2013,3424723,INV000398                ,"1,054.76",SHORTBROOK PRIMARY SCHOOL - LADYBIRDS   ,537449,Unclassified Non Trade,SCHOOLS - LOCAL AUTHORITY     
COM.UNITY                     ,9120,OTHER AGENCIES                ,03/04/2013,3424724,INV000395                ,"5,865.14",SHORTBROOK PRIMARY SCHOOL - LADYBIRDS   ,537449,Unclassified Non Trade,SCHOOLS - LOCAL AUTHORITY     
FUTURE PROOF NEETS 14 - 25    ,9120,OTHER AGENCIES                ,03/04/2013,3432112,363,610.20,A MIND APART THEATRE COMPANY LTD        ,508180,Education,DRAMA SCHOOLS                 
FUTURE PROOF NEETS 14 - 25    ,9120,OTHER AGENCIES                ,03/04/2013,3432113,715,"2,284.70",THE SOURCE AT MEADOWHALL                ,350485,Human Resources,TRAINING CENTRES              
RED TAPE CENTRAL              ,6030,REPAIRS AND MTCE - RESPONSIVE ,03/04/2013,3432114,224/13/0081364           ,435.29,SIEMENS FINANCIAL SERVICES LIMITED      ,297385,Financial Services,LEASING SERVICES              
DISADVANTAGED AREA FUNDING    ,8440,FEE EXPENSES                  ,03/04/2013,3432115,SASI00475                ,443.58,SHEFFIELD HALLAM UNIVERSITY             ,301311,Unclassified Non Trade,UNIVERSITIES & MEDICAL SCHOOLS
14 - 19 PROVISION             ,8440,FEE EXPENSES                  ,03/04/2013,3433337,13/S98                   ,450.00,LEACAN 14+ LTD                          ,440500,Unclassified Non Trade,CHARITIES & VOLUNTARY ORGANISA
RED TAPE CENTRAL              ,8440,FEE EXPENSES                  ,03/04/2013,3433344,PNS121866                ,"1,826.13",PROTOCOL NATIONAL LTD                   ,570558,Education,EDUCATIONAL SERVICES          
FUTURE PROOF NEETS 14 - 25    ,9120,OTHER AGENCIES                ,03/04/2013,3433345,79,"2,264.60",IN2CHANGE SOUTH YORKS LTD               ,558793,Unclassified Non Trade,CHARITIES & VOLUNTARY ORGANISA
LOCALITY 1 MANAGEMENT+O/HEADS ,8050,FURNITURE PURCHASES           ,03/04/2013,3433381,4733051RI                ,753.28,ARGOS LTD                               ,426032,Unclassified Trade,CATALOGUE SHOWROOMS           
CARE PROCEEDINGS (LEGAL FEES) ,8470,LEGAL FEES                    ,03/04/2013,3433943,302.08.12                ,380.75,DOUGLAS H SAVAGE                        ,337719,Unclassified Trade,DETECTIVE AGENCIES            
FAMILY & COMM MANAGEMENT      ,8440,FEE EXPENSES                  ,03/04/2013,3434044,I772229                  ,"1,110.79",JIGSAW SYSTEMS LTD                      ,206039,ICT,COMPUTER SYSTEMS & SOFTWARE (S
LOWFIELD                      ,9120,OTHER AGENCIES                ,03/04/2013,3434082,SCCUMIXBUSRATES/130314   ,"1,884.07",FOOTBALL UNITES RACISM DIVIDES          ,297507,Unclassified Non Trade,YOUTH ORGANISATIONS & CENTRES 
LOWFIELD                      ,9120,OTHER AGENCIES                ,03/04/2013,3434092,SCCUMIXITCOSTS/130315    ,"4,998.66",FOOTBALL UNITES RACISM DIVIDES          ,297507,Unclassified Non Trade,YOUTH ORGANISATIONS & CENTRES 
LOWFIELD                      ,9120,OTHER AGENCIES                ,03/04/2013,3434093,SCCUMIXFITOUT/130202     ,"1,794.87",FOOTBALL UNITES RACISM DIVIDES          ,297507,Unclassified Non Trade,YOUTH ORGANISATIONS & CENTRES 
NATIONAL ELECTIONS            ,6280,HIRE OF PREMISES              ,03/04/2013,3434095,MA52                     ,300.00,JOHN HEATH & SONS                       ,512922,Environmental Services,FUNERAL DIRECTORS             
LOCALITY 2 MANAGEMENT+O/HEADS ,8010,EQUIPMENT PURCHASE AND REPAIR ,03/04/2013,3434106,INV/50247578             ,"3,662.73",TUNSTALL HEALTHCARE (UK) LIMITED        ,209178,ICT,TELECOMMUNICATIONS EQUIPMENT &
CARE PROCEEDINGS (LEGAL FEES) ,8470,LEGAL FEES                    ,04/04/2013,3435070,ERS INVOICE81592         ,358.70,DR TAYLOR                               ,579845,Medical ,DOCTORS                       
FAMILY & COMM MANAGEMENT      ,9120,OTHER AGENCIES                ,04/04/2013,3435080,ERS INVOICE81602         ,440.00,REDACTED PERSONAL DATA,576340,Unclassified Non Trade,OUT OF SCOPE FOR SIC MONITORIN
PRECEPTS & LEVIES             ,9130,PTA LEVY                      ,04/04/2013,3435089,ERS INVOICE81611         ,"2,956,968.00",S YORKS INTEGRATED TRANSPORT AUTHORITY  ,511634,Unclassified Non Trade,LOCAL GOVERNMENT              
PARENT REIMBURSEMENTS         ,7060,EXTERNAL VEHICLE HIRE         ,04/04/2013,3435090,ERS INVOICE81612         ,253.44,REDACTED PERSONAL DATA,501295,Unclassified Non Trade,OUT OF SCOPE FOR SIC MONITORIN
CUSTOMER FIRST PROGRAMME      ,5750,TRAINING EXPENDITURE          ,04/04/2013,3435116,ERS INVOICE81638         ,900.00,STUART J PYBUS                          ,557974,Human Resources,TRAINING SERVICES             
OUTDOOR EDUCATION             ,8440,FEE EXPENSES                  ,04/04/2013,3435117,ERS INVOICE81639         ,300.00,PETER D MORTON                          ,517818,Leisure Services,OUTDOOR PURSUIT ORGANISERS & E
HULL - HUMBER SUB REGION HAL  ,1194,OTHER FEES                    ,04/04/2013,3435118,ERS INVOICE81640         ,590.00,J PECK BUILDERS                         ,557099,Unclassified Non Trade,OUT OF SCOPE FOR SIC MONITORIN
HULL - HUMBER SUB REGION HAL  ,1194,OTHER FEES                    ,04/04/2013,3435120,ERS INVOICE81642         ,"2,666.30",COOPERMAN                               ,568688,Unclassified Non Trade,OUT OF SCOPE FOR SIC MONITORIN
HULL - HUMBER SUB REGION HAL  ,1194,OTHER FEES                    ,04/04/2013,3435121,ERS INVOICE81643         ,850.00,WHITE KNIGHT HOME IMPROVEMENTS          ,577041,Unclassified Non Trade,OUT OF SCOPE FOR SIC MONITORIN
HULL - HUMBER SUB REGION HAL  ,1194,OTHER FEES                    ,04/04/2013,3435122,ERS INVOICE81644         ,257.20,ALAN WOOD & PARTNERS                    ,568189,Unclassified Non Trade,OUT OF SCOPE FOR SIC MONITORIN
HULL - HUMBER SUB REGION HAL  ,1194,OTHER FEES                    ,04/04/2013,3435123,ERS INVOICE81645         ,"2,383.31",HUMBERSIDE ARTEXING & BUILDING SERVICES ,581468,Unclassified Non Trade,OUT OF SCOPE FOR SIC MONITORIN
HULL - HUMBER SUB REGION HAL  ,1194,OTHER FEES                    ,04/04/2013,3435124,ERS INVOICE81646         ,"4,076.28",KENTBUILD LTD                           ,552626,Unclassified Non Trade,OUT OF SCOPE FOR SIC MONITORIN
HULL - HUMBER SUB REGION HAL  ,1194,OTHER FEES                    ,04/04/2013,3435129,ERS INVOICE81651         ,"3,650.00",WINDOWS DIRECT                          ,574848,Unclassified Non Trade,OUT OF SCOPE FOR SIC MONITORIN
HULL - HUMBER SUB REGION HAL  ,1194,OTHER FEES                    ,04/04/2013,3435131,ERS INVOICE81653         ,299.00,WAKE SMITH & TOFIELDS SOLICITORS        ,209393,Legal Services,SOLICITORS                    
BRADFORD RF FUNDS HAL         ,1194,OTHER FEES                    ,04/04/2013,3435132,ERS INVOICE81654         ,299.00,WAKE SMITH & TOFIELDS SOLICITORS        ,209393,Legal Services,SOLICITORS                    
BRADFORD RF FUNDS HAL         ,1194,OTHER FEES                    ,04/04/2013,3435133,ERS INVOICE81655         ,299.00,WAKE SMITH & TOFIELDS SOLICITORS        ,209393,Legal Services,SOLICITORS                    
YORK - NY SUB REGION HAL      ,1194,OTHER FEES                    ,04/04/2013,3435134,ERS INVOICE81656         ,299.00,WAKE SMITH & TOFIELDS SOLICITORS        ,209393,Legal Services,SOLICITORS                    
CARE PROCEEDINGS (LEGAL FEES) ,8470,LEGAL FEES                    ,04/04/2013,3435347,ERS INVOICE81661         ,600.00,MISS N G ERLEN                          ,465151,Legal Services,BARRISTERS                    
SWAN COMMISSIONED             ,1143,COMPENSATION                  ,04/04/2013,3435348,ERS INVOICE81662         ,"4,700.00",REDACTED PERSONAL DATA,575475,Unclassified Non Trade,OUT OF SCOPE FOR SIC MONITORIN
PARKHILL DEMOLITION SHM (STH) ,1143,COMPENSATION                  ,04/04/2013,3435349,ERS INVOICE81663         ,"4,700.00",REDACTED PERSONAL DATA,580838,Unclassified Non Trade,OUT OF SCOPE FOR SIC MONITORIN
HOME CARE - GENERAL           ,8010,EQUIPMENT PURCHASE AND REPAIR ,04/04/2013,3419190,918775911,288.00,ARCO LIMITED                            ,493127,Clothing,WORKWEAR & PROTECTIVE EQUIPMEN
HOME CARE - GENERAL           ,8010,EQUIPMENT PURCHASE AND REPAIR ,04/04/2013,3419277,918775910,"3,357.00",ARCO LIMITED                            ,493127,Clothing,WORKWEAR & PROTECTIVE EQUIPMEN
HOME CARE - GENERAL           ,8010,EQUIPMENT PURCHASE AND REPAIR ,04/04/2013,3420401,918803496,"2,583.00",ARCO LIMITED                            ,493127,Clothing,WORKWEAR & PROTECTIVE EQUIPMEN
MANAGEMENT & SUPPORT SERVICES ,8390,STATIONERY                    ,04/04/2013,3421057,SINV00246257             ,620.14,R A ROBERTS (OFFICE EQUIPMENT) LTD      ,207777,Furniture,OFFICE FURNITURE & EQUIPMENT  
ALDINE HOUSE                  ,6030,REPAIRS AND MTCE - RESPONSIVE ,04/04/2013,3421534,210771368,302.76,MITIE                                   ,370338,Facilities Management,FACILITIES MANAGEMENT         
ALDINE HOUSE                  ,6030,REPAIRS AND MTCE - RESPONSIVE ,04/04/2013,3421788,220187138,"1,219.00",MITIE                                   ,370338,Facilities Management,FACILITIES MANAGEMENT         
ALDINE HOUSE                  ,6030,REPAIRS AND MTCE - RESPONSIVE ,04/04/2013,3421932,210771379,449.20,MITIE                                   ,370338,Facilities Management,FACILITIES MANAGEMENT         
ALDINE HOUSE                  ,6030,REPAIRS AND MTCE - RESPONSIVE ,04/04/2013,3422169,210771382,"2,306.10",MITIE                                   ,370338,Facilities Management,FACILITIES MANAGEMENT         
ALDINE HOUSE                  ,6030,REPAIRS AND MTCE - RESPONSIVE ,04/04/2013,3422211,210771392,363.38,MITIE                                   ,370338,Facilities Management,FACILITIES MANAGEMENT         
ALDINE HOUSE                  ,6030,REPAIRS AND MTCE - RESPONSIVE ,04/04/2013,3422213,210771170,987.15,MITIE                                   ,370338,Facilities Management,FACILITIES MANAGEMENT         
HR & ORG DEVELOPMENT          ,8460,CONSULTANTS FEES              ,04/04/2013,3422787,94353,"3,890.25",HEALTH MANAGEMENT LTD                   ,531359,Medical ,OCCUPATIONAL HEALTH           
EAST AREA ESTATE OFFICERS     ,8010,EQUIPMENT PURCHASE AND REPAIR ,04/04/2013,3424319,8753,"3,448.00",OVERTON UK LTD.                         ,394279,Cleaning and Janitorial,"VACUUM CLEANERS, INDUSTRIAL & "
RANGERS (MANAGER)             ,5750,TRAINING EXPENDITURE          ,04/04/2013,3424890,AS00229SP                ,540.00,ACTIVE LEARNING YORKSHIRE LTD           ,524629,Leisure Services,SPORTS COACHING & INSTRUCTION 
ALDINE HOUSE                  ,6030,REPAIRS AND MTCE - RESPONSIVE ,04/04/2013,3425810,210764517,423.62,MITIE                                   ,370338,Facilities Management,FACILITIES MANAGEMENT         
WINTER GARDEN                 ,6270,SERVICE / PFI UNITARY CHARGE  ,04/04/2013,3425863,7820-369269              ,830.00,GVA GRIMLEY                             ,516199,Consultancy,SURVEYORS & VALUERS           
MANAGEMENT & SUPPORT SERVICES ,5750,TRAINING EXPENDITURE          ,04/04/2013,3426701,4090041,"1,485.00",CENTRAL LAW TRAINING LTD                ,203817,Legal Services,LEGAL SERVICES                
GREEN SPACE FOR HEALTH MANAGER,8460,CONSULTANTS FEES              ,04/04/2013,3427666,3859,"4,519.50","KNIGHT, KAVANAGH & PAGE                 ",568426,Consultancy,BUSINESS & MANAGEMENT CONSULTA
PUBLIC RIGHTS OF WAY          ,1173,INFR MAIN CONTRACT            ,04/04/2013,3428074,51097,"10,122.00",D FROST PLANT HIRE                      ,501645,Vehicles Not Buses,PLANT & MACHINERY HIRE & LEASI
MANAGEMENT & SUPPORT SERVICES ,8570,POSTAGE & DELIVERY            ,04/04/2013,3428176,1108017357,255.60,ROYAL MAIL GROUP LTD                    ,384080,Mail Services,DELIVERY SERVICES             
OUT OF HOURS SERVICE          ,8550,OTHER SERVICES                ,04/04/2013,3428365,42406,"24,981.25",SOUTH YORKSHIRE POLICE                  ,346385,Unclassified Non Trade,POLICE                        
OUTDOOR EDUCATION             ,6220,RATES                         ,04/04/2013,3429388,70000931,"12,010.50",DERBYSHIRE DALES DISTRICT COUNCIL       ,325291,Unclassified Non Trade,LOCAL GOVERNMENT              
OUTDOOR EDUCATION             ,6220,RATES                         ,04/04/2013,3429392,30003796,"1,200.51",DERBYSHIRE DALES DISTRICT COUNCIL       ,325291,Unclassified Non Trade,LOCAL GOVERNMENT              
NW AREA ESTATE OFFICERS       ,8010,EQUIPMENT PURCHASE AND REPAIR ,04/04/2013,3429640,8989,600.00,SMARTLIFT BULK PACKAGING LIMITED        ,490589,Unclassified Trade,PACKAGING MATERIALS MNFRS & SU
NORBURY                       ,8010,EQUIPMENT PURCHASE AND REPAIR ,04/04/2013,3429665,931002,289.00,ARJOHUNTLEIGH UK                        ,203033,Medical ,HOSPITAL EQUIPMENT & SUPPLIES 
RESOURCES MANAGER             ,5750,TRAINING EXPENDITURE          ,04/04/2013,3431591,347884,495.00,YORKSHIRE AMBULANCE SERVICE NHS TRUST   ,329215,Unclassified Non Trade,HOSPITALS                     
SPORTS EVENTS                 ,8250,MARKETING EXPENSES            ,04/04/2013,3431702,5147,402.50,UK ATHLETICS LTD                        ,580525,Leisure Services,"CLUBS & ASSOCIATIONS - SOCIAL,"
FURNISHED ACCOMMODATION       ,8050,SOFT FURNISHINGS              ,04/04/2013,3431781,15990,"1,577.00",ALLEN UPHOLSTERY                        ,295763,Furniture,FURNITURE MNFRS - HOME & OFFIC
HURLFIELD                     ,8060,MATERIALS AND SUPPLIES GENERAL,04/04/2013,3431810,1800003401,303.73,DUNELM FABRICS                          ,408889,Furniture,SOFT FURNISHINGS - RETAIL     
HEALTH & SAFETY + LICENSING   ,8010,EQUIPMENT PURCHASE AND REPAIR ,04/04/2013,3431952,343163,408.00,KANE INTERNATIONAL LTD                  ,579998,Unclassified Trade,Electronic Equipment - Mnfrs & Assemblers
NORBURY                       ,8060,MATERIALS AND SUPPLIES GENERAL,04/04/2013,3431977,256161937,250.66,YORKSHIRE PURCHASING ORGANISATION       ,295997,Unclassified Trade,PURCHASING SERVICES           
EXTERNAL PROJECTS             ,8440,FEE EXPENSES                  ,04/04/2013,3431987,1800090807,"2,000.00",THE UNIVERSITY OF SHEFFIELD             ,316392,Unclassified Non Trade,UNIVERSITIES & MEDICAL SCHOOLS
FURNISHED ACCOMMODATION       ,8050,SOFT FURNISHINGS              ,04/04/2013,3432013,15993,504.00,ALLEN UPHOLSTERY                        ,295763,Furniture,FURNITURE MNFRS - HOME & OFFIC
FURNISHED ACCOMMODATION       ,8050,SOFT FURNISHINGS              ,04/04/2013,3432021,15992,432.00,ALLEN UPHOLSTERY                        ,295763,Furniture,FURNITURE MNFRS - HOME & OFFIC
COMMUNITY ENGAGE & GOVERNANCE ,9120,OTHER AGENCIES                ,04/04/2013,3432035,997985,"1,148.34",DESIGN & PRINT SERVICE (SHEFFIELD HOMES),387617,Facilities Management,PRINTERS                      
EXECUTOR SERVICES             ,8090,BEREAVEMENT SUPPLIES          ,04/04/2013,3432455,F49960-04968             ,415.00,SHEFFIELD CO-OPERATIVE FUNERALCARE      ,203171,Environmental Services,FUNERAL SERVICES              
CENTRAL AREA                  ,8010,EQUIPMENT PURCHASE AND REPAIR ,04/04/2013,3432482,116608,928.00,BDF SOLUTIONS LTD                       ,433921,ICT,DICTATION MACHINES & SYSTEMS  
ALDINE HOUSE                  ,6030,REPAIRS AND MTCE - RESPONSIVE ,04/04/2013,3432504,210775164,423.62,MITIE                                   ,370338,Facilities Management,FACILITIES MANAGEMENT         
OTHER LOCAL AUTHORITY PLACEMEN,9120,OTHER AGENCIES                ,04/04/2013,3432571,1857670,306.72,COVENTRY CITY COUNCIL                   ,329395,Unclassified Non Trade,LOCAL GOVERNMENT              
OTHER LOCAL AUTHORITY PLACEMEN,9050,OTHER LOCAL AUTHORITIES       ,04/04/2013,3432572,227023,"2,309.42",CUMBRIA COUNTY COUNCIL                  ,480296,Unclassified Non Trade,LOCAL GOVERNMENT              
SPORTS EVENTS                 ,8440,FEE EXPENSES                  ,04/04/2013,3432582,ASAINV42785              ,"7,500.00",THE ASA                                 ,525038,Unclassified Non Trade,NATIONAL ASSOCIATIONS         
CREATIVE SERVICES             ,9120,OTHER AGENCIES                ,04/04/2013,3432976,769526-S                 ,"2,215.50",INTOPRINT (UK) LIMITED                  ,319560,Facilities Management,PRINTERS                      
RANGERS (MANAGER)             ,8440,FEE EXPENSES                  ,04/04/2013,3433030,WEBINV002579             ,291.52,LANTRA AWARDS                           ,206353,Education,EXAMINATION BOARDS            
RANGERS (MANAGER)             ,8440,FEE EXPENSES                  ,04/04/2013,3433057,WEBINV001999             ,266.09,LANTRA AWARDS                           ,206353,Education,EXAMINATION BOARDS            
MARKETING                     ,8390,STATIONERY                    ,04/04/2013,3433063,8066,"1,391.00",KITLOCKER.COM                           ,438398,Sports & Playground,SPORTS GOODS SHOPS            
MINOR ADAPTATIONS             ,6020,REPAIRS AND MTCE - PROGRAMMED ,04/04/2013,3433075,307,799.00,NEIL CONSTRUCTION                       ,453315,Construction,BUILDING SERVICES             
SCHOOLS LIBRARY SERVICE       ,8080,LIBRARY MATERIALS             ,04/04/2013,3433086,1697675,818.10,BERTRAM LIBRARY SERVICES                ,418929,Education,EDUCATIONAL EQUIPMENT & SUPPLI
BOOKS & OTHER MATERIALS       ,8080,LIBRARY MATERIALS             ,04/04/2013,3433090,91307538765,"4,300.00",WAKEFIELD MDC                           ,301741,Unclassified Non Trade,LOCAL GOVERNMENT              
BOOKS & OTHER MATERIALS       ,8080,LIBRARY MATERIALS             ,04/04/2013,3433093,110463,580.00,COBWEB INFORMATION LTD                  ,385975,Human Resources,BUSINESS INFORMATION SERVICES 
MINOR ADAPTATIONS             ,6020,REPAIRS AND MTCE - PROGRAMMED ,04/04/2013,3433094,306,297.00,NEIL CONSTRUCTION                       ,453315,Construction,BUILDING SERVICES             
BOOKS & OTHER MATERIALS       ,8080,LIBRARY MATERIALS             ,04/04/2013,3433097,5157,288.75,BOOKS ASIA                              ,315708,Education,BOOKSELLERS                   
CREATIVE SERVICES             ,9120,OTHER AGENCIES                ,04/04/2013,3433136,INV158807                ,596.00,A PINDER LTD                            ,202627,Facilities Management,COPYING & DUPLICATING SERVICES
CREATIVE SERVICES             ,9120,OTHER AGENCIES                ,04/04/2013,3433137,INV158808                ,386.40,A PINDER LTD                            ,202627,Facilities Management,COPYING & DUPLICATING SERVICES
CREATIVE SERVICES             ,9120,OTHER AGENCIES                ,04/04/2013,3433146,INV158809                ,446.40,A PINDER LTD                            ,202627,Facilities Management,COPYING & DUPLICATING SERVICES
CREATIVE SERVICES             ,9120,OTHER AGENCIES                ,04/04/2013,3433147,INV158810                ,446.40,A PINDER LTD                            ,202627,Facilities Management,COPYING & DUPLICATING SERVICES
PURCHASING & PAYMENTS TEAM    ,8370,PRINTING                      ,04/04/2013,3433169,998253,"1,000.00",DESIGN & PRINT SERVICE (SHEFFIELD HOMES),387617,Facilities Management,PRINTERS                      
ACCES2NATURE                  ,8260,WOODLAND DEVELOPMENT EXPENSES ,04/04/2013,3433177,10/5206/57EC/40801       ,"3,672.00",SHEFFIELD WILDLIFE TRUST                ,270716,Unclassified Non Trade,CHARITIES & VOLUNTARY ORGANISA
ACCES2NATURE                  ,8260,WOODLAND DEVELOPMENT EXPENSES ,04/04/2013,3433178,10/5213/57EC/40801       ,"2,937.00",SHEFFIELD WILDLIFE TRUST                ,270716,Unclassified Non Trade,CHARITIES & VOLUNTARY ORGANISA
ECCLESALL WOODS SAWMILL SITE  ,8260,WOODLAND DEVELOPMENT EXPENSES ,04/04/2013,3433179,10/5214/57EC/40310       ,"4,980.00",SHEFFIELD WILDLIFE TRUST                ,270716,Unclassified Non Trade,CHARITIES & VOLUNTARY ORGANISA
CREATIVE SERVICES             ,9120,OTHER AGENCIES                ,04/04/2013,3433196,1800099126,"3,219.87",BAUER RADIO LTD                         ,366884,Unclassified Trade,RADIO & TELEVISION STATIONS   
CREATIVE SERVICES             ,9120,OTHER AGENCIES                ,04/04/2013,3433197,1800099126,"1,100.00",BAUER RADIO LTD                         ,366884,Unclassified Trade,RADIO & TELEVISION STATIONS   
CREATIVE SERVICES             ,9120,OTHER AGENCIES                ,04/04/2013,3433199,174185,"6,303.50",REAL RADIO YORKSHIRE LTD                ,427629,Unclassified Trade,RADIO & TELEVISION STATIONS   
LENDING SERVICES GENERAL      ,8010,EQUIPMENT PURCHASE AND REPAIR ,04/04/2013,3433295,A005081                  ,"1,288.50",SPECIALISED MOVERS                      ,303661,Transport,REMOVALS - INDUSTRIAL & BUSINE
ACCOMMODATION                 ,8350,MISCELLANEOUS EXPENSES        ,04/04/2013,3433352,997991,"11,511.00",CHIEF EXECUTIVE DIRECTORATE (HOMES)     ,402954,Unclassified Non Trade,LOCAL GOVERNMENT              
PURCHASING & PAYMENTS TEAM    ,5610,AGENCY STAFF                  ,04/04/2013,3433361,C0224981104              ,"16,311.14",REED EMPLOYMENT                         ,317819,Human Resources,EMPLOYMENT & RECRUITMENT AGENC
INCOME MANAGEMENT             ,8370,PRINTING                      ,04/04/2013,3433389,998241,987.00,DESIGN & PRINT SERVICE (SHEFFIELD HOMES),387617,Facilities Management,PRINTERS                      
CREATIVE SERVICES             ,9120,OTHER AGENCIES                ,04/04/2013,3433452,65514,296.00,INTOPRINT (UK) LIMITED                  ,319560,Facilities Management,PRINTERS                      
LENDING SERVICES GENERAL      ,8010,EQUIPMENT PURCHASE AND REPAIR ,04/04/2013,3433469,123612,"2,286.00",SHEFFIELD VENETIAN BLIND COMPANY        ,208402,Building Construction Materials,"BLINDS, AWNINGS & CANOPIES    "
CREATIVE SERVICES             ,9120,OTHER AGENCIES                ,04/04/2013,3433476,62705,610.00,PRINT AND DESIGN FACTORY LTD.           ,207663,Facilities Management,PRINTERS                      
CREATIVE SERVICES             ,9120,OTHER AGENCIES                ,04/04/2013,3433493,INV158811                ,265.20,A PINDER LTD                            ,202627,Facilities Management,COPYING & DUPLICATING SERVICES
NORTH WEST AREA               ,8010,EQUIPMENT PURCHASE AND REPAIR ,04/04/2013,3433507,INV0071597               ,639.00,POSTURITE (UK) LTD.                     ,207615,Consultancy,ERGONOMICS                    
CREATIVE SERVICES             ,9120,OTHER AGENCIES                ,04/04/2013,3433635,INV158814                ,324.20,A PINDER LTD                            ,202627,Facilities Management,COPYING & DUPLICATING SERVICES
LENDING SERVICES GENERAL      ,8010,EQUIPMENT PURCHASE AND REPAIR ,04/04/2013,3433644,1808,950.00,THE DESIGNCONCEPT LTD                   ,549521,Facilities Management,INTERIOR DESIGNERS & FURNISHER
PARKS OPERATIONS WEST         ,8060,MATERIALS AND SUPPLIES GENERAL,04/04/2013,3433645,22089,654.50,STREETMASTER (SOUTH WALES) LTD          ,516590,Construction,GARDEN & PATIO FURNITURE MNFRS
SH GENERAL                    ,9650,LEGAL AND GOVERNANCE          ,04/04/2013,3433774,999023,"20,000.00",CHIEF EXECUTIVE DIRECTORATE (HOMES)     ,402954,Unclassified Non Trade,LOCAL GOVERNMENT              
CREATIVE SERVICES             ,9120,OTHER AGENCIES                ,04/04/2013,3433775,67907,511.68,WHITESPRINT GROUP LIMITED               ,202894,Facilities Management,PRINTERS                      
ACCESS TO HOUSING             ,8270,SUBSCRIPTIONS                 ,04/04/2013,3433828,12304,"8,516.00",HOUSING PARTNERS LIMITED                ,565100,Unclassified Non Trade,"HOUSING ASSOCIATIONS, SOCIETIE"
WORKFORCE DEVELOPMENT         ,8440,FEE EXPENSES                  ,04/04/2013,3433869,22047720-003             ,"2,305.00",SHEFFIELD HALLAM UNIVERSITY             ,301311,Unclassified Non Trade,UNIVERSITIES & MEDICAL SCHOOLS
WORKFORCE DEVELOPMENT         ,8440,FEE EXPENSES                  ,04/04/2013,3433870,21053242-002             ,"1,465.00",SHEFFIELD HALLAM UNIVERSITY             ,301311,Unclassified Non Trade,UNIVERSITIES & MEDICAL SCHOOLS
WORKFORCE DEVELOPMENT         ,8440,FEE EXPENSES                  ,04/04/2013,3433871,20045883-009             ,825.00,SHEFFIELD HALLAM UNIVERSITY             ,301311,Unclassified Non Trade,UNIVERSITIES & MEDICAL SCHOOLS
TREE MANAGEMENT               ,1165,NC&A OTHER                    ,04/04/2013,3433910,1337,395.00,DRONFIELD TREE SERVICES LTD             ,405525,Environmental Services,TREE WORK & FORESTRY SERVICES 
HURLFIELD                     ,8060,MATERIALS AND SUPPLIES GENERAL,04/04/2013,3434025,575499,"1,918.80",COUNTRYWIDE HEALTHCARE SUPPLIES         ,337212,Medical ,FIRST AID & MEDICAL SUPPLIES  
TAMHS                         ,5750,TRAINING EXPENDITURE          ,04/04/2013,3434031,19789,280.00,ST MARY'S (CONFERENCE & CATERING) LTD   ,376186,Catering,CATERERS                      
TAMHS                         ,5750,TRAINING EXPENDITURE          ,04/04/2013,3434032,19784,280.00,ST MARY'S (CONFERENCE & CATERING) LTD   ,376186,Catering,CATERERS                      
INTELLIGENT TRANSPORT SYSTEMS ,6390,NETWORK COMMUNICATIONS        ,04/04/2013,3434033,DRL00155                 ,745.00,DIGITAL REGION LIMITED                  ,580027,ICT,INTERNET SERVICE PROVIDERS    
INTELLIGENT TRANSPORT SYSTEMS ,6390,NETWORK COMMUNICATIONS        ,04/04/2013,3434034,DRL00178                 ,"5,567.04",DIGITAL REGION LIMITED                  ,580027,ICT,INTERNET SERVICE PROVIDERS    
TENANCY MANAGE & ENFORCEMENT  ,8440,FEE EXPENSES                  ,04/04/2013,3434047,13221,750.00,WIRELESS CCTV LIMITED                   ,372357,Facilities Management,CCTV & VIDEO EQUIPMENT        
LA MUSIC SERVICES             ,8240,CONFERENCE EXPENSES           ,04/04/2013,3434061,230,600.00,RENTON PRODUCTIONS                      ,545082,Leisure Services,FILM STUDIOS & PRODUCTION SERV
CREATIVE SERVICES             ,5750,TRAINING EXPENDITURE          ,04/04/2013,3434087,ITFI03280                ,"2,280.00",SHEFFIELD HALLAM UNIVERSITY             ,430923,Unclassified Non Trade,UNIVERSITIES & MEDICAL SCHOOLS
SCHOOL DRINKING MILK          ,8140,GROCERIES                     ,04/04/2013,3434091,8,"20,282.94",MEDINA CAPITAL DAIRY CO LTD             ,524568,Catering,DAIRIES                       
NORTHERN VALLEYS STAFF        ,8440,FEE EXPENSES                  ,04/04/2013,3434094,497,"23,250.00",NORTH SHEFFIELD CONSERVATION GROUP      ,310661,Unclassified Non Trade,CHARITIES & VOLUNTARY ORGANISA
HIST                          ,8620,COMPUTER MAINTENANCE          ,04/04/2013,3434262,998687,"72,671.96",CHIEF EXECUTIVE DIRECTORATE (HOMES)     ,402954,Unclassified Non Trade,LOCAL GOVERNMENT              
SH GENERAL                    ,9650,CORPORATE MAIL                ,04/04/2013,3434262,998687,"18,684.50",CHIEF EXECUTIVE DIRECTORATE (HOMES)     ,402954,Unclassified Non Trade,LOCAL GOVERNMENT              
ENFORCEMENT TEAM              ,8010,EQUIPMENT PURCHASE AND REPAIR ,04/04/2013,3434290,INV0060085               ,"1,899.95",DAVID HORN COMMUNICATIONS LTD           ,483767,Facilities Management,CCTV & VIDEO EQUIPMENT        
HOWDEN HOUSE PFI CONTRACT     ,9620,FINANCIAL PROCESSES           ,04/04/2013,3434367,25884,"372,146.56",LR (SHEFFIELD PFI) LIMITED              ,456582,Facilities Management,FACILITIES MANAGEMENT         
MANAGEMENT & SUPPORT SERVICES ,8390,STATIONERY                    ,04/04/2013,3434847,SINV00247732             ,657.22,R A ROBERTS (OFFICE EQUIPMENT) LTD      ,207777,Furniture,OFFICE FURNITURE & EQUIPMENT  
CREATIVE SERVICES             ,9120,OTHER AGENCIES                ,04/04/2013,3434892,ID243106                 ,"1,400.00",CBS OUTDOOR LTD                         ,377941,Facilities Management,ADVERTISING - OUTDOOR         
EXECUTOR SERVICES             ,8090,BEREAVEMENT SUPPLIES          ,04/04/2013,3435035,F49960-04987             ,415.00,SHEFFIELD CO-OPERATIVE FUNERALCARE      ,203171,Environmental Services,FUNERAL SERVICES              
PARKS OPERATIONS EAST         ,6370,GROUNDS MTCE AND ARBORICULTURE,04/04/2013,3435038,114,828.00,WHITTAKERS GROUND CARE                  ,401131,Construction,LANDSCAPE CONTRACTORS & GARDEN
SNIPS                         ,8180,GRANTS                        ,04/04/2013,3435213,41368,"2,050.00",RAY OF HOPE                             ,385097,Unclassified Non Trade,CHARITIES & VOLUNTARY ORGANISA
INSURANCE AND RISK            ,5750,TRAINING EXPENDITURE          ,04/04/2013,3435282,23311,"1,240.00",ALARM                                   ,341885,Human Resources,BUSINESS & TRADE ORGANISATIONS
INTELLIGENT TRANSPORT SYSTEMS ,6390,NETWORK COMMUNICATIONS        ,04/04/2013,3434803,VP98220270M12801CZ       ,393.09,BRITISH TELECOMMUNICATIONS PLC          ,295860,ICT,TELECOMMUNICATION SERVICES    
MEETING ROOMS NORTH AREA      ,6190,WATER SERVICES                ,04/04/2013,3434808,334000000000000,392.68,YORKSHIRE WATER PLC                     ,295854,Utilities,WATER COMPANIES               
CARE4YOU SERVICE              ,6150,ELECTRICITY                   ,04/04/2013,3434814,1106936241,256.41,KONICA MINOLTA BUSINESS SOLUTIONS EAST  ,206267,ICT,OFFICE EQUIPMENT MNFRS & DISTR
MEETING ROOMS NORTH AREA      ,6190,WATER SERVICES                ,04/04/2013,3434816,335000000000000,403.97,YORKSHIRE WATER PLC                     ,295854,Utilities,WATER COMPANIES               
MEETING ROOMS NORTH AREA      ,6190,WATER SERVICES                ,04/04/2013,3434817,334000000000000,333.38,YORKSHIRE WATER PLC                     ,295854,Utilities,WATER COMPANIES               
MEETING ROOMS NORTH AREA      ,6190,WATER SERVICES                ,04/04/2013,3434818,334000000000000,355.96,YORKSHIRE WATER PLC                     ,295854,Utilities,WATER COMPANIES               
STANIFORTH ROAD WORKSHOPS     ,7010,ROUTINE VEHICLE REPAIR & MTCE ,04/04/2013,3434823,15984,402.34,KESP LTD T/A GMC PARTSLINE              ,205021,Building Construction Materials,"NUTS, BOLTS & FIXINGS         "
STANIFORTH ROAD WORKSHOPS     ,7010,ROUTINE VEHICLE REPAIR & MTCE ,04/04/2013,3434824,15983,400.00,KESP LTD T/A GMC PARTSLINE              ,205021,Building Construction Materials,"NUTS, BOLTS & FIXINGS         "
UTILITIES                     ,6160,GAS                           ,04/04/2013,3434825,A3765838/S1869876        ,"3,391.40",BRITISH GAS BUSINESS                    ,370790,Utilities,GAS COMPANIES                 
STANIFORTH ROAD WORKSHOPS     ,8070,STOCKS AND STORES             ,04/04/2013,3434829,14413488,363.63,LOOKERS FORD                            ,474939,Vehicles Not Buses,CAR DEALERS                   
STANIFORTH ROAD WORKSHOPS     ,8070,STOCKS AND STORES             ,04/04/2013,3434830,14413225,471.93,LOOKERS FORD                            ,474939,Vehicles Not Buses,CAR DEALERS                   
STANIFORTH ROAD WORKSHOPS     ,8070,STOCKS AND STORES             ,04/04/2013,3434831,14413204,497.53,LOOKERS FORD                            ,474939,Vehicles Not Buses,CAR DEALERS                   
EAST MAST                     ,6190,WATER SERVICES                ,04/04/2013,3434963,A3671918/1007407         ,298.79,BRITISH GAS BUSINESS                    ,370790,Utilities,GAS COMPANIES                 
STADIA TECHNOLOGY PARK        ,6150,ELECTRICITY                   ,04/04/2013,3434964,A3558478/381362          ,333.03,BRITISH GAS BUSINESS                    ,370790,Utilities,GAS COMPANIES                 
CORPORATE MAIL                ,8570,POSTAGE & DELIVERY            ,04/04/2013,3434967,9042598241,283.33,ROYAL MAIL GROUP LTD                    ,295326,Mail Services,DELIVERY SERVICES             
STADIA TECHNOLOGY PARK        ,6150,ELECTRICITY                   ,04/04/2013,3434972,A3558451/1368142         ,702.50,BRITISH GAS BUSINESS                    ,370790,Utilities,GAS COMPANIES                 
STADIA TECHNOLOGY PARK        ,6150,ELECTRICITY                   ,04/04/2013,3434973,A3570940/1496829         ,320.01,BRITISH GAS BUSINESS                    ,370790,Utilities,GAS COMPANIES                 
PFI 3                         ,6150,ELECTRICITY                   ,04/04/2013,3434977,A3644459/S1795523        ,"3,805.17",BRITISH GAS BUSINESS                    ,370790,Utilities,GAS COMPANIES                 
HOMELESS INTERIM ACCOMM       ,6210,BED & BREAKFAST PAYMENTS      ,04/04/2013,3434851,SCC005320                ,531.60,ALARA                                   ,341742,Facilities Management,GUEST HOUSES                  
HOMELESS INTERIM ACCOMM       ,6210,BED & BREAKFAST PAYMENTS      ,04/04/2013,3434852,010/2013                 ,"2,997.10",EARL MARSHALL GUEST HOUSE               ,391589,Facilities Management,GUEST HOUSES                  
HOMELESS INTERIM ACCOMM       ,6210,BED & BREAKFAST PAYMENTS      ,04/04/2013,3434853,299,"1,117.40",BURNGREAVE B & B                        ,466986,Facilities Management,GUEST HOUSES                  
HOMELESS INTERIM ACCOMM       ,6210,BED & BREAKFAST PAYMENTS      ,04/04/2013,3434854,300,"1,222.00",BURNGREAVE B & B                        ,466986,Facilities Management,GUEST HOUSES                  
HOMELESS INTERIM ACCOMM       ,6210,BED & BREAKFAST PAYMENTS      ,04/04/2013,3434855,301,"1,433.50",BURNGREAVE B & B                        ,466986,Facilities Management,GUEST HOUSES                  
ADULT SOCIAL CARE PURCHASING  ,9190,DIRECT PAYMENTS               ,04/04/2013,3434325,J587939                  ,"2,650.80",REDACTED PERSONAL DATA,543024,Social Community Care,CAREFIRST DIRECT PAYMENTS     
PURCHASING LEARNING DISABILITI,9190,DIRECT PAYMENTS               ,04/04/2013,3434326,J587939                  ,"5,760.00",A4E                                     ,547567,Human Resources,TRAINING SERVICES             
PURCHASING                    ,9190,DIRECT PAYMENTS               ,04/04/2013,3434328,J587939                  ,"2,924.57",SHEFFIELD MIND                          ,556296,Social Community Care,CAREFIRST DIRECT PAYMENTS     
PURCHASING LEARNING DISABILITI,9190,DIRECT PAYMENTS               ,04/04/2013,3434330,J587939                  ,"1,570.00",PENDERELS TRUST                         ,556454,Social Community Care,CAREFIRST DIRECT PAYMENTS     
PURCHASING LEARNING DISABILITI,9190,DIRECT PAYMENTS               ,04/04/2013,3434331,J587939                  ,355.47,AUTISM PLUS                             ,557461,Social Community Care,CAREFIRST DIRECT PAYMENTS     
CARERS SPECIAL GRANT          ,9190,DIRECT PAYMENTS               ,04/04/2013,3434333,J587939                  ,937.84,SPECTRUM SOCIAL CARE                    ,557844,Social Community Care,CAREFIRST DIRECT PAYMENTS     
ADULT SOCIAL CARE PURCHASING  ,9190,DIRECT PAYMENTS               ,04/04/2013,3434334,J587939                  ,"3,449.85",SACMHA                                  ,558848,Social Community Care,CAREFIRST DIRECT PAYMENTS     
ADULT SOCIAL CARE PURCHASING  ,9190,DIRECT PAYMENTS               ,04/04/2013,3434335,J587939                  ,"1,747.12",IDK SUPPORT 4 YOU LTD - SUPPORT PLANNING,562178,Social Community Care,CAREFIRST DIRECT PAYMENTS     
PURCHASING LEARNING DISABILITI,9190,DIRECT PAYMENTS               ,04/04/2013,3434335,J587939                  ,"1,523.35",IDK SUPPORT 4 YOU LTD - SUPPORT PLANNING,562178,Social Community Care,CAREFIRST DIRECT PAYMENTS     
PURCHASING                    ,9190,DIRECT PAYMENTS               ,04/04/2013,3434336,J587939                  ,"1,386.89",REDACTED PERSONAL DATA,562233,Social Community Care,CAREFIRST DIRECT PAYMENTS     
ADULT SOCIAL CARE PURCHASING  ,9190,DIRECT PAYMENTS               ,04/04/2013,3434337,J587939                  ,422.87,REDACTED PERSONAL DATA,562271,Social Community Care,CAREFIRST DIRECT PAYMENTS     
ADULT SOCIAL CARE PURCHASING  ,9190,DIRECT PAYMENTS               ,04/04/2013,3434339,J587939                  ,"1,805.60",NOMAD OPENING DOORS                     ,568571,Social Community Care,HOME SUPPORT SERVICES         
CARERS SPECIAL GRANT          ,9190,DIRECT PAYMENTS               ,04/04/2013,3434342,J587939                  ,"1,562.86",ONE TO ONE SUPPORT SERVICES             ,571404,Social Community Care,CAREFIRST DIRECT PAYMENTS     
ADULT SOCIAL CARE PURCHASING  ,9190,DIRECT PAYMENTS               ,04/04/2013,3434344,J587939                  ,313.06,REDACTED PERSONAL DATA,575645,Social Community Care,CAREFIRST DIRECT PAYMENTS     
ADULT SOCIAL CARE PURCHASING  ,9190,DIRECT PAYMENTS               ,04/04/2013,3434345,J587939                  ,"1,122.43",MY CHOICE LOCAL                         ,576122,Social Community Care,CAREFIRST DIRECT PAYMENTS     
ADULT SOCIAL CARE PURCHASING  ,9190,DIRECT PAYMENTS               ,04/04/2013,3434346,J587939                  ,"1,030.61",REDACTED PERSONAL DATA,581025,Social Community Care,CAREFIRST DIRECT PAYMENTS     
ADULT SOCIAL CARE PURCHASING  ,9190,DIRECT PAYMENTS               ,04/04/2013,3434347,J587939                  ,"2,816.25",REDACTED PERSONAL DATA,581093,Social Community Care,CAREFIRST DIRECT PAYMENTS     
ADULT SOCIAL CARE PURCHASING  ,9190,DIRECT PAYMENTS               ,04/04/2013,3434348,J587939                  ,"4,348.17",REDACTED PERSONAL DATA,581099,Social Community Care,CAREFIRST DIRECT PAYMENTS     
CARERS SPECIAL GRANT          ,9190,DIRECT PAYMENTS               ,04/04/2013,3434349,J587939                  ,400.59,REDACTED PERSONAL DATA,581109,Social Community Care,CAREFIRST DIRECT PAYMENTS     
ADULT SOCIAL CARE PURCHASING  ,9190,SUPPORT PLANNING COSTS        ,04/04/2013,3434353,J587940                  ,480.00,IDK SUPPORT 4 YOU LTD - MANAGED ACCOUNTS,562179,Social Community Care,CAREFIRST DIRECT PAYMENTS     
ADULT SOCIAL CARE PURCHASING  ,9190,SUPPORT PLANNING COSTS        ,04/04/2013,3434354,J587940                  ,251.00,SMART SUPPORT SERVICES (SHEFFIELD) LTD  ,565200,Social Community Care,CAREFIRST DIRECT PAYMENTS     
ADULT SOCIAL CARE PURCHASING  ,9190,SUPPORT PLANNING COSTS        ,04/04/2013,3434355,J587940                  ,390.00,AGE UK                                  ,568628,Social Community Care,CAREFIRST DIRECT PAYMENTS     
PURCHASING LEARNING DISABILITI,9190,SUPPORT PLANNING COSTS        ,04/04/2013,3434359,J587940                  ,600.00,PRINCIPLE SUPPORT                       ,574590,Social Community Care,CAREFIRST DIRECT PAYMENTS     
ADULT SOCIAL CARE PURCHASING  ,9190,DIRECT PAYMENTS               ,04/04/2013,3434434,J589526                  ,"6,091.92",IDK SUPPORT 4 YOU LTD - SUPPORT PLANNING,562178,Social Community Care,CAREFIRST DIRECT PAYMENTS     
ADULT SOCIAL CARE PURCHASING  ,9190,DIRECT PAYMENTS               ,04/04/2013,3434435,J589526                  ,381.00,REDACTED PERSONAL DATA,567044,Social Community Care,CAREFIRST DIRECT PAYMENTS     
ADULT SOCIAL CARE PURCHASING  ,9190,DIRECT PAYMENTS               ,04/04/2013,3434436,J589526                  ,390.00,AGE UK                                  ,568628,Social Community Care,CAREFIRST DIRECT PAYMENTS     
ADULT SOCIAL CARE PURCHASING  ,9190,DIRECT PAYMENTS               ,04/04/2013,3434442,J589526                  ,437.00,REDACTED PERSONAL DATA,554812,Social Community Care,CAREFIRST DIRECT PAYMENTS     
ADULT SOCIAL CARE PURCHASING  ,9190,DIRECT PAYMENTS               ,04/04/2013,3434689,J588559                  ,"2,045.40",REDACTED PERSONAL DATA,479988,Social Community Care,CAREFIRST DIRECT PAYMENTS     
ADULT SOCIAL CARE PURCHASING  ,9190,DIRECT PAYMENTS               ,04/04/2013,3434690,J588559                  ,"2,276.96",REDACTED PERSONAL DATA,543024,Social Community Care,CAREFIRST DIRECT PAYMENTS     
PURCHASING LEARNING DISABILITI,9190,DIRECT PAYMENTS               ,04/04/2013,3434691,J588559                  ,"6,748.22",A4E                                     ,547567,Human Resources,TRAINING SERVICES             
ADULT SOCIAL CARE PURCHASING  ,9190,DIRECT PAYMENTS               ,04/04/2013,3434692,J588559                  ,"2,905.00",REDACTED PERSONAL DATA,548688,Social Community Care,CAREFIRST DIRECT PAYMENTS     
PURCHASING LEARNING DISABILITI,9190,DIRECT PAYMENTS               ,04/04/2013,3434694,J588559                  ,"1,357.58",SPECTRUM SOCIAL CARE                    ,557844,Social Community Care,CAREFIRST DIRECT PAYMENTS     
PURCHASING LEARNING DISABILITI,9190,DIRECT PAYMENTS               ,04/04/2013,3434695,J588559                  ,736.40,REDACTED PERSONAL DATA,565065,Social Community Care,CAREFIRST DIRECT PAYMENTS     
ADULT SOCIAL CARE PURCHASING  ,9190,DIRECT PAYMENTS               ,04/04/2013,3434697,J588559                  ,875.37,REDACTED PERSONAL DATA,580042,Social Community Care,CAREFIRST DIRECT PAYMENTS     
PURCHASING LEARNING DISABILITI,9190,SUPPORT PLANNING COSTS        ,04/04/2013,3434698,J588560                  ,308.00,A4E                                     ,547567,Human Resources,TRAINING SERVICES             
PURCHASING LEARNING DISABILITI,9190,CITYWIDE SPOT                 ,04/04/2013,3434360,3505,"3,322.40",ONE TO ONE SUPPORT SERVICES LTD         ,518159,Social Community Care,HOME CARE SERVICES            
PURCHASING LEARNING DISABILITI,9210,FUNDED NURSING CARE (INCOME)  ,04/04/2013,3434360,3505,"2,743.04",ONE TO ONE SUPPORT SERVICES LTD         ,518159,Social Community Care,HOME CARE SERVICES            
PURCHASING LEARNING DISABILITI,9190,CITYWIDE SPOT                 ,04/04/2013,3434361,3507,"3,322.40",ONE TO ONE SUPPORT SERVICES LTD         ,518159,Social Community Care,HOME CARE SERVICES            
PURCHASING LEARNING DISABILITI,9210,FUNDED NURSING CARE (INCOME)  ,04/04/2013,3434361,3507,"2,427.45",ONE TO ONE SUPPORT SERVICES LTD         ,518159,Social Community Care,HOME CARE SERVICES            
PURCHASING LEARNING DISABILITI,9190,CITYWIDE SPOT                 ,04/04/2013,3434362,3509,"3,322.40",ONE TO ONE SUPPORT SERVICES LTD         ,518159,Social Community Care,HOME CARE SERVICES            
PURCHASING LEARNING DISABILITI,9210,FUNDED NURSING CARE (INCOME)  ,04/04/2013,3434362,3509,"2,630.73",ONE TO ONE SUPPORT SERVICES LTD         ,518159,Social Community Care,HOME CARE SERVICES            
PURCHASING LEARNING DISABILITI,9190,CITYWIDE SPOT                 ,04/04/2013,3434363,3567,869.38,ONE TO ONE SUPPORT SERVICES LTD         ,518159,Social Community Care,HOME CARE SERVICES            
PURCHASING LEARNING DISABILITI,9210,FUNDED NURSING CARE (INCOME)  ,04/04/2013,3434363,3567,734.93,ONE TO ONE SUPPORT SERVICES LTD         ,518159,Social Community Care,HOME CARE SERVICES            
PURCHASING                    ,9190,CITYWIDE SPOT                 ,04/04/2013,3434364,810,860.00,DIRECT HEALTH UK LIMITED                ,204388,Social Community Care,HOME CARE SERVICES            
PURCHASING LEARNING DISABILITI,9250,INDEPENDENT DAY CARE          ,04/04/2013,3434443,636,304.00,SPECTRUM ACTIVE (NOT FOR PROFIT)        ,533308,Human Resources,TRAINING CENTRES              
PURCHASING LEARNING DISABILITI,9250,INDEPENDENT DAY CARE          ,04/04/2013,3434446,642,336.00,SPECTRUM ACTIVE (NOT FOR PROFIT)        ,533308,Human Resources,TRAINING CENTRES              
PURCHASING LEARNING DISABILITI,9250,INDEPENDENT DAY CARE          ,04/04/2013,3434447,655,576.00,SPECTRUM ACTIVE (NOT FOR PROFIT)        ,533308,Human Resources,TRAINING CENTRES              
PURCHASING LEARNING DISABILITI,9250,INDEPENDENT DAY CARE          ,04/04/2013,3434450,690VHS                   ,660.00,SPECTRUM ACTIVE (NOT FOR PROFIT)        ,533308,Human Resources,TRAINING CENTRES              
PURCHASING LEARNING DISABILITI,9250,INDEPENDENT DAY CARE          ,04/04/2013,3434451,INV008439                ,"1,121.48",CAMBIAN LEARNING DISABILITIES           ,362013,Unclassified Non Trade,DAY CENTRES                   
PDSI PURCHASING               ,9250,INDEPENDENT DAY CARE          ,04/04/2013,3434452,INV008440                ,928.56,CAMBIAN LEARNING DISABILITIES           ,362013,Unclassified Non Trade,DAY CENTRES                   
PDSI PURCHASING               ,9250,INDEPENDENT DAY CARE          ,04/04/2013,3434453,INV008441                ,"1,040.80",CAMBIAN LEARNING DISABILITIES           ,362013,Unclassified Non Trade,DAY CENTRES                   
PURCHASING LEARNING DISABILITI,9250,INDEPENDENT DAY CARE          ,04/04/2013,3434454,INV008442                ,"1,084.32",CAMBIAN LEARNING DISABILITIES           ,362013,Unclassified Non Trade,DAY CENTRES                   
PURCHASING LEARNING DISABILITI,9250,INDEPENDENT DAY CARE          ,04/04/2013,3434456,INV008444                ,"1,312.00",CAMBIAN LEARNING DISABILITIES           ,362013,Unclassified Non Trade,DAY CENTRES                   
PURCHASING LEARNING DISABILITI,9250,INDEPENDENT DAY CARE          ,04/04/2013,3434457,INV008445                ,909.40,CAMBIAN LEARNING DISABILITIES           ,362013,Unclassified Non Trade,DAY CENTRES                   
PURCHASING LEARNING DISABILITI,9250,INDEPENDENT DAY CARE          ,04/04/2013,3434458,INV008446                ,"4,080.00",CAMBIAN LEARNING DISABILITIES           ,362013,Unclassified Non Trade,DAY CENTRES                   
PURCHASING LEARNING DISABILITI,9250,INDEPENDENT DAY CARE          ,04/04/2013,3434459,INV008448                ,928.52,CAMBIAN LEARNING DISABILITIES           ,362013,Unclassified Non Trade,DAY CENTRES                   
PURCHASING LEARNING DISABILITI,9250,INDEPENDENT DAY CARE          ,04/04/2013,3434460,INV008449                ,"1,084.32",CAMBIAN LEARNING DISABILITIES           ,362013,Unclassified Non Trade,DAY CENTRES                   
PURCHASING LEARNING DISABILITI,9250,INDEPENDENT DAY CARE          ,04/04/2013,3434461,INV008452                ,"1,034.92",CAMBIAN LEARNING DISABILITIES           ,362013,Unclassified Non Trade,DAY CENTRES                   
PURCHASING LEARNING DISABILITI,9250,INDEPENDENT DAY CARE          ,04/04/2013,3434462,INV008453                ,"3,438.32",CAMBIAN LEARNING DISABILITIES           ,362013,Unclassified Non Trade,DAY CENTRES                   
PURCHASING LEARNING DISABILITI,9250,INDEPENDENT DAY CARE          ,04/04/2013,3434463,INV008454                ,"1,279.68",CAMBIAN LEARNING DISABILITIES           ,362013,Unclassified Non Trade,DAY CENTRES                   
PURCHASING                    ,9250,INDEPENDENT DAY CARE          ,04/04/2013,3434464,193,800.00,CARRWOOD HOUSE HOME                     ,362165,Social Community Care,RESIDENTIAL CARE HOMES        
ADULT SOCIAL CARE PURCHASING  ,9190,CITYWIDE SPOT                 ,04/04/2013,3434465,2261PJ                   ,540.00,CARE2CARE SERVICES LTD                  ,504076,Human Resources,TRAINING SERVICES             
PURCHASING LEARNING DISABILITI,9190,CITYWIDE SPOT                 ,04/04/2013,3434466,2263ZJ                   ,378.20,CARE2CARE SERVICES LTD                  ,504076,Human Resources,TRAINING SERVICES             
PURCHASING LEARNING DISABILITI,9190,CITYWIDE SPOT                 ,04/04/2013,3434469,24270,"1,788.46",SPECTRUM SOCIAL CARE LTD                ,328608,Human Resources,EMPLOYMENT & RECRUITMENT AGENC
PURCHASING LEARNING DISABILITI,9250,INDEPENDENT DAY CARE          ,04/04/2013,3434470,322FC.                   ,252.00,SHEFFIELD MENCAP                        ,431582,Unclassified Non Trade,CHARITIES & VOLUNTARY ORGANISA
ADULT SOCIAL CARE PURCHASING  ,9190,CITYWIDE SPOT                 ,04/04/2013,3434471,69828,"1,273.44",SCOPE(ROTHERHAM DAY SERVICE)            ,361950,Unclassified Non Trade,CHARITIES & VOLUNTARY ORGANISA
ADULT SOCIAL CARE PURCHASING  ,9190,CITYWIDE SPOT                 ,04/04/2013,3434473,7087,315.75,INTERCARE SERVICES DIRECT               ,530605,Social Community Care,HOME CARE SERVICES            
ADULT SOCIAL CARE PURCHASING  ,9190,CITYWIDE SPOT                 ,04/04/2013,3434474,7090,"1,478.29",INTERCARE SERVICES DIRECT               ,530605,Social Community Care,HOME CARE SERVICES            
PURCHASING                    ,9250,INDEPENDENT DAY CARE          ,04/04/2013,3434475,1642,492.00,WORK LTD                                ,350089,Horticultural,GARDEN CENTRES & NURSERIES    
PURCHASING LEARNING DISABILITI,9190,CITYWIDE SPOT                 ,04/04/2013,3434478,1745391,323.64,RANDSTAD CARE LTD                       ,329324,Human Resources,EMPLOYMENT & RECRUITMENT AGENC
PURCHASING LEARNING DISABILITI,9250,INDEPENDENT DAY CARE          ,04/04/2013,3434699,A04672                   ,"6,745.76",AUTISM PLUS LTD                         ,330606,Unclassified Non Trade,CHARITIES & VOLUNTARY ORGANISA
PURCHASING LEARNING DISABILITI,9250,INDEPENDENT DAY CARE          ,04/04/2013,3434700,A04673                   ,"6,745.76",AUTISM PLUS LTD                         ,330606,Unclassified Non Trade,CHARITIES & VOLUNTARY ORGANISA
PURCHASING LEARNING DISABILITI,9250,INDEPENDENT DAY CARE          ,04/04/2013,3434701,31017,"1,440.00",PACES SHEFFIELD                         ,376410,Unclassified Non Trade,SCHOOLS - SPECIAL             
PURCHASING LEARNING DISABILITI,9250,INDEPENDENT DAY CARE          ,04/04/2013,3434702,34669,360.00,PACES SHEFFIELD                         ,376410,Unclassified Non Trade,SCHOOLS - SPECIAL             
PURCHASING LEARNING DISABILITI,9190,CITYWIDE SPOT                 ,04/04/2013,3434703,1741993,332.48,RANDSTAD CARE LTD                       ,329324,Human Resources,EMPLOYMENT & RECRUITMENT AGENC
PURCHASING LEARNING DISABILITI,9190,CITYWIDE SPOT                 ,04/04/2013,3434704,1742032,556.18,RANDSTAD CARE LTD                       ,329324,Human Resources,EMPLOYMENT & RECRUITMENT AGENC
PURCHASING LEARNING DISABILITI,9190,CITYWIDE SPOT                 ,04/04/2013,3434706,1743755,323.64,RANDSTAD CARE LTD                       ,329324,Human Resources,EMPLOYMENT & RECRUITMENT AGENC
PURCHASING LEARNING DISABILITI,9230,CCSP TRANSPORT                ,04/04/2013,3434709,SEN036914                ,807.72,SENSE                                   ,361885,Unclassified Non Trade,CHARITIES & VOLUNTARY ORGANISA
PURCHASING LEARNING DISABILITI,9190,CITYWIDE SPOT                 ,04/04/2013,3434711,SI10/0005132             ,"8,580.24",NEW ERA HOUSING AUTHORITY               ,505956,Unclassified Non Trade,"HOUSING ASSOCIATIONS, SOCIETIE"
ADULT SOCIAL CARE PURCHASING  ,9190,CITYWIDE SPOT                 ,04/04/2013,3434712,SIN002927EC              ,360.00,SHEFFCARE LIMITED                       ,299566,Social Community Care,RESIDENTIAL CARE HOMES        
ADULT SOCIAL CARE PURCHASING  ,9190,CITYWIDE SPOT                 ,04/04/2013,3434713,SIN002931JG              ,360.00,SHEFFCARE LIMITED                       ,299566,Social Community Care,RESIDENTIAL CARE HOMES        
ADULT SOCIAL CARE PURCHASING  ,9190,CITYWIDE SPOT                 ,04/04/2013,3434714,SIN002940                ,540.00,SHEFFCARE LIMITED                       ,299566,Social Community Care,RESIDENTIAL CARE HOMES        
ADULT SOCIAL CARE PURCHASING  ,9190,CITYWIDE SPOT                 ,04/04/2013,3434715,SIN002941                ,360.00,SHEFFCARE LIMITED                       ,299566,Social Community Care,RESIDENTIAL CARE HOMES        
ADULT SOCIAL CARE PURCHASING  ,9190,CITYWIDE SPOT                 ,04/04/2013,3434716,SIN002942                ,360.00,SHEFFCARE LIMITED                       ,299566,Social Community Care,RESIDENTIAL CARE HOMES        
ADULT SOCIAL CARE PURCHASING  ,9190,CITYWIDE SPOT                 ,04/04/2013,3434717,SIN002943                ,360.00,SHEFFCARE LIMITED                       ,299566,Social Community Care,RESIDENTIAL CARE HOMES        
ADULT SOCIAL CARE PURCHASING  ,9190,CITYWIDE SPOT                 ,04/04/2013,3434718,SIN002951DW              ,360.00,SHEFFCARE LIMITED                       ,299566,Social Community Care,RESIDENTIAL CARE HOMES        
PURCHASING LEARNING DISABILITI,9190,CITYWIDE SPOT                 ,04/04/2013,3434719,1745417,556.18,RANDSTAD CARE LTD                       ,329324,Human Resources,EMPLOYMENT & RECRUITMENT AGENC
PURCHASING LEARNING DISABILITI,9190,CITYWIDE SPOT                 ,04/04/2013,3434720,VARIOUS                  ,"19,709.78",UNITED RESPONSE                         ,329604,Unclassified Non Trade,CHARITIES & VOLUNTARY ORGANISA
ADULT SOCIAL CARE PURCHASING  ,9190,CITYWIDE SPOT                 ,04/04/2013,3434720,VARIOUS                  ,"1,770.16",UNITED RESPONSE                         ,329604,Unclassified Non Trade,CHARITIES & VOLUNTARY ORGANISA
PDSI PURCHASING               ,9190,CITYWIDE SPOT                 ,04/04/2013,3434720,VARIOUS                  ,812.00,UNITED RESPONSE                         ,329604,Unclassified Non Trade,CHARITIES & VOLUNTARY ORGANISA
TRANSITIONS                   ,9190,CITYWIDE SPOT                 ,04/04/2013,3434720,VARIOUS                  ,777.60,UNITED RESPONSE                         ,329604,Unclassified Non Trade,CHARITIES & VOLUNTARY ORGANISA
PURCHASING LEARNING DISABILITI,9210,FUNDED NURSING CARE (INCOME)  ,04/04/2013,3434720,VARIOUS                  ,729.60,UNITED RESPONSE                         ,329604,Unclassified Non Trade,CHARITIES & VOLUNTARY ORGANISA
PURCHASING LEARNING DISABILITI,9230,CCSP OTHER                    ,04/04/2013,3434722,VARIOUS                  ,"16,096.81",NEWFIELD VIEW SUPPORTED LIVING LTD      ,487359,Social Community Care,DISABILITY & SPECIAL NEEDS - S
PURCHASING                    ,9230,CCSP OTHER                    ,04/04/2013,3434722,VARIOUS                  ,603.60,NEWFIELD VIEW SUPPORTED LIVING LTD      ,487359,Social Community Care,DISABILITY & SPECIAL NEEDS - S
PURCHASING LEARNING DISABILITI,9190,CITYWIDE SPOT                 ,04/04/2013,3434723,1810111,944.00,MENCAP HOMECARE                         ,361858,Unclassified Non Trade,CHARITIES & VOLUNTARY ORGANISA
PURCHASING LEARNING DISABILITI,9190,CITYWIDE SPOT                 ,04/04/2013,3434724,1810112,"2,832.00",MENCAP HOMECARE                         ,361858,Unclassified Non Trade,CHARITIES & VOLUNTARY ORGANISA
PURCHASING LEARNING DISABILITI,9190,CITYWIDE SPOT                 ,04/04/2013,3434725,1810113,"1,128.96",MENCAP HOMECARE                         ,361858,Unclassified Non Trade,CHARITIES & VOLUNTARY ORGANISA
PURCHASING LEARNING DISABILITI,9190,CITYWIDE SPOT                 ,04/04/2013,3434726,1810114,731.48,MENCAP HOMECARE                         ,361858,Unclassified Non Trade,CHARITIES & VOLUNTARY ORGANISA
PURCHASING LEARNING DISABILITI,9190,CITYWIDE SPOT                 ,04/04/2013,3434727,1810116,"1,725.76",MENCAP HOMECARE                         ,361858,Unclassified Non Trade,CHARITIES & VOLUNTARY ORGANISA
PURCHASING LEARNING DISABILITI,9190,CITYWIDE SPOT                 ,04/04/2013,3434728,1810117,"3,773.36",MENCAP HOMECARE                         ,361858,Unclassified Non Trade,CHARITIES & VOLUNTARY ORGANISA
PURCHASING LEARNING DISABILITI,9190,CITYWIDE SPOT                 ,04/04/2013,3434729,1810118,"1,003.00",MENCAP HOMECARE                         ,361858,Unclassified Non Trade,CHARITIES & VOLUNTARY ORGANISA
PURCHASING LEARNING DISABILITI,9190,CITYWIDE SPOT                 ,04/04/2013,3434730,1810119,288.96,MENCAP HOMECARE                         ,361858,Unclassified Non Trade,CHARITIES & VOLUNTARY ORGANISA
PURCHASING LEARNING DISABILITI,9190,CITYWIDE SPOT                 ,04/04/2013,3434733,1810122,465.96,MENCAP HOMECARE                         ,361858,Unclassified Non Trade,CHARITIES & VOLUNTARY ORGANISA
PURCHASING LEARNING DISABILITI,9210,FUNDED NURSING CARE (INCOME)  ,04/04/2013,3434735,1810124,"1,239.00",MENCAP HOMECARE                         ,361858,Unclassified Non Trade,CHARITIES & VOLUNTARY ORGANISA
PURCHASING LEARNING DISABILITI,9190,CITYWIDE SPOT                 ,04/04/2013,3434736,1810125,731.48,MENCAP HOMECARE                         ,361858,Unclassified Non Trade,CHARITIES & VOLUNTARY ORGANISA
PURCHASING LEARNING DISABILITI,9190,CITYWIDE SPOT                 ,04/04/2013,3434737,1810126,"1,527.96",MENCAP HOMECARE                         ,361858,Unclassified Non Trade,CHARITIES & VOLUNTARY ORGANISA
PURCHASING                    ,9190,CITYWIDE SPOT                 ,04/04/2013,3434738,1830000547A              ,615.12,CRAEGMOOR SYI LINCOLN                   ,567316,Social Community Care,RESIDENTIAL CARE HOMES        
PURCHASING LEARNING DISABILITI,9190,CITYWIDE SPOT                 ,04/04/2013,3434739,2100076927,300.00,COMMUNITY HEALTH SHEFFIELD              ,361895,Unclassified Non Trade,HOSPITALS                     
PURCHASING LEARNING DISABILITI,9190,CITYWIDE SPOT                 ,04/04/2013,3434740,2100076928,600.00,COMMUNITY HEALTH SHEFFIELD              ,361895,Unclassified Non Trade,HOSPITALS                     
PURCHASING LEARNING DISABILITI,9190,CITYWIDE SPOT                 ,04/04/2013,3434741,2100076929,300.00,COMMUNITY HEALTH SHEFFIELD              ,361895,Unclassified Non Trade,HOSPITALS                     
PURCHASING LEARNING DISABILITI,9190,CITYWIDE SPOT                 ,04/04/2013,3434742,2100077202,713.20,COMMUNITY HEALTH SHEFFIELD              ,361895,Unclassified Non Trade,HOSPITALS                     
ADULT SOCIAL CARE PURCHASING  ,9190,CITYWIDE SPOT                 ,04/04/2013,3434743,11762,776.85,SSA SOCIAL CARE AND COMMUNITY SERVICES L,301604,Human Resources,EMPLOYMENT & RECRUITMENT AGENC
PURCHASING LEARNING DISABILITI,9190,CITYWIDE SPOT                 ,04/04/2013,3434743,11762,298.51,SSA SOCIAL CARE AND COMMUNITY SERVICES L,301604,Human Resources,EMPLOYMENT & RECRUITMENT AGENC
PURCHASING                    ,9190,CITYWIDE SPOT                 ,04/04/2013,3434743,11762,291.89,SSA SOCIAL CARE AND COMMUNITY SERVICES L,301604,Human Resources,EMPLOYMENT & RECRUITMENT AGENC
PURCHASING LEARNING DISABILITI,9190,CITYWIDE SPOT                 ,04/04/2013,3434744,2100077206,"1,356.12",COMMUNITY HEALTH SHEFFIELD              ,361895,Unclassified Non Trade,HOSPITALS                     
PURCHASING LEARNING DISABILITI,9190,CITYWIDE SPOT                 ,04/04/2013,3434745,2100077207,"1,356.12",COMMUNITY HEALTH SHEFFIELD              ,361895,Unclassified Non Trade,HOSPITALS                     
PURCHASING LEARNING DISABILITI,9190,CITYWIDE SPOT                 ,04/04/2013,3434746,2100077210,"1,888.12",COMMUNITY HEALTH SHEFFIELD              ,361895,Unclassified Non Trade,HOSPITALS                     
PURCHASING LEARNING DISABILITI,9190,CITYWIDE SPOT                 ,04/04/2013,3434747,21566,322.04,H F TRUST LIMITED                       ,362078,Unclassified Non Trade,CHARITIES & VOLUNTARY ORGANISA
PURCHASING LEARNING DISABILITI,9210,FUNDED NURSING CARE (INCOME)  ,04/04/2013,3434747,21566,"1,032.48",H F TRUST LIMITED                       ,362078,Unclassified Non Trade,CHARITIES & VOLUNTARY ORGANISA
PURCHASING LEARNING DISABILITI,9190,CITYWIDE SPOT                 ,04/04/2013,3434749,250,"1,040.00",ITS MY LIFE LTD                         ,558028,Social Community Care,HOME HELP SERVICES - PRIVATE  
PURCHASING LEARNING DISABILITI,9190,CITYWIDE SPOT                 ,04/04/2013,3434750,34405,"3,243.24",LINKAGE COMMUNITY TRUST                 ,362116,Unclassified Non Trade,CHARITIES & VOLUNTARY ORGANISA
PURCHASING LEARNING DISABILITI,9190,CITYWIDE SPOT                 ,04/04/2013,3434751,3630000213,"1,504.00",CRAEGMOOR SYI LINCOLN                   ,567316,Social Community Care,RESIDENTIAL CARE HOMES        
PURCHASING LEARNING DISABILITI,9250,INDEPENDENT DAY CARE          ,04/04/2013,3434752,3921,834.68,CAMPHILL VILLAGE TRUST                  ,361868,Unclassified Non Trade,CHARITIES & VOLUNTARY ORGANISA
ADULT SOCIAL CARE PURCHASING  ,9190,CITYWIDE SPOT                 ,04/04/2013,3434753,11800,797.74,SSA SOCIAL CARE AND COMMUNITY SERVICES L,301604,Human Resources,EMPLOYMENT & RECRUITMENT AGENC
PURCHASING LEARNING DISABILITI,9190,CITYWIDE SPOT                 ,04/04/2013,3434753,11800,280.65,SSA SOCIAL CARE AND COMMUNITY SERVICES L,301604,Human Resources,EMPLOYMENT & RECRUITMENT AGENC
PURCHASING                    ,9190,CITYWIDE SPOT                 ,04/04/2013,3434753,11800,288.60,SSA SOCIAL CARE AND COMMUNITY SERVICES L,301604,Human Resources,EMPLOYMENT & RECRUITMENT AGENC
PURCHASING                    ,9230,CCSP EMERGENCY HOSING COSTS   ,04/04/2013,3434754,6255988,"1,992.00",MIDDLESBROUGH BOROUGH COUNCIL           ,558400,Unclassified Non Trade,LOCAL GOVERNMENT              
PURCHASING LEARNING DISABILITI,9190,CITYWIDE SPOT                 ,04/04/2013,3434758,AA14216257               ,"3,038.52",H F TRUST LIMITED                       ,362078,Unclassified Non Trade,CHARITIES & VOLUNTARY ORGANISA
PURCHASING LEARNING DISABILITI,9190,CITYWIDE SPOT                 ,04/04/2013,3434759,AA14216258               ,590.00,H F TRUST LIMITED                       ,362078,Unclassified Non Trade,CHARITIES & VOLUNTARY ORGANISA
ADULT SOCIAL CARE PURCHASING  ,9190,CITYWIDE SPOT                 ,04/04/2013,3434760,11839,809.44,SSA SOCIAL CARE AND COMMUNITY SERVICES L,301604,Human Resources,EMPLOYMENT & RECRUITMENT AGENC
PURCHASING LEARNING DISABILITI,9190,CITYWIDE SPOT                 ,04/04/2013,3434760,11839,285.35,SSA SOCIAL CARE AND COMMUNITY SERVICES L,301604,Human Resources,EMPLOYMENT & RECRUITMENT AGENC
PURCHASING                    ,9190,CITYWIDE SPOT                 ,04/04/2013,3434760,11839,278.66,SSA SOCIAL CARE AND COMMUNITY SERVICES L,301604,Human Resources,EMPLOYMENT & RECRUITMENT AGENC
PURCHASING LEARNING DISABILITI,9190,CITYWIDE SPOT                 ,04/04/2013,3434761,AA14216348               ,"4,425.24",H F TRUST LIMITED                       ,362078,Unclassified Non Trade,CHARITIES & VOLUNTARY ORGANISA
PURCHASING LEARNING DISABILITI,9190,CITYWIDE SPOT                 ,04/04/2013,3434762,AA14216349               ,850.76,H F TRUST LIMITED                       ,362078,Unclassified Non Trade,CHARITIES & VOLUNTARY ORGANISA
PURCHASING LEARNING DISABILITI,9190,CITYWIDE SPOT                 ,04/04/2013,3434763,AA14216350               ,668.32,H F TRUST LIMITED                       ,362078,Unclassified Non Trade,CHARITIES & VOLUNTARY ORGANISA
PURCHASING LEARNING DISABILITI,9190,CITYWIDE SPOT                 ,04/04/2013,3434764,AA14216351               ,334.52,H F TRUST LIMITED                       ,362078,Unclassified Non Trade,CHARITIES & VOLUNTARY ORGANISA
PURCHASING LEARNING DISABILITI,9190,CITYWIDE SPOT                 ,04/04/2013,3434765,AA14216352               ,"1,027.80",H F TRUST LIMITED                       ,362078,Unclassified Non Trade,CHARITIES & VOLUNTARY ORGANISA
PURCHASING LEARNING DISABILITI,9190,CITYWIDE SPOT                 ,04/04/2013,3434766,AA14216353               ,"1,645.48",H F TRUST LIMITED                       ,362078,Unclassified Non Trade,CHARITIES & VOLUNTARY ORGANISA
PURCHASING LEARNING DISABILITI,9190,CITYWIDE SPOT                 ,04/04/2013,3434767,AA14216354               ,"4,641.24",H F TRUST LIMITED                       ,362078,Unclassified Non Trade,CHARITIES & VOLUNTARY ORGANISA
PURCHASING LEARNING DISABILITI,9190,CITYWIDE SPOT                 ,04/04/2013,3434768,AA14216355               ,528.52,H F TRUST LIMITED                       ,362078,Unclassified Non Trade,CHARITIES & VOLUNTARY ORGANISA
PURCHASING LEARNING DISABILITI,9190,CITYWIDE SPOT                 ,04/04/2013,3434769,AA14216356               ,"2,749.40",H F TRUST LIMITED                       ,362078,Unclassified Non Trade,CHARITIES & VOLUNTARY ORGANISA
PURCHASING LEARNING DISABILITI,9190,CITYWIDE SPOT                 ,04/04/2013,3434770,AA14216357               ,469.52,H F TRUST LIMITED                       ,362078,Unclassified Non Trade,CHARITIES & VOLUNTARY ORGANISA
PURCHASING LEARNING DISABILITI,9190,CITYWIDE SPOT                 ,04/04/2013,3434771,AA14216359               ,"3,547.80",H F TRUST LIMITED                       ,362078,Unclassified Non Trade,CHARITIES & VOLUNTARY ORGANISA
PURCHASING LEARNING DISABILITI,9190,CITYWIDE SPOT                 ,04/04/2013,3434772,AA14216360               ,"4,087.48",H F TRUST LIMITED                       ,362078,Unclassified Non Trade,CHARITIES & VOLUNTARY ORGANISA
PURCHASING LEARNING DISABILITI,9210,FUNDED NURSING CARE (INCOME)  ,04/04/2013,3434772,AA14216360               ,"1,054.52",H F TRUST LIMITED                       ,362078,Unclassified Non Trade,CHARITIES & VOLUNTARY ORGANISA
PURCHASING LEARNING DISABILITI,9190,CITYWIDE SPOT                 ,04/04/2013,3434773,AA14216361               ,"1,856.04",H F TRUST LIMITED                       ,362078,Unclassified Non Trade,CHARITIES & VOLUNTARY ORGANISA
PURCHASING LEARNING DISABILITI,9190,CITYWIDE SPOT                 ,04/04/2013,3434775,AA14216494               ,"1,418.88",H F TRUST LIMITED                       ,362078,Unclassified Non Trade,CHARITIES & VOLUNTARY ORGANISA
PURCHASING LEARNING DISABILITI,9190,CITYWIDE SPOT                 ,04/04/2013,3434776,AA14216495               ,"1,216.44",H F TRUST LIMITED                       ,362078,Unclassified Non Trade,CHARITIES & VOLUNTARY ORGANISA
ADULT SOCIAL CARE PURCHASING  ,9190,CITYWIDE SPOT                 ,04/04/2013,3434780,BT7626                   ,360.00,BROOMGROVE TRUST NURSING                ,361755,Social Community Care,NURSING HOMES                 
ADULT SOCIAL CARE PURCHASING  ,9190,CITYWIDE SPOT                 ,04/04/2013,3434781,BT7627                   ,360.00,BROOMGROVE TRUST NURSING                ,361755,Social Community Care,NURSING HOMES                 
PURCHASING LEARNING DISABILITI,9190,CITYWIDE SPOT                 ,04/04/2013,3434788,INV0266                  ,459.20,PRINCIPLE SUPPORT LTD                   ,569157,Social Community Care,HOME CARE SERVICES            
PURCHASING LEARNING DISABILITI,9190,CITYWIDE SPOT                 ,04/04/2013,3434789,INV0269                  ,574.00,PRINCIPLE SUPPORT LTD                   ,569157,Social Community Care,HOME CARE SERVICES            
PURCHASING LEARNING DISABILITI,9190,CITYWIDE SPOT                 ,04/04/2013,3434790,INV0286                  ,262.00,PRINCIPLE SUPPORT LTD                   ,569157,Social Community Care,HOME CARE SERVICES            
WEST SA - CIN S17             ,8490,TRANSLATN/SIGN/INTERPRET FEES ,04/04/2013,3434295,39604,452.50,LANGUAGELINE SOLUTIONS                  ,471915,Human Resources,TRANSLATORS & INTERPRETERS    
NORTH SA - CIN S17            ,8490,TRANSLATN/SIGN/INTERPRET FEES ,04/04/2013,3434296,408754-13-02             ,251.50,LANGUAGELINE SOLUTIONS                  ,471915,Human Resources,TRANSLATORS & INTERPRETERS    
WEST SA - CIN S17             ,9280,CONTACT                       ,04/04/2013,3434298,462 AN                   ,352.44,SHEFFIELD CHILDREN'S CENTRE             ,311908,Social Community Care,NURSERIES & CRECHES           
CONTACT CONTRACTS             ,9280,CONTACT                       ,04/04/2013,3434308,462 LM                   ,302.77,SHEFFIELD CHILDREN'S CENTRE             ,311908,Social Community Care,NURSERIES & CRECHES           
PREVENTION & SUPPORT - CDT    ,9270,CARELEAVERS INDEPENDENT LIVING,04/04/2013,3434311,224881819,316.16,R M S PAYROLL MANAGEMENT LTD            ,478856,Financial Services,PAYROLL SERVICES              
CONTACT CONTRACTS             ,9280,CONTACT                       ,04/04/2013,3434312,462 RP                   ,275.06,SHEFFIELD CHILDREN'S CENTRE             ,311908,Social Community Care,NURSERIES & CRECHES           
NORTH SA - CIN S17            ,9270,PAYMENTS TO RELATIVES/FRIENDS ,04/04/2013,3434316,93512/13/14              ,279.78,REDACTED PERSONAL DATA,571457,Unclassified Non Trade,OUT OF SCOPE FOR SIC MONITORIN
PREVENTION & SUPPORT - CDT    ,9270,CARELEAVERS INDEPENDENT LIVING,04/04/2013,3434317,224937449,415.09,R M S PAYROLL MANAGEMENT LTD            ,478856,Financial Services,PAYROLL SERVICES              
LEAVING CARE                  ,9270,CARELEAVERS ACCOMMODATION     ,04/04/2013,3434411,02/13/HG                 ,624.84,CHERRYTREE SUPPORT SERVICES LTD         ,402768,Unclassified Non Trade,CHARITIES & VOLUNTARY ORGANISA
LEAVING CARE                  ,9270,CARELEAVERS ACCOMMODATION     ,04/04/2013,3434412,MUD43                    ,320.95,EARL MARSHALL GUEST HOUSE               ,391589,Facilities Management,GUEST HOUSES                  
LEAVING CARE                  ,9270,CARELEAVERS ACCOMMODATION     ,04/04/2013,3434413,TR/SHEF/018              ,"2,648.00",FIRSTPOINT SUPPORTED LIVING             ,575497,Social Community Care,HOME SUPPORT SERVICES         
LEAVING CARE                  ,9270,CARELEAVERS ACCOMMODATION     ,04/04/2013,3434414,531A                     ,"1,500.52",ROUNDABOUT LTD                          ,316572,Facilities Management,HOSTELS                       
LEAVING CARE                  ,9270,CARELEAVERS ACCOMMODATION     ,04/04/2013,3434415,5653,"3,200.00",PROGRESSIVE CARE LTD                    ,343548,Social Community Care,CHILDREN'S HOMES              
LEAVING CARE                  ,9270,CARELEAVERS ACCOMMODATION     ,04/04/2013,3434416,5654,"3,200.00",PROGRESSIVE CARE LTD                    ,343548,Social Community Care,CHILDREN'S HOMES              
INDEPENDENT RES BLOCK PLACEMEN,9270,INDEPENDENT RESIDENTIAL PMENT ,04/04/2013,3434417,5716,"2,035.71",PROGRESSIVE CARE LTD                    ,343548,Social Community Care,CHILDREN'S HOMES              
INDEPENDENT RES BLOCK PLACEMEN,9270,INDEPENDENT RESIDENTIAL PMENT ,04/04/2013,3434418,5717,"2,035.71",PROGRESSIVE CARE LTD                    ,343548,Social Community Care,CHILDREN'S HOMES              
INDEPENDENT RES BLOCK PLACEMEN,9270,INDEPENDENT RESIDENTIAL PMENT ,04/04/2013,3434422,107523,"1,275.00",THE KEYS GROUP                          ,328876,Social Community Care,CHILDREN'S HOMES              
LEAVING CARE                  ,9270,CARELEAVERS ACCOMMODATION     ,04/04/2013,3434423,898,"15,972.76",PENARTH HOUSE                           ,326884,Social Community Care,CHILDCARE SERVICES            
INDEPENDENT RES BLOCK PLACEMEN,9270,CARELEAVERS ACCOMMODATION     ,04/04/2013,3434424,200891,"12,000.00",KEYS EDUCATION LTD                      ,559392,Social Community Care,CHILDCARE SERVICES            
FOSTERING NON-PLACEMENT LAC 1 ,9440,LOOKED AFTER CHILDREN         ,04/04/2013,3434427,31127-                   ,"3,538.00",THE GIRLS' DAY SCHOOL TRUST             ,507529,Education,EDUCATIONAL SERVICES          
FOSTERING NON-PLACEMENT LAC 1 ,9440,LOOKED AFTER CHILDREN         ,04/04/2013,3434428,4034,843.36,PAMELA TOWER ASSOCIATES                 ,373170,Medical ,DOCTORS                       
FOSTERING NON-PLACEMENT LAC 1 ,9440,LOOKED AFTER CHILDREN         ,04/04/2013,3434430,80976854,"1,078.55",DONCASTER MBC                           ,369105,Unclassified Non Trade,LOCAL GOVERNMENT              
VS- LUNCH CLUB GRANT          ,8180,GRANTS                        ,04/04/2013,3435140,MPA20130404152 1         ,788.50,BANNER CROSS LUNCHEON & FRIENDSHIP CLUB ,326250,Unclassified Non Trade,PLACES OF WORSHIP             
VS- LUNCH CLUB GRANT          ,8180,GRANTS                        ,04/04/2013,3435141,MPA20130404152 10        ,901.00,GREYSTONES LUNCH CLUB                   ,295226,Unclassified Non Trade,CHARITIES & VOLUNTARY ORGANISA
VS- LUNCH CLUB GRANT          ,8180,GRANTS                        ,04/04/2013,3435143,MPA20130404152 12        ,"1,299.50",DARNALL LUNCH CLUB                      ,295216,Unclassified Non Trade,CHARITIES & VOLUNTARY ORGANISA
VS- LUNCH CLUB GRANT          ,8180,GRANTS                        ,04/04/2013,3435145,MPA20130404152 14        ,565.50,GLEADLESS VALLEY LUNCHEON CLUB          ,295224,Unclassified Non Trade,CHARITIES & VOLUNTARY ORGANISA
VS- LUNCH CLUB GRANT          ,8180,GRANTS                        ,04/04/2013,3435146,MPA20130404152 15        ,668.00,DUKE STREET COMMUNITY CENTRE            ,375030,Unclassified Non Trade,COMMUNITY CENTRES             
VS- LUNCH CLUB GRANT          ,8180,GRANTS                        ,04/04/2013,3435147,MPA20130404152 16        ,"1,563.25",ST OSWALDS LUNCHEON CLUB                ,385325,Unclassified Non Trade,CHARITIES & VOLUNTARY ORGANISA
VS- LUNCH CLUB GRANT          ,8180,GRANTS                        ,04/04/2013,3435148,MPA20130404152 17        ,278.25,DORE & TOTLEY DAY CENTRE LUNCHEON CLUB  ,295218,Unclassified Non Trade,CHARITIES & VOLUNTARY ORGANISA
VS- LUNCH CLUB GRANT          ,8180,GRANTS                        ,04/04/2013,3435150,MPA20130404152 19        ,679.50,ST SWITHUNS LUNCH CLUB                  ,295166,Unclassified Non Trade,CHARITIES & VOLUNTARY ORGANISA
VS- LUNCH CLUB GRANT          ,8180,GRANTS                        ,04/04/2013,3435151,MPA20130404152 2         ,713.50,CHRIST CHURCH PITSMOOR LUNCH CLUB       ,321910,Unclassified Non Trade,CHARITIES & VOLUNTARY ORGANISA
VS- LUNCH CLUB GRANT          ,8180,GRANTS                        ,04/04/2013,3435152,MPA20130404152 20        ,405.75,MICHAEL CHURCH LOWEDGES THURS LUNCH CLUB,295189,Unclassified Non Trade,CHARITIES & VOLUNTARY ORGANISA
VS- LUNCH CLUB GRANT          ,8180,GRANTS                        ,04/04/2013,3435153,MPA20130404152 21        ,661.50,ST JOHN'S ABBEYDALE LUNCH CLUB          ,385324,Unclassified Non Trade,CHARITIES & VOLUNTARY ORGANISA
VS- LUNCH CLUB GRANT          ,8180,GRANTS                        ,04/04/2013,3435154,MPA20130404152 22        ,544.50,GRAPEVINE CENTRE LUNCHEON CLUB          ,295190,Unclassified Non Trade,CHARITIES & VOLUNTARY ORGANISA
VS- LUNCH CLUB GRANT          ,8180,GRANTS                        ,04/04/2013,3435155,MPA20130404152 23        ,"1,069.50",PITSMOOR LUNCH CLUB                     ,295194,Unclassified Non Trade,CHARITIES & VOLUNTARY ORGANISA
VS- LUNCH CLUB GRANT          ,8180,GRANTS                        ,04/04/2013,3435156,MPA20130404152 24        ,"1,193.75",THE SALVATION ARMY SHEFFIELD CASTLE     ,327783,Unclassified Non Trade,"HOUSING ASSOCIATIONS, SOCIETIE"
VS- LUNCH CLUB GRANT          ,8180,GRANTS                        ,04/04/2013,3435158,MPA20130404152 26        ,486.75,WADSLEY CHURCH LUNCH CLUB               ,295167,Unclassified Non Trade,CHARITIES & VOLUNTARY ORGANISA
VS- LUNCH CLUB GRANT          ,8180,GRANTS                        ,04/04/2013,3435159,MPA20130404152 27        ,870.25,SHIREGREEN UNITED REFORMED CHURCH       ,295203,Unclassified Non Trade,PLACES OF WORSHIP             
VS- LUNCH CLUB GRANT          ,8180,GRANTS                        ,04/04/2013,3435160,MPA20130404152 28        ,583.00,ST TIMOTHY'S LUNCH CLUB                 ,295163,Unclassified Non Trade,CHARITIES & VOLUNTARY ORGANISA
VS- LUNCH CLUB GRANT          ,8180,GRANTS                        ,04/04/2013,3435161,MPA20130404152 29        ,749.00,MEERSBROOK PARK LUNCH CLUB              ,363027,Unclassified Non Trade,CHARITIES & VOLUNTARY ORGANISA
VS- LUNCH CLUB GRANT          ,8180,GRANTS                        ,04/04/2013,3435162,MPA20130404152 3         ,"1,014.25",CROSSPOOL LUNCH CLUB                    ,321911,Unclassified Non Trade,CHARITIES & VOLUNTARY ORGANISA
VS- LUNCH CLUB GRANT          ,8180,GRANTS                        ,04/04/2013,3435163,MPA20130404152 30        ,"1,004.00",ST BARTHOLOMEWS LUNCH CLUB              ,384447,Unclassified Non Trade,CHARITIES & VOLUNTARY ORGANISA
VS- LUNCH CLUB GRANT          ,8180,GRANTS                        ,04/04/2013,3435164,MPA20130404152 31        ,829.00,ST LEONARD'S LUNCH CLUB                 ,296991,Unclassified Non Trade,CHARITIES & VOLUNTARY ORGANISA
VS- LUNCH CLUB GRANT          ,8180,GRANTS                        ,04/04/2013,3435165,MPA20130404152 32        ,847.00,ST MARY'S LUNCH CLUB                    ,322012,Unclassified Non Trade,CHARITIES & VOLUNTARY ORGANISA
VS- LUNCH CLUB GRANT          ,8180,GRANTS                        ,04/04/2013,3435167,MPA20130404152 34        ,609.50,WILLIAM TEMPLE LUNCH CLUB               ,299806,Unclassified Non Trade,CHARITIES & VOLUNTARY ORGANISA
VS- LUNCH CLUB GRANT          ,8180,GRANTS                        ,04/04/2013,3435169,MPA20130404152 36        ,731.00,FOXHILL & BIRLEY CARR LIVE AT HOME SCHEM,349900,Unclassified Non Trade,CHARITIES & VOLUNTARY ORGANISA
VS- LUNCH CLUB GRANT          ,8180,GRANTS                        ,04/04/2013,3435170,MPA20130404152 37        ,288.50,ST MARKS LUNCH & FRIENDSHIP CLUB        ,301346,Unclassified Non Trade,PLACES OF WORSHIP             
VS- LUNCH CLUB GRANT          ,8180,GRANTS                        ,04/04/2013,3435171,MPA20130404152 38        ,425.00,CENTRAL POINT LUNCHEON CLUB             ,302568,Unclassified Non Trade,CHARITIES & VOLUNTARY ORGANISA
VS- LUNCH CLUB GRANT          ,8180,GRANTS                        ,04/04/2013,3435175,MPA20130404152 41        ,416.75,LOWEDGES LUNCH CLUB                     ,353522,Unclassified Non Trade,CHARITIES & VOLUNTARY ORGANISA
VS- LUNCH CLUB GRANT          ,8180,GRANTS                        ,04/04/2013,3435176,MPA20130404152 42        ,"1,110.50",FRECHEVILLE PARISH DAY CENTRE           ,348612,Unclassified Non Trade,LOCAL GOVERNMENT              
VS- LUNCH CLUB GRANT          ,8180,GRANTS                        ,04/04/2013,3435177,MPA20130404152 43        ,353.25,ANGEL LUNCH CLUB                        ,481463,Unclassified Non Trade,CHARITIES & VOLUNTARY ORGANISA
VS- LUNCH CLUB GRANT          ,8180,GRANTS                        ,04/04/2013,3435178,MPA20130404152 44        ,646.50,WESLEY HALL LUNCH CLUB                  ,511866,Unclassified Non Trade,CHARITIES & VOLUNTARY ORGANISA
VS- LUNCH CLUB GRANT          ,8180,GRANTS                        ,04/04/2013,3435179,MPA20130404152 45        ,973.75,MOSBOROUGH LUNCH & SOCIAL CLUB          ,510333,Leisure Services,"CLUBS & ASSOCIATIONS - SOCIAL,"
VS- LUNCH CLUB GRANT          ,8180,GRANTS                        ,04/04/2013,3435180,MPA20130404152 46        ,932.75,THE THURSDAY CLUB                       ,451641,Unclassified Non Trade,CHARITIES & VOLUNTARY ORGANISA
VS- LUNCH CLUB GRANT          ,8180,GRANTS                        ,04/04/2013,3435182,MPA20130404152 48        ,548.50,MANOR LODGE LUNCHEON CLUB               ,545135,Unclassified Non Trade,CHARITIES & VOLUNTARY ORGANISA
VS- LUNCH CLUB GRANT          ,8180,GRANTS                        ,04/04/2013,3435183,MPA20130404152 49        ,335.75,MADINA ASIAN ELDERLY WOMEN'S LUNCH CLUB ,549528,Unclassified Non Trade,CHARITIES & VOLUNTARY ORGANISA
VS- LUNCH CLUB GRANT          ,8180,GRANTS                        ,04/04/2013,3435184,MPA20130404152 5         ,431.75,HALLAM METHODIST LUNCH CLUB             ,321917,Unclassified Non Trade,CHARITIES & VOLUNTARY ORGANISA
VS- LUNCH CLUB GRANT          ,8180,GRANTS                        ,04/04/2013,3435186,MPA20130404152 51        ,"1,945.00",BIRLEY SPA LUNCH CLUB                   ,295206,Unclassified Non Trade,CHARITIES & VOLUNTARY ORGANISA
VS- LUNCH CLUB GRANT          ,8180,GRANTS                        ,04/04/2013,3435187,MPA20130404152 6         ,278.25,OUGHTIBRIDGE & DISTRICT LUNCH CLUB      ,325339,Unclassified Non Trade,CHARITIES & VOLUNTARY ORGANISA
VS- LUNCH CLUB GRANT          ,8180,GRANTS                        ,04/04/2013,3435189,MPA20130404152 8         ,457.50,ST SAVIOURS LUNCH CLUB                  ,384448,Unclassified Non Trade,CHARITIES & VOLUNTARY ORGANISA
VS- LUNCH CLUB GRANT          ,8180,GRANTS                        ,04/04/2013,3435190,MPA20130404152 9         ,955.25,WOODSEATS METHODIST LUNCH CLUB          ,325667,Unclassified Non Trade,CHARITIES & VOLUNTARY ORGANISA
PURCHASING                    ,9210,CONTINUING NURSING CARE       ,04/04/2013,3434369,J579356 310313           ,"5,734.76",TAPTON GROVE NURSING HOME               ,361826,Social Community Care,NURSING HOMES                 
ADULT SOCIAL CARE PURCHASING  ,9210,CONTINUING NURSING CARE       ,04/04/2013,3434370,J579610 310313           ,"1,832.00",BUPA CARE SERVICES                      ,574067,Social Community Care,RESIDENTIAL CARE HOMES        
ADULT SOCIAL CARE PURCHASING  ,4260,NURSING COSTS RECOVERED       ,04/04/2013,3434372,J586611 310313           ,647.09,FULWOOD LODGE NURSING HOME              ,361775,Social Community Care,NURSING HOMES                 
ADULT SOCIAL CARE PURCHASING  ,9200,CONTINUING RESIDENTIAL CARE   ,04/04/2013,3434375,J588565 280413           ,"7,243.48",SANDFORD HOUSE                          ,361790,Social Community Care,RESIDENTIAL CARE HOMES        
PURCHASING                    ,9200,CONTINUING RESIDENTIAL CARE   ,04/04/2013,3434375,J588565 280413           ,"18,608.72",SANDFORD HOUSE                          ,361790,Social Community Care,RESIDENTIAL CARE HOMES        
ADULT SOCIAL CARE PURCHASING  ,9210,CONTINUING NURSING CARE       ,04/04/2013,3434376,J588568 280413           ,"15,973.96",MIMOSA HEALTHCARE LIMITED               ,362253,Social Community Care,RESIDENTIAL CARE HOMES        
ADULT SOCIAL CARE PURCHASING  ,9200,CONTINUING RESIDENTIAL CARE   ,04/04/2013,3434377,J588593 280413           ,"1,599.68",PARK LODGE CARE HOME                    ,361949,Social Community Care,RESIDENTIAL CARE HOMES        
ADULT SOCIAL CARE PURCHASING  ,9210,CONTINUING NURSING CARE       ,04/04/2013,3434378,J588595 280413           ,"12,981.20",FULWOOD LODGE NURSING HOME              ,361775,Social Community Care,NURSING HOMES                 
PURCHASING                    ,9210,CONTINUING NURSING CARE       ,04/04/2013,3434379,J588597 280413           ,"5,734.76",TAPTON GROVE NURSING HOME               ,361826,Social Community Care,NURSING HOMES                 
ADULT SOCIAL CARE PURCHASING  ,9200,CONTINUING RESIDENTIAL CARE   ,04/04/2013,3434380,J588600 280413           ,"2,200.00",THE GLEN PRIVATE NURSING                ,361760,Social Community Care,NURSING HOMES                 
ADULT SOCIAL CARE PURCHASING  ,9200,CONTINUING RESIDENTIAL CARE   ,04/04/2013,3434381,J588603 280413           ,"7,900.00",TAPTON EDGE REST HOME LTD               ,361786,Social Community Care,REST & RETIREMENT HOMES       
ADULT SOCIAL CARE PURCHASING  ,9200,CONTINUING RESIDENTIAL CARE   ,04/04/2013,3434382,J588612 280413           ,"9,300.00",TWELVETREES RESIDENTIAL HOME            ,361849,Social Community Care,RESIDENTIAL CARE HOMES        
ADULT SOCIAL CARE PURCHASING  ,9200,CONTINUING RESIDENTIAL CARE   ,04/04/2013,3434383,J588618 280413           ,"1,412.00",THE GREEN                               ,361956,Social Community Care,NURSING HOMES                 
ADULT SOCIAL CARE PURCHASING  ,9210,CONTINUING NURSING CARE       ,04/04/2013,3434383,J588618 280413           ,"1,564.00",THE GREEN                               ,361956,Social Community Care,NURSING HOMES                 
PURCHASING LEARNING DISABILITI,9200,CONTINUING RESIDENTIAL CARE   ,04/04/2013,3434384,J588622 280413           ,"13,019.88", GUINNESS NORTHERN COUNTIES             ,362173,Social Community Care,RESIDENTIAL CARE HOMES        
PDSI PURCHASING               ,9200,CONTINUING RESIDENTIAL CARE   ,04/04/2013,3434384,J588622 280413           ,"1,240.68", GUINNESS NORTHERN COUNTIES             ,362173,Social Community Care,RESIDENTIAL CARE HOMES        
ADULT SOCIAL CARE PURCHASING  ,9200,CONTINUING RESIDENTIAL CARE   ,04/04/2013,3434385,J588633 280413           ,"12,640.00",HADDON COURT NURSING HOME               ,361916,Social Community Care,NURSING HOMES                 
ADULT SOCIAL CARE PURCHASING  ,9210,CONTINUING NURSING CARE       ,04/04/2013,3434385,J588633 280413           ,"20,812.00",HADDON COURT NURSING HOME               ,361916,Social Community Care,NURSING HOMES                 
ADULT SOCIAL CARE PURCHASING  ,9200,CONTINUING RESIDENTIAL CARE   ,04/04/2013,3434386,J588634 280413           ,"6,320.00",TAPTON COURT NURSING HOME               ,362076,Social Community Care,NURSING HOMES                 
ADULT SOCIAL CARE PURCHASING  ,9210,CONTINUING NURSING CARE       ,04/04/2013,3434386,J588634 280413           ,"19,344.00",TAPTON COURT NURSING HOME               ,362076,Social Community Care,NURSING HOMES                 
ADULT SOCIAL CARE PURCHASING  ,9200,CONTINUING RESIDENTIAL CARE   ,04/04/2013,3434387,J588636 280413           ,"1,580.00",APRIL PARK                              ,361944,Social Community Care,RESIDENTIAL CARE HOMES        
ADULT SOCIAL CARE PURCHASING  ,9210,CONTINUING NURSING CARE       ,04/04/2013,3434387,J588636 280413           ,"3,572.58",APRIL PARK                              ,361944,Social Community Care,RESIDENTIAL CARE HOMES        
ADULT SOCIAL CARE PURCHASING  ,9200,CONTINUING RESIDENTIAL CARE   ,04/04/2013,3434388,J588638 280413           ,"20,604.72",EAGLE HOUSE CARE HOME                   ,361977,Social Community Care,RESIDENTIAL CARE HOMES        
PURCHASING LEARNING DISABILITI,9200,CONTINUING RESIDENTIAL CARE   ,04/04/2013,3434388,J588638 280413           ,"1,580.00",EAGLE HOUSE CARE HOME                   ,361977,Social Community Care,RESIDENTIAL CARE HOMES        
PURCHASING                    ,9200,CONTINUING RESIDENTIAL CARE   ,04/04/2013,3434388,J588638 280413           ,"4,802.52",EAGLE HOUSE CARE HOME                   ,361977,Social Community Care,RESIDENTIAL CARE HOMES        
PURCHASING                    ,9210,CONTINUING NURSING CARE       ,04/04/2013,3434388,J588638 280413           ,"4,048.72",EAGLE HOUSE CARE HOME                   ,361977,Social Community Care,RESIDENTIAL CARE HOMES        
ADULT SOCIAL CARE PURCHASING  ,9210,CONTINUING NURSING CARE       ,04/04/2013,3434388,J588638 280413           ,"12,652.56",EAGLE HOUSE CARE HOME                   ,361977,Social Community Care,RESIDENTIAL CARE HOMES        
PURCHASING LEARNING DISABILITI,9200,CONTINUING RESIDENTIAL CARE   ,04/04/2013,3434389,J588640 280413           ,"5,350.12",UNITED RESPONSE(GATESHEAD)              ,362032,Unclassified Non Trade,CHARITIES & VOLUNTARY ORGANISA
ADULT SOCIAL CARE PURCHASING  ,9200,CONTINUING RESIDENTIAL CARE   ,04/04/2013,3434390,J588648 280413           ,"17,440.00",HALLAMSHIRE REST HOME                   ,362093,Social Community Care,REST & RETIREMENT HOMES       
ADULT SOCIAL CARE PURCHASING  ,9200,CONTINUING RESIDENTIAL CARE   ,04/04/2013,3434391,J588651 280413           ,"1,569.76",TREETON GRANGE                          ,362005,Social Community Care,NURSING HOMES                 
ADULT SOCIAL CARE PURCHASING  ,9210,CONTINUING NURSING CARE       ,04/04/2013,3434391,J588651 280413           ,"3,128.00",TREETON GRANGE                          ,362005,Social Community Care,NURSING HOMES                 
ADULT SOCIAL CARE PURCHASING  ,9200,CONTINUING RESIDENTIAL CARE   ,04/04/2013,3434392,J588657 280413           ,"17,976.00",HARTWELL HOUSE                          ,361785,Social Community Care,NURSING HOMES                 
ADULT SOCIAL CARE PURCHASING  ,9200,CONTINUING RESIDENTIAL CARE   ,04/04/2013,3434393,J588661 280413           ,"2,022.80",ALPINE HEALTHCARE                       ,362125,Social Community Care,NURSING HOMES                 
ADULT SOCIAL CARE PURCHASING  ,9210,CONTINUING NURSING CARE       ,04/04/2013,3434393,J588661 280413           ,"27,587.97",ALPINE HEALTHCARE                       ,362125,Social Community Care,NURSING HOMES                 
ADULT SOCIAL CARE PURCHASING  ,9200,CONTINUING RESIDENTIAL CARE   ,04/04/2013,3434394,J588666 280413           ,"3,340.00",TAPTONHOLME                             ,208851,Social Community Care,RESIDENTIAL CARE HOMES        
PURCHASING                    ,9200,CONTINUING RESIDENTIAL CARE   ,04/04/2013,3434395,J588675 280413           ,"8,358.60",FITZWILLIAM LODGE NH (PD)               ,361908,Social Community Care,NURSING HOMES                 
PURCHASING LEARNING DISABILITI,9200,CONTINUING RESIDENTIAL CARE   ,04/04/2013,3434396,J588687 280413           ,"7,982.04",11 FRASER DRIVE                         ,361875,Social Community Care,RESIDENTIAL CARE HOMES        
PURCHASING LEARNING DISABILITI,9200,CONTINUING RESIDENTIAL CARE   ,04/04/2013,3434397,J588689 280413           ,"7,746.36",169 GLEADLESS COMMON                    ,361822,Social Community Care,RESIDENTIAL CARE HOMES        
PURCHASING LEARNING DISABILITI,9200,CONTINUING RESIDENTIAL CARE   ,04/04/2013,3434398,J588694 280413           ,"4,522.92",15 GLEADLESS VIEW                       ,362168,Social Community Care,RESIDENTIAL CARE HOMES        
PURCHASING LEARNING DISABILITI,9200,CONTINUING RESIDENTIAL CARE   ,04/04/2013,3434399,J588697 280413           ,"2,684.44",9 FRASER DRIVE                          ,361861,Social Community Care,RESIDENTIAL CARE HOMES        
ADULT SOCIAL CARE PURCHASING  ,9200,CONTINUING RESIDENTIAL CARE   ,04/04/2013,3434399,J588697 280413           ,"1,470.16",9 FRASER DRIVE                          ,361861,Social Community Care,RESIDENTIAL CARE HOMES        
ADULT SOCIAL CARE PURCHASING  ,9200,CONTINUING RESIDENTIAL CARE   ,04/04/2013,3434400,J588721 280413           ,"1,580.00",REASON CARE LTD T/A ELM LODGE CARE HOME ,433486,Social Community Care,NURSING HOMES                 
PURCHASING                    ,9210,CONTINUING NURSING CARE       ,04/04/2013,3434401,J588757 280413           ,"5,140.59",FAIRWINDS                               ,397558,Social Community Care,RESIDENTIAL CARE HOMES        
PURCHASING LEARNING DISABILITI,9200,CONTINUING RESIDENTIAL CARE   ,04/04/2013,3434402,J588760 280413           ,"12,870.36",ROSEBERRY CARE CENTRES UK LTD           ,412186,Social Community Care,RESIDENTIAL CARE HOMES        
PURCHASING LEARNING DISABILITI,9200,CONTINUING RESIDENTIAL CARE   ,04/04/2013,3434403,J588786 280413           ,"7,409.88",GRETTON HOUSE                           ,461869,Social Community Care,NURSING HOMES                 
PURCHASING LEARNING DISABILITI,9200,CONTINUING RESIDENTIAL CARE   ,04/04/2013,3434404,J588834 280413           ,"5,400.00",ROTHERHAM HEALTHCARE LTD                ,562485,Social Community Care,RESIDENTIAL CARE HOMES        
ADULT SOCIAL CARE PURCHASING  ,9210,CONTINUING NURSING CARE       ,04/04/2013,3434404,J588834 280413           ,"12,639.96",ROTHERHAM HEALTHCARE LTD                ,562485,Social Community Care,RESIDENTIAL CARE HOMES        
PURCHASING                    ,9210,CONTINUING NURSING CARE       ,04/04/2013,3434404,J588834 280413           ,"2,700.00",ROTHERHAM HEALTHCARE LTD                ,562485,Social Community Care,RESIDENTIAL CARE HOMES        
PURCHASING LEARNING DISABILITI,9210,CONTINUING NURSING CARE       ,04/04/2013,3434404,J588834 280413           ,"10,816.88",ROTHERHAM HEALTHCARE LTD                ,562485,Social Community Care,RESIDENTIAL CARE HOMES        
PURCHASING LEARNING DISABILITI,9200,CONTINUING RESIDENTIAL CARE   ,04/04/2013,3434405,J588846 280413           ,"8,396.00",HEATHCOTES LD LLP                       ,571496,Social Community Care,RESIDENTIAL CARE HOMES        
PURCHASING LEARNING DISABILITI,9240,SUPPORTED LIVING CARE         ,04/04/2013,3434406,J589525 280413           ,"2,738.80",NORTHERN LIFE CARE LTD T/A UBU          ,361991,Social Community Care,RESIDENTIAL CARE HOMES        
ADULT SOCIAL CARE PURCHASING  ,9200,SHORT TERM RESIDENTIAL CARE   ,04/04/2013,3434408,J586584 030313           ,902.85,ASH HOUSE RESIDENTIAL HOME              ,361901,Social Community Care,RESIDENTIAL CARE HOMES        
PURCHASING LEARNING DISABILITI,9200,SHORT TERM RESIDENTIAL CARE   ,04/04/2013,3434409,J587924 030313           ,"6,942.86",ROSEBERRY CARE CENTRES UK LTD           ,412186,Social Community Care,RESIDENTIAL CARE HOMES        
ADULT SOCIAL CARE PURCHASING  ,9200,SHORT TERM RESIDENTIAL CARE   ,04/04/2013,3434410,J589518 310313           ,502.71,GRANGE CRESCENT                         ,361898,Social Community Care,RESIDENTIAL CARE HOMES        
ADULT SOCIAL CARE PURCHASING  ,4260,NURSING COSTS RECOVERED       ,04/04/2013,3434596,J587627 310313           ,"1,324.12",NORTHFIELD NURSING HOME                 ,361770,Social Community Care,NURSING HOMES                 
ADULT SOCIAL CARE PURCHASING  ,4260,RESIDENTIAL COSTS RECOVERED   ,04/04/2013,3434597,J587629 310313           ,"1,093.95",NORTH HILL RESIDENTIAL HOME             ,362254,Social Community Care,RESIDENTIAL CARE HOMES        
ADULT SOCIAL CARE PURCHASING  ,9200,CONTINUING RESIDENTIAL CARE   ,04/04/2013,3434598,J587631 310313           ,"17,586.43",BROOKLANDS                              ,368344,Social Community Care,RESIDENTIAL CARE HOMES        
ADULT SOCIAL CARE PURCHASING  ,4260,RESIDENTIAL COSTS RECOVERED   ,04/04/2013,3434599,J587632 310313           ,573.56,NORTON LEES HALL/LODGE                  ,433750,Unclassified Non Trade,SCHOOLS - LOCAL AUTHORITY     
PURCHASING                    ,9200,CONTINUING RESIDENTIAL CARE   ,04/04/2013,3434600,J588562 280413           ,"2,200.00",SANDFORD HOUSE LTD                      ,578938,Social Community Care,RESIDENTIAL CARE HOMES        
ADULT SOCIAL CARE PURCHASING  ,9200,CONTINUING RESIDENTIAL CARE   ,04/04/2013,3434601,J588576 280413           ,"1,521.68",EAST BANK ROAD (258A)                   ,362007,Social Community Care,RESIDENTIAL CARE HOMES        
PURCHASING LEARNING DISABILITI,9200,CONTINUING RESIDENTIAL CARE   ,04/04/2013,3434601,J588576 280413           ,"2,771.76",EAST BANK ROAD (258A)                   ,362007,Social Community Care,RESIDENTIAL CARE HOMES        
ADULT SOCIAL CARE PURCHASING  ,9200,CONTINUING RESIDENTIAL CARE   ,04/04/2013,3434602,J588577 280413           ,"2,734.08",EAST BANK ROAD (458A)                   ,361789,Social Community Care,RESIDENTIAL CARE HOMES        
PURCHASING LEARNING DISABILITI,9200,CONTINUING RESIDENTIAL CARE   ,04/04/2013,3434602,J588577 280413           ,"14,238.36",EAST BANK ROAD (458A)                   ,361789,Social Community Care,RESIDENTIAL CARE HOMES        
ADULT SOCIAL CARE PURCHASING  ,9200,CONTINUING RESIDENTIAL CARE   ,04/04/2013,3434603,J588590 280413           ,"2,460.00",NEWFIELD VIEW                           ,361863,Social Community Care,NURSING HOMES                 
PURCHASING LEARNING DISABILITI,9200,CONTINUING RESIDENTIAL CARE   ,04/04/2013,3434603,J588590 280413           ,"18,312.80",NEWFIELD VIEW                           ,361863,Social Community Care,NURSING HOMES                 
ADULT SOCIAL CARE PURCHASING  ,9200,CONTINUING RESIDENTIAL CARE   ,04/04/2013,3434604,J588591 280413           ,"11,708.00",ROSE COTTAGE CARE HOME                  ,361940,Social Community Care,NURSING HOMES                 
ADULT SOCIAL CARE PURCHASING  ,9210,CONTINUING NURSING CARE       ,04/04/2013,3434604,J588591 280413           ,"4,752.00",ROSE COTTAGE CARE HOME                  ,361940,Social Community Care,NURSING HOMES                 
ADULT SOCIAL CARE PURCHASING  ,9200,CONTINUING RESIDENTIAL CARE   ,04/04/2013,3434605,J588596 280413           ,"17,292.00",ROSEBANK CARE HOME                      ,361802,Social Community Care,RESIDENTIAL CARE HOMES        
PURCHASING LEARNING DISABILITI,9210,CONTINUING NURSING CARE       ,04/04/2013,3434606,J588608 280413           ,"2,437.20",OAKWOOD (DEVON COURT)                   ,362087,Social Community Care,RESIDENTIAL CARE HOMES        
PURCHASING LEARNING DISABILITI,9210,CONTINUING NURSING CARE       ,04/04/2013,3434607,J588610 280413           ,"14,943.92",ELMWOOD HOUSE NURSING HOME              ,362098,Social Community Care,NURSING HOMES                 
ADULT SOCIAL CARE PURCHASING  ,9200,CONTINUING RESIDENTIAL CARE   ,04/04/2013,3434608,J588616 280413           ,"7,295.40",SWALLOWNEST CARE HOME                   ,361827,Social Community Care,NURSING HOMES                 
ADULT SOCIAL CARE PURCHASING  ,9210,CONTINUING NURSING CARE       ,04/04/2013,3434608,J588616 280413           ,"6,256.00",SWALLOWNEST CARE HOME                   ,361827,Social Community Care,NURSING HOMES                 
ADULT SOCIAL CARE PURCHASING  ,9210,CONTINUING NURSING CARE       ,04/04/2013,3434609,J588621 280413           ,"1,892.92",DERWENT LODGE                           ,362172,Social Community Care,NURSING HOMES                 
PURCHASING LEARNING DISABILITI,9240,SUPPORTED LIVING CARE         ,04/04/2013,3434610,J588626 280413           ,861.12,UNITED RESPONSE                         ,209238,Unclassified Non Trade,CHARITIES & VOLUNTARY ORGANISA
ADULT SOCIAL CARE PURCHASING  ,9200,CONTINUING RESIDENTIAL CARE   ,04/04/2013,3434611,J588630 280413           ,"41,748.00",NIGHTINGALES RES.HOME                   ,361897,Social Community Care,RESIDENTIAL CARE HOMES        
ADULT SOCIAL CARE PURCHASING  ,9200,CONTINUING RESIDENTIAL CARE   ,04/04/2013,3434613,J588639 280413           ,"6,420.00",PRIOR BANK HOUSE                        ,361772,Social Community Care,RESIDENTIAL CARE HOMES        
ADULT SOCIAL CARE PURCHASING  ,9200,CONTINUING RESIDENTIAL CARE   ,04/04/2013,3434614,J588642 280413           ,"12,834.00",DEVAGLADE LIMITED T/A AARON VIEW        ,486043,Social Community Care,NURSING HOMES                 
PDSI PURCHASING               ,9200,CONTINUING RESIDENTIAL CARE   ,04/04/2013,3434614,J588642 280413           ,"1,585.56",DEVAGLADE LIMITED T/A AARON VIEW        ,486043,Social Community Care,NURSING HOMES                 
PURCHASING LEARNING DISABILITI,9200,CONTINUING RESIDENTIAL CARE   ,04/04/2013,3434615,J588643 280413           ,"7,858.16",ORCHARD CARE RESIDENTIAL HOME           ,362100,Social Community Care,NURSING HOMES                 
ADULT SOCIAL CARE PURCHASING  ,9200,CONTINUING RESIDENTIAL CARE   ,04/04/2013,3434615,J588643 280413           ,"6,595.40",ORCHARD CARE RESIDENTIAL HOME           ,362100,Social Community Care,NURSING HOMES                 
ADULT SOCIAL CARE PURCHASING  ,9200,CONTINUING RESIDENTIAL CARE   ,04/04/2013,3434616,J588647 280413           ,"2,368.00",DARWIN HOUSE RESIDENTIAL CARE           ,361759,Social Community Care,RESIDENTIAL CARE HOMES        
ADULT SOCIAL CARE PURCHASING  ,9200,CONTINUING RESIDENTIAL CARE   ,04/04/2013,3434617,J588649 280413           ,"24,148.00",DARNALL VIEW RESIDENTIAL HOME           ,362170,Social Community Care,RESIDENTIAL CARE HOMES        
ADULT SOCIAL CARE PURCHASING  ,9210,CONTINUING NURSING CARE       ,04/04/2013,3434619,J588654 280413           ,"14,484.00",PEXTON GRANGE LTD                       ,361942,Social Community Care,NURSING HOMES                 
ADULT SOCIAL CARE PURCHASING  ,9200,CONTINUING RESIDENTIAL CARE   ,04/04/2013,3434620,J588667 280413           ,"26,438.15",AARON HOUSE                             ,361752,Social Community Care,RESIDENTIAL CARE HOMES        
ADULT SOCIAL CARE PURCHASING  ,9200,CONTINUING RESIDENTIAL CARE   ,04/04/2013,3434621,J588671 280413           ,"2,960.00",NORTHFIELD NURSING HOME                 ,361770,Social Community Care,NURSING HOMES                 
ADULT SOCIAL CARE PURCHASING  ,9210,CONTINUING NURSING CARE       ,04/04/2013,3434621,J588671 280413           ,"26,703.20",NORTHFIELD NURSING HOME                 ,361770,Social Community Care,NURSING HOMES                 
ADULT SOCIAL CARE PURCHASING  ,9200,CONTINUING RESIDENTIAL CARE   ,04/04/2013,3434622,J588672 280413           ,"1,824.00",OVERDALE                                ,361771,Social Community Care,REST & RETIREMENT HOMES       
PURCHASING LEARNING DISABILITI,9240,SUPPORTED LIVING CARE         ,04/04/2013,3434623,J588688 280413           ,"2,881.44",15 COLLEY ROAD                          ,361823,Social Community Care,DISABILITY & SPECIAL NEEDS - S
PURCHASING LEARNING DISABILITI,9240,SUPPORTED LIVING CARE         ,04/04/2013,3434624,J588691 280413           ,"3,401.76",261 HIGH GREAVE                         ,362155,Social Community Care,DISABILITY & SPECIAL NEEDS - S
ADULT SOCIAL CARE PURCHASING  ,9240,SUPPORTED LIVING CARE         ,04/04/2013,3434624,J588691 280413           ,"2,267.84",261 HIGH GREAVE                         ,362155,Social Community Care,DISABILITY & SPECIAL NEEDS - S
PURCHASING LEARNING DISABILITI,9240,SUPPORTED LIVING CARE         ,04/04/2013,3434625,J588692 280413           ,"1,494.88",2-8 STALKER LEES COURT                  ,362161,Social Community Care,DISABILITY & SPECIAL NEEDS - S
PURCHASING LEARNING DISABILITI,9200,CONTINUING RESIDENTIAL CARE   ,04/04/2013,3434626,J588693 280413           ,"6,581.84",3 STATION ROAD                          ,362166,Social Community Care,RESIDENTIAL CARE HOMES        
ADULT SOCIAL CARE PURCHASING  ,9200,CONTINUING RESIDENTIAL CARE   ,04/04/2013,3434627,J588695 280413           ,"1,474.28",5 STATION ROAD                          ,361874,Social Community Care,RESIDENTIAL CARE HOMES        
PURCHASING LEARNING DISABILITI,9200,CONTINUING RESIDENTIAL CARE   ,04/04/2013,3434627,J588695 280413           ,"4,058.60",5 STATION ROAD                          ,361874,Social Community Care,RESIDENTIAL CARE HOMES        
PURCHASING LEARNING DISABILITI,9240,SUPPORTED LIVING CARE         ,04/04/2013,3434628,J588698 280413           ,"4,110.24",930 GLEADLESS ROAD                      ,361807,Social Community Care,DISABILITY & SPECIAL NEEDS - S
ADULT SOCIAL CARE PURCHASING  ,9200,CONTINUING RESIDENTIAL CARE   ,04/04/2013,3434629,J588699 280413           ,"22,680.00",SILVER LODGE CARE HOME                  ,361763,Social Community Care,NURSING HOMES                 
ADULT SOCIAL CARE PURCHASING  ,9200,CONTINUING RESIDENTIAL CARE   ,04/04/2013,3434630,J588714 280413           ,"8,800.00",ROSEBERRY CARE CENTRES GB LTD           ,361953,Social Community Care,NURSING HOMES                 
ADULT SOCIAL CARE PURCHASING  ,9210,CONTINUING NURSING CARE       ,04/04/2013,3434630,J588714 280413           ,"16,394.80",ROSEBERRY CARE CENTRES GB LTD           ,361953,Social Community Care,NURSING HOMES                 
ADULT SOCIAL CARE PURCHASING  ,9200,CONTINUING RESIDENTIAL CARE   ,04/04/2013,3434631,J588716 280413           ,"20,720.00",NORTH HILL RESIDENTIAL HOME             ,362254,Social Community Care,RESIDENTIAL CARE HOMES        
PURCHASING LEARNING DISABILITI,9200,CONTINUING RESIDENTIAL CARE   ,04/04/2013,3434632,J588719 280413           ,"3,100.08",SHEFFIELD CHESHIRE HOME                 ,361768,Social Community Care,NURSING HOMES                 
ADULT SOCIAL CARE PURCHASING  ,9210,CONTINUING NURSING CARE       ,04/04/2013,3434632,J588719 280413           ,"23,602.52",SHEFFIELD CHESHIRE HOME                 ,361768,Social Community Care,NURSING HOMES                 
PDSI PURCHASING               ,9210,CONTINUING NURSING CARE       ,04/04/2013,3434632,J588719 280413           ,"27,246.24",SHEFFIELD CHESHIRE HOME                 ,361768,Social Community Care,NURSING HOMES                 
ADULT SOCIAL CARE PURCHASING  ,9220,CONTINUING BLOCK BOOKED       ,04/04/2013,3434632,J588719 280413           ,"1,169.81",SHEFFIELD CHESHIRE HOME                 ,361768,Social Community Care,NURSING HOMES                 
ADULT SOCIAL CARE PURCHASING  ,9200,CONTINUING RESIDENTIAL CARE   ,04/04/2013,3434633,J588722 280413           ,"3,160.00",SEVENHILLS NURSING                      ,362104,Social Community Care,NURSING HOMES                 
ADULT SOCIAL CARE PURCHASING  ,9210,CONTINUING NURSING CARE       ,04/04/2013,3434633,J588722 280413           ,"8,140.00",SEVENHILLS NURSING                      ,362104,Social Community Care,NURSING HOMES                 
PURCHASING LEARNING DISABILITI,9200,CONTINUING RESIDENTIAL CARE   ,04/04/2013,3434634,J588724 280413           ,"4,912.84",NORTHERN LIFE CARE LTD T/A UBU          ,361991,Social Community Care,RESIDENTIAL CARE HOMES        
PURCHASING LEARNING DISABILITI,9200,CONTINUING RESIDENTIAL CARE   ,04/04/2013,3434635,J588725 280413           ,"8,274.28",THE DAVID LEWIS CENTRE                  ,335613,Unclassified Non Trade,CHARITIES & VOLUNTARY ORGANISA
ADULT SOCIAL CARE PURCHASING  ,9200,CONTINUING RESIDENTIAL CARE   ,04/04/2013,3434636,J588726 280413           ,"1,627.24",ST CECILIAS RESIDENTIAL HOME            ,370172,Social Community Care,RESIDENTIAL CARE HOMES        
PURCHASING LEARNING DISABILITI,9240,SUPPORTED LIVING CARE         ,04/04/2013,3434637,J588737 280413           ,992.20,2-8 STALKER LEES COURT                  ,362161,Social Community Care,DISABILITY & SPECIAL NEEDS - S
PURCHASING LEARNING DISABILITI,9240,SUPPORTED LIVING CARE         ,04/04/2013,3434638,J588738 280413           ,992.20,2-8 STALKER LEES COURT                  ,362161,Social Community Care,DISABILITY & SPECIAL NEEDS - S
PURCHASING LEARNING DISABILITI,9240,SUPPORTED LIVING CARE         ,04/04/2013,3434639,J588739 280413           ,992.20,2-8 STALKER LEES COURT                  ,362161,Social Community Care,DISABILITY & SPECIAL NEEDS - S
PURCHASING LEARNING DISABILITI,9200,CONTINUING RESIDENTIAL CARE   ,04/04/2013,3434640,J588758 280413           ,"5,212.36",SHAFTESBURY HOUSE                       ,403791,Unclassified Non Trade,CHARITIES & VOLUNTARY ORGANISA
ADULT SOCIAL CARE PURCHASING  ,9210,CONTINUING NURSING CARE       ,04/04/2013,3434641,J588768 280413           ,"1,995.60",ROBINSON HOUSE                          ,430743,Social Community Care,NURSING HOMES                 
PURCHASING LEARNING DISABILITI,9200,CONTINUING RESIDENTIAL CARE   ,04/04/2013,3434642,J588769 280413           ,"6,184.84",PRIORY LODGE                            ,430728,Social Community Care,RESIDENTIAL CARE HOMES        
ADULT SOCIAL CARE PURCHASING  ,9200,CONTINUING RESIDENTIAL CARE   ,04/04/2013,3434643,J588772 280413           ,"30,864.00",NORTON LEES HALL/LODGE                  ,433750,Unclassified Non Trade,SCHOOLS - LOCAL AUTHORITY     
PURCHASING                    ,9210,CONTINUING NURSING CARE       ,04/04/2013,3434644,J588775 280413           ,"9,487.84",NEVILLE HEALTH CARE LTD                 ,438387,Social Community Care,RESIDENTIAL CARE HOMES        
PURCHASING LEARNING DISABILITI,9200,CONTINUING RESIDENTIAL CARE   ,04/04/2013,3434645,J588778 280413           ,"7,696.44",AALPS                                   ,416380,Unclassified Non Trade,SCHOOLS - SPECIAL             
PURCHASING LEARNING DISABILITI,9200,CONTINUING RESIDENTIAL CARE   ,04/04/2013,3434646,J588780 280413           ,"18,098.68",REDCLIFFE HOUSE                         ,446985,Facilities Management,GUEST HOUSES                  
ADULT SOCIAL CARE PURCHASING  ,9210,CONTINUING NURSING CARE       ,04/04/2013,3434647,J588781 280413           ,"1,564.00",OLIVET                                  ,456471,Social Community Care,NURSING HOMES                 
PURCHASING LEARNING DISABILITI,9240,SUPPORTED LIVING CARE         ,04/04/2013,3434648,J588799 280413           ,"1,347.52",212 SICEY AVENUE                        ,492717,Social Community Care,DISABILITY & SPECIAL NEEDS - S
ADULT SOCIAL CARE PURCHASING  ,9240,SUPPORTED LIVING CARE         ,04/04/2013,3434649,J588801 280413           ,894.56,1 BLACKBERRY FLATS                      ,493437,Social Community Care,SHELTERED HOUSING             
PURCHASING LEARNING DISABILITI,9240,SUPPORTED LIVING CARE         ,04/04/2013,3434650,J588802 280413           ,894.56,37 HOLLINSEND ROAD                      ,493438,Social Community Care,DISABILITY & SPECIAL NEEDS - S
ADULT SOCIAL CARE PURCHASING  ,9200,CONTINUING RESIDENTIAL CARE   ,04/04/2013,3434651,J588808 280413           ,"1,580.00",PILLING CARE HOME                       ,513118,Social Community Care,RESIDENTIAL CARE HOMES        
ADULT SOCIAL CARE PURCHASING  ,9210,CONTINUING NURSING CARE       ,04/04/2013,3434652,J588825 280413           ,"1,564.00",THE POPLARS NURSING HOME                ,553979,Social Community Care,NURSING HOMES                 
PURCHASING                    ,9200,CONTINUING RESIDENTIAL CARE   ,04/04/2013,3434653,J588831 280413           ,"2,370.16",BIRMINGHAM CITY COUNCIL                 ,560253,Unclassified Non Trade,COUNCILS                      
PURCHASING LEARNING DISABILITI,9210,CONTINUING NURSING CARE       ,04/04/2013,3434654,J588838 280413           ,"4,500.00",REDLANDS CARE HOME (C/O CASTLEBECK CARE),564790,Social Community Care,RESIDENTIAL CARE HOMES        
PURCHASING                    ,9210,CONTINUING NURSING CARE       ,04/04/2013,3434655,J588839 280413           ,"6,633.60",PRECEPTORY LODGE                        ,565226,Social Community Care,RESIDENTIAL CARE HOMES        
PURCHASING LEARNING DISABILITI,9200,CONTINUING RESIDENTIAL CARE   ,04/04/2013,3434656,J579550 310313           ,"3,571.24",HOLLY HOUSE                             ,464393,Social Community Care,RESIDENTIAL CARE HOMES        
ADULT SOCIAL CARE PURCHASING  ,4260,NURSING COSTS RECOVERED       ,04/04/2013,3434658,J581843 310313           ,664.11,ROSEBERRY CARE CENTRES GB LTD           ,361953,Social Community Care,NURSING HOMES                 
ADULT SOCIAL CARE PURCHASING  ,4260,RESIDENTIAL COSTS RECOVERED   ,04/04/2013,3434660,J583188 310313           ,567.77,ROSE COTTAGE CARE HOME                  ,361940,Social Community Care,NURSING HOMES                 
ADULT SOCIAL CARE PURCHASING  ,4260,NURSING COSTS RECOVERED       ,04/04/2013,3434660,J583188 310313           ,764.94,ROSE COTTAGE CARE HOME                  ,361940,Social Community Care,NURSING HOMES                 
ADULT SOCIAL CARE PURCHASING  ,9200,SHORT TERM RESIDENTIAL CARE   ,04/04/2013,3434661,J587605 030313           ,355.00,MIDHURST ROAD                           ,361801,Social Community Care,RESIDENTIAL CARE HOMES        
ADULT SOCIAL CARE PURCHASING  ,9200,SHORT TERM RESIDENTIAL CARE   ,04/04/2013,3434662,J587606 030313           ,"1,161.00",LOWER BOWSHAW VIEW NH                   ,362101,Social Community Care,NURSING HOMES                 
ADULT SOCIAL CARE PURCHASING  ,9200,SHORT TERM RESIDENTIAL CARE   ,04/04/2013,3434663,J587607 030313           ,"2,394.00",ROSEBERRY CARE CENTRES GB LTD           ,362099,Social Community Care,RESIDENTIAL CARE HOMES        
ADULT SOCIAL CARE PURCHASING  ,9200,SHORT TERM RESIDENTIAL CARE   ,04/04/2013,3434664,J588489 310313           ,355.00,GRANGE CRESCENT                         ,361898,Social Community Care,RESIDENTIAL CARE HOMES        
ADULT SOCIAL CARE PURCHASING  ,9200,SHORT TERM RESIDENTIAL CARE   ,04/04/2013,3434666,J588491 310313           ,"1,050.43",KNOWLE HILL                             ,361798,Social Community Care,RESIDENTIAL CARE HOMES        
ADULT SOCIAL CARE PURCHASING  ,9200,SHORT TERM RESIDENTIAL CARE   ,04/04/2013,3434667,J588493 310313           ,"1,523.57",LEAHYRST RESIDENTIAL CARE HOME          ,361842,Social Community Care,RESIDENTIAL CARE HOMES        
DRUG & ALCOHOL MH -PURCHASING ,9200,SHORT TERM RESIDENTIAL CARE   ,04/04/2013,3434668,J588494 310313           ,"6,180.00",SHEFF ALCOHOL ADV.SERVICE               ,361777,Medical ,ALCOHOL MISUSE - ADVICE & COUN
ADULT SOCIAL CARE PURCHASING  ,9200,SHORT TERM RESIDENTIAL CARE   ,04/04/2013,3434672,J586432 030313           ,"1,596.00",ROSEBERRY CARE CENTRES GB LTD           ,361904,Social Community Care,NURSING HOMES                 
ADULT SOCIAL CARE PURCHASING  ,9200,SHORT TERM RESIDENTIAL CARE   ,04/04/2013,3434673,J586433 030313           ,"3,277.86",NORTH HILL RESIDENTIAL HOME             ,362254,Social Community Care,RESIDENTIAL CARE HOMES        
ADULT SOCIAL CARE PURCHASING  ,9200,SHORT TERM RESIDENTIAL CARE   ,04/04/2013,3434674,J586587 030313           ,959.29,DEERLANDS                               ,361836,Social Community Care,RESIDENTIAL CARE HOMES        
ADULT SOCIAL CARE PURCHASING  ,9200,SHORT TERM RESIDENTIAL CARE   ,04/04/2013,3434675,J586588 030313           ,901.00,KNOWLE HILL                             ,361798,Social Community Care,RESIDENTIAL CARE HOMES        
ADULT SOCIAL CARE PURCHASING  ,9200,SHORT TERM RESIDENTIAL CARE   ,04/04/2013,3434676,J587604 030313           ,"3,702.14",GRANGE CRESCENT                         ,361898,Social Community Care,RESIDENTIAL CARE HOMES        
IN HOUSE FOSTER PLACEMENT     ,9270,IN-HOUSE FOSTERING            ,05/04/2013,3435594,156226 20130404 40120    ,"1,249.14",REDACTED PERSONAL DATA,549255,Social Community Care,ADOPTION & FOSTERING          
ADOPTION ALLOWANCES           ,9270,ADOPTION ALLOWANCES           ,05/04/2013,3435584,100069 20130404 40120    ,415.40,REDACTED PERSONAL DATA,333449,Social Community Care,ADOPTION & FOSTERING          
IN HOUSE FOSTER PLACEMENT     ,9270,IN-HOUSE FOSTERING            ,05/04/2013,3435584,100069 20130404 40120    ,"1,011.42",REDACTED PERSONAL DATA,333449,Social Community Care,ADOPTION & FOSTERING          
IN HOUSE FOSTER PLACEMENT     ,9270,IN-HOUSE FOSTERING            ,05/04/2013,3435586,149405 20130404 40120    ,"1,349.71",REDACTED PERSONAL DATA,408920,Social Community Care,ADOPTION & FOSTERING          
RESIDENCE ORDERS              ,9270,RESIDENCE ORDERS              ,05/04/2013,3435587,150147 20130404 40120    ,321.60,REDACTED PERSONAL DATA,410525,Social Community Care,ADOPTION & FOSTERING          
IN HOUSE FOSTER PLACEMENT     ,9270,IN-HOUSE FOSTERING            ,05/04/2013,3435588,15052 20130404 40120     ,869.14,REDACTED PERSONAL DATA,564456,Unclassified Non Trade,OUT OF SCOPE FOR SIC MONITORIN
ADOPTION ALLOWANCES           ,9270,ADOPTION ALLOWANCES           ,05/04/2013,3435589,150723 20130404 40120    ,321.60,REDACTED PERSONAL DATA,507002,Social Community Care,ADOPTION & FOSTERING          
IN HOUSE FOSTER PLACEMENT     ,9270,IN-HOUSE FOSTERING            ,05/04/2013,3435591,151365 20130404 40120    ,605.71,REDACTED PERSONAL DATA,442473,Social Community Care,ADOPTION & FOSTERING          
ADOPTION SERVICE              ,9270,ADOPTION ALLOWANCES           ,05/04/2013,3435593,152049 20130404 40120    ,348.44,REDACTED PERSONAL DATA,512161,Social Community Care,ADOPTION & FOSTERING          
CARELEAVER IN HOUSE FOSTERING ,9270,IN-HOUSE FOSTERING            ,05/04/2013,3435596,105022 20130404 40120    ,794.50,REDACTED PERSONAL DATA,526566,Social Community Care,CHILDCARE SERVICES            
ADOPTION ALLOWANCES           ,9270,ADOPTION ALLOWANCES           ,05/04/2013,3435597,156682 20130404 40120    ,321.60,REDACTED PERSONAL DATA,447568,Social Community Care,ADOPTION & FOSTERING          
ADOPTION ALLOWANCES           ,9270,ADOPTION ALLOWANCES           ,05/04/2013,3435601,158578 20130404 40120    ,335.40,REDACTED PERSONAL DATA,435732,Social Community Care,ADOPTION & FOSTERING          
RESIDENCE ORDERS              ,9270,RESIDENCE ORDERS              ,05/04/2013,3435603,159404 20130404 40120    ,469.20,REDACTED PERSONAL DATA,418360,Social Community Care,ADOPTION & FOSTERING          
ADOPTION ALLOWANCES           ,9270,ADOPTION ALLOWANCES           ,05/04/2013,3435606,161306 20130404 40120    ,298.26,REDACTED PERSONAL DATA,563893,Social Community Care,ADOPTION & FOSTERING          
IN HOUSE FOSTER PLACEMENT     ,9270,IN-HOUSE FOSTERING            ,05/04/2013,3435608,16180 20130404 40120     ,"1,011.42",REDACTED PERSONAL DATA,333718,Social Community Care,ADOPTION & FOSTERING          
ADOPTION ALLOWANCES           ,9270,ADOPTION ALLOWANCES           ,05/04/2013,3435609,161854 20130404 40120    ,254.60,REDACTED PERSONAL DATA,502396,Social Community Care,ADOPTION & FOSTERING          
IN HOUSE FOSTER PLACEMENT     ,9270,IN-HOUSE FOSTERING            ,05/04/2013,3435609,161854 20130404 40120    ,"1,845.71",REDACTED PERSONAL DATA,502396,Social Community Care,ADOPTION & FOSTERING          
SPECIAL GUARDIANSHIP          ,9270,RESIDENCE ORDERS              ,05/04/2013,3435610,161862 20130404 40120    ,419.28,REDACTED PERSONAL DATA,569794,Unclassified Non Trade,OUT OF SCOPE FOR SIC MONITORIN
IN HOUSE FOSTER PLACEMENT     ,9270,IN-HOUSE FOSTERING            ,05/04/2013,3435612,162076 20130404 40120    ,405.71,REDACTED PERSONAL DATA,561473,Social Community Care,ADOPTION & FOSTERING          
ADOPTION ALLOWANCES           ,9270,ADOPTION ALLOWANCES           ,05/04/2013,3435614,162287 20130404 40120    ,307.80,REDACTED PERSONAL DATA,437597,Social Community Care,ADOPTION & FOSTERING          
ADOPTION ALLOWANCES           ,9270,ADOPTION ALLOWANCES           ,05/04/2013,3435616,162684 20130404 40120    ,523.00,REDACTED PERSONAL DATA,384639,Social Community Care,ADOPTION & FOSTERING          
ADOPTION ALLOWANCES           ,9270,ADOPTION ALLOWANCES           ,05/04/2013,3435617,162716 20130404 40120    ,469.20,REDACTED PERSONAL DATA,405479,Social Community Care,ADOPTION & FOSTERING          
ADOPTION ALLOWANCES           ,9270,ADOPTION ALLOWANCES           ,05/04/2013,3435618,10618 20130404 40120     ,295.20,REDACTED PERSONAL DATA,332987,Social Community Care,ADOPTION & FOSTERING          
ADOPTION ALLOWANCES           ,9270,ADOPTION ALLOWANCES           ,05/04/2013,3435619,162820 20130404 40120    ,337.10,REDACTED PERSONAL DATA,420593,Social Community Care,ADOPTION & FOSTERING          
ADOPTION ALLOWANCES           ,9270,ADOPTION ALLOWANCES           ,05/04/2013,3435620,162849 20130404 40120    ,919.12,REDACTED PERSONAL DATA,383481,Social Community Care,ADOPTION & FOSTERING          
ADOPTION ALLOWANCES           ,9270,ADOPTION ALLOWANCES           ,05/04/2013,3435623,162997 20130404 40120    ,321.60,REDACTED PERSONAL DATA,420205,Social Community Care,ADOPTION & FOSTERING          
ADOPTION ALLOWANCES           ,9270,ADOPTION ALLOWANCES           ,05/04/2013,3435624,163018 20130404 40120    ,382.30,REDACTED PERSONAL DATA,397573,Social Community Care,ADOPTION & FOSTERING          
ADOPTION ALLOWANCES           ,9270,ADOPTION ALLOWANCES           ,05/04/2013,3435625,163138 20130404 40120    ,389.00,REDACTED PERSONAL DATA,400697,Social Community Care,ADOPTION & FOSTERING          
ADOPTION ALLOWANCES           ,9270,ADOPTION ALLOWANCES           ,05/04/2013,3435627,165811 20130404 40120    ,415.40,REDACTED PERSONAL DATA,366214,Social Community Care,ADOPTION & FOSTERING          
IN HOUSE FOSTER PLACEMENT     ,9270,IN-HOUSE FOSTERING            ,05/04/2013,3435631,167097 20130404 40120    ,"1,036.28",REDACTED PERSONAL DATA,424791,Social Community Care,ADOPTION & FOSTERING          
IN HOUSE FOSTER PLACEMENT     ,9270,IN-HOUSE FOSTERING            ,05/04/2013,3435633,16889 20130404 40120     ,635.71,REDACTED PERSONAL DATA,368064,Social Community Care,ADOPTION & FOSTERING          
ADOPTION ALLOWANCES           ,9270,ADOPTION ALLOWANCES           ,05/04/2013,3435634,169136 20130404 40120    ,321.60,REDACTED PERSONAL DATA,478793,Social Community Care,ADOPTION & FOSTERING          
ADOPTION ALLOWANCES           ,9270,ADOPTION ALLOWANCES           ,05/04/2013,3435635,169337 20130404 40120    ,415.40,REDACTED PERSONAL DATA,529676,Social Community Care,ADOPTION & FOSTERING          
ADOPTION ALLOWANCES           ,9270,ADOPTION ALLOWANCES           ,05/04/2013,3435636,169390 20130404 40120    ,368.50,REDACTED PERSONAL DATA,391015,Social Community Care,ADOPTION & FOSTERING          
RESIDENCE ORDERS              ,9270,RESIDENCE ORDERS              ,05/04/2013,3435639,170383 20130404 40120    ,368.50,REDACTED PERSONAL DATA,478426,Social Community Care,ADOPTION & FOSTERING          
CARELEAVER IN HOUSE FOSTERING ,9270,IN-HOUSE FOSTERING            ,05/04/2013,3435641,171313 20130404 40120    ,283.75,REDACTED PERSONAL DATA,576522,Unclassified Non Trade,OUT OF SCOPE FOR SIC MONITORIN
ADOPTION ALLOWANCES           ,9270,ADOPTION ALLOWANCES           ,05/04/2013,3435643,173483 20130404 40120    ,295.20,REDACTED PERSONAL DATA,534228,Social Community Care,ADOPTION & FOSTERING          
ADOPTION ALLOWANCES           ,9270,ADOPTION ALLOWANCES           ,05/04/2013,3435647,175100 20130404 40120    ,536.20,REDACTED PERSONAL DATA,437719,Social Community Care,ADOPTION & FOSTERING          
ADOPTION ALLOWANCES           ,9270,ADOPTION ALLOWANCES           ,05/04/2013,3435652,179524 20130404 40120    ,429.20,REDACTED PERSONAL DATA,338804,Social Community Care,ADOPTION & FOSTERING          
SPECIAL GUARDIANSHIP          ,9270,RESIDENCE ORDERS              ,05/04/2013,3435653,179550 20130404 40120    ,382.30,REDACTED PERSONAL DATA,455209,Social Community Care,ADOPTION & FOSTERING          
IN HOUSE FOSTER PLACEMENT     ,9270,IN-HOUSE FOSTERING            ,05/04/2013,3435654,179693 20130404 40120    ,"1,346.28",REDACTED PERSONAL DATA,521983,Social Community Care,ADOPTION & FOSTERING          
SPECIAL GUARDIANSHIP          ,9270,RESIDENCE ORDERS              ,05/04/2013,3435656,180012 20130404 40120    ,274.92,REDACTED PERSONAL DATA,551185,Social Community Care,ADOPTION & FOSTERING          
ADOPTION ALLOWANCES           ,9270,ADOPTION ALLOWANCES           ,05/04/2013,3435662,108779 20130404 40120    ,335.40,REDACTED PERSONAL DATA,445176,Social Community Care,ADOPTION & FOSTERING          
SPECIAL GUARDIANSHIP          ,9270,RESIDENCE ORDERS              ,05/04/2013,3435664,183203 20130404 40120    ,268.40,REDACTED PERSONAL DATA,514674,Social Community Care,ADOPTION & FOSTERING          
IN HOUSE FOSTER PLACEMENT     ,9270,IN-HOUSE FOSTERING            ,05/04/2013,3435666,18403 20130404 40120     ,605.71,REDACTED PERSONAL DATA,333624,Social Community Care,ADOPTION & FOSTERING          
RESIDENCE ORDERS              ,9270,RESIDENCE ORDERS              ,05/04/2013,3435668,184267 20130404 40120    ,513.96,REDACTED PERSONAL DATA,455207,Social Community Care,ADOPTION & FOSTERING          
RESIDENCE ORDERS              ,9270,RESIDENCE ORDERS              ,05/04/2013,3435669,184501 20130404 40120    ,496.72,REDACTED PERSONAL DATA,401269,Social Community Care,ADOPTION & FOSTERING          
ADOPTION ALLOWANCES           ,9270,ADOPTION ALLOWANCES           ,05/04/2013,3435670,184782 20130404 40120    ,630.00,REDACTED PERSONAL DATA,373269,Social Community Care,ADOPTION & FOSTERING          
IN HOUSE FOSTER PLACEMENT     ,9270,IN-HOUSE FOSTERING            ,05/04/2013,3435672,185557 20130404 40120    ,"1,751.58",REDACTED PERSONAL DATA,462682,Social Community Care,ADOPTION & FOSTERING          
RESIDENCE ORDERS              ,9270,RESIDENCE ORDERS              ,05/04/2013,3435675,186377 20130404 40120    ,502.86,REDACTED PERSONAL DATA,487461,Social Community Care,ADOPTION & FOSTERING          
ADOPTION ALLOWANCES           ,9270,ADOPTION ALLOWANCES           ,05/04/2013,3435676,186449 20130404 40120    ,280.84,REDACTED PERSONAL DATA,379322,Social Community Care,ADOPTION & FOSTERING          
ADOPTION ALLOWANCES           ,9270,ADOPTION ALLOWANCES           ,05/04/2013,3435677,186584 20130404 40120    ,483.00,REDACTED PERSONAL DATA,397135,Social Community Care,ADOPTION & FOSTERING          
RESIDENCE ORDERS              ,9270,RESIDENCE ORDERS              ,05/04/2013,3435679,187151 20130404 40120    ,288.72,REDACTED PERSONAL DATA,547122,Social Community Care,CAREFIRST DIRECT PAYMENTS     
RESIDENCE ORDERS              ,9270,RESIDENCE ORDERS              ,05/04/2013,3435680,187601 20130404 40120    ,321.60,REDACTED PERSONAL DATA,429150,Social Community Care,ADOPTION & FOSTERING          
IN HOUSE FOSTER PLACEMENT     ,9270,IN-HOUSE FOSTERING            ,05/04/2013,3435682,187984 20130404 40120    ,748.57,REDACTED PERSONAL DATA,467299,Social Community Care,ADOPTION & FOSTERING          
ADOPTION ALLOWANCES           ,9270,ADOPTION ALLOWANCES           ,05/04/2013,3435683,188778 20130404 40120    ,321.60,REDACTED PERSONAL DATA,510268,Social Community Care,ADOPTION & FOSTERING          
RESIDENCE ORDERS              ,9270,RESIDENCE ORDERS              ,05/04/2013,3435684,109853 20130404 40120    ,469.20,REDACTED PERSONAL DATA,368099,Social Community Care,ADOPTION & FOSTERING          
IN HOUSE FOSTER PLACEMENT     ,9270,IN-HOUSE FOSTERING            ,05/04/2013,3435685,188969 20130404 40120    ,630.57,REDACTED PERSONAL DATA,467300,Social Community Care,ADOPTION & FOSTERING          
RESIDENCE ORDERS              ,9270,RESIDENCE ORDERS              ,05/04/2013,3435687,189786 20130404 40120    ,268.40,REDACTED PERSONAL DATA,539447,Social Community Care,ADOPTION & FOSTERING          
RESIDENCE ORDERS              ,9270,RESIDENCE ORDERS              ,05/04/2013,3435689,189972 20130404 40120    ,254.60,REDACTED PERSONAL DATA,561897,Unclassified Non Trade,OUT OF SCOPE FOR SIC MONITORIN
RESIDENCE ORDERS              ,9270,RESIDENCE ORDERS              ,05/04/2013,3435690,190942 20130404 40120    ,489.52,REDACTED PERSONAL DATA,566337,Social Community Care,ADOPTION & FOSTERING          
ADOPTION ALLOWANCES           ,9270,ADOPTION ALLOWANCES           ,05/04/2013,3435691,190991 20130404 40120    ,299.72,REDACTED PERSONAL DATA,505899,Social Community Care,ADOPTION & FOSTERING          
SPECIAL GUARDIANSHIP          ,9270,RESIDENCE ORDERS              ,05/04/2013,3435692,191065 20130404 40120    ,633.66,REDACTED PERSONAL DATA,444008,Social Community Care,ADOPTION & FOSTERING          
SPECIAL GUARDIANSHIP          ,9270,RESIDENCE ORDERS              ,05/04/2013,3435693,191415 20130404 40120    ,"1,220.40",REDACTED PERSONAL DATA,567597,Social Community Care,ADOPTION & FOSTERING          
IN HOUSE FOSTER PLACEMENT     ,9270,IN-HOUSE FOSTERING            ,05/04/2013,3435695,100191 20130404 40120    ,637.21,REDACTED PERSONAL DATA,332848,Social Community Care,ADOPTION & FOSTERING          
RESIDENCE ORDERS              ,9270,RESIDENCE ORDERS              ,05/04/2013,3435697,191514 20130404 40120    ,335.40,REDACTED PERSONAL DATA,450449,Social Community Care,ADOPTION & FOSTERING          
SPECIAL GUARDIANSHIP          ,9270,RESIDENCE ORDERS              ,05/04/2013,3435698,191801 20130404 40120    ,"1,439.20",REDACTED PERSONAL DATA,492572,Social Community Care,ADOPTION & FOSTERING          
IN HOUSE FOSTER PLACEMENT     ,9270,IN-HOUSE FOSTERING            ,05/04/2013,3435699,191832 20130404 40120    ,"1,033.92",REDACTED PERSONAL DATA,473384,Social Community Care,ADOPTION & FOSTERING          
CARELEAVER IN HOUSE FOSTERING ,9270,IN-HOUSE FOSTERING            ,05/04/2013,3435700,19266 20130404 40120     ,414.00,REDACTED PERSONAL DATA,332852,Social Community Care,ADOPTION & FOSTERING          
IN HOUSE FOSTER PLACEMENT     ,9270,IN-HOUSE FOSTERING            ,05/04/2013,3435700,19266 20130404 40120     ,370.00,REDACTED PERSONAL DATA,332852,Social Community Care,ADOPTION & FOSTERING          
IN HOUSE FOSTER PLACEMENT     ,9270,IN-HOUSE FOSTERING            ,05/04/2013,3435701,193350 20130404 40120    ,668.57,REDACTED PERSONAL DATA,471003,Social Community Care,ADOPTION & FOSTERING          
ADOPTION ALLOWANCES           ,9270,ADOPTION ALLOWANCES           ,05/04/2013,3435702,193819 20130404 40120    ,415.40,REDACTED PERSONAL DATA,368040,Social Community Care,ADOPTION & FOSTERING          
ADOPTION ALLOWANCES           ,9270,ADOPTION ALLOWANCES           ,05/04/2013,3435706,194666 20130404 40120    ,295.20,REDACTED PERSONAL DATA,333712,Social Community Care,ADOPTION & FOSTERING          
ADOPTION ALLOWANCES           ,9270,ADOPTION ALLOWANCES           ,05/04/2013,3435709,194685 20130404 40120    ,415.40,REDACTED PERSONAL DATA,440691,Social Community Care,ADOPTION & FOSTERING          
ADOPTION ALLOWANCES           ,9270,ADOPTION ALLOWANCES           ,05/04/2013,3435710,194971 20130404 40120    ,321.60,REDACTED PERSONAL DATA,480781,Social Community Care,ADOPTION & FOSTERING          
ADOPTION ALLOWANCES           ,9270,ADOPTION ALLOWANCES           ,05/04/2013,3435711,194998 20130404 40120    ,268.40,REDACTED PERSONAL DATA,392641,Social Community Care,ADOPTION & FOSTERING          
ADOPTION ALLOWANCES           ,9270,ADOPTION ALLOWANCES           ,05/04/2013,3435712,195074 20130404 40120    ,677.30,REDACTED PERSONAL DATA,333341,Social Community Care,ADOPTION & FOSTERING          
ADOPTION ALLOWANCES           ,9270,ADOPTION ALLOWANCES           ,05/04/2013,3435713,195134 20130404 40120    ,536.80,REDACTED PERSONAL DATA,332998,Social Community Care,ADOPTION & FOSTERING          
ADOPTION ALLOWANCES           ,9270,ADOPTION ALLOWANCES           ,05/04/2013,3435714,195344 20130404 40120    ,261.74,REDACTED PERSONAL DATA,332945,Social Community Care,ADOPTION & FOSTERING          
IN HOUSE FOSTER PLACEMENT     ,9270,IN-HOUSE FOSTERING            ,05/04/2013,3435715,195731 20130404 40120    ,635.71,REDACTED PERSONAL DATA,509843,Social Community Care,ADOPTION & FOSTERING          
SPECIAL GUARDIANSHIP          ,9270,RESIDENCE ORDERS              ,05/04/2013,3435716,19623 20130404 40120     ,577.96,REDACTED PERSONAL DATA,333147,Social Community Care,ADOPTION & FOSTERING          
IN HOUSE FOSTER PLACEMENT     ,9270,IN-HOUSE FOSTERING            ,05/04/2013,3435716,19623 20130404 40120     ,"1,857.71",REDACTED PERSONAL DATA,333147,Social Community Care,ADOPTION & FOSTERING          
SPECIAL GUARDIANSHIP          ,9270,RESIDENCE ORDERS              ,05/04/2013,3435718,110569 20130404 40120    ,365.66,REDACTED PERSONAL DATA,552284,Unclassified Non Trade,OUT OF SCOPE FOR SIC MONITORIN
IN HOUSE FOSTER PLACEMENT     ,9270,IN-HOUSE FOSTERING            ,05/04/2013,3435719,196541 20130404 40120    ,605.71,REDACTED PERSONAL DATA,515242,Social Community Care,ADOPTION & FOSTERING          
IN HOUSE FOSTER PLACEMENT     ,9270,IN-HOUSE FOSTERING            ,05/04/2013,3435724,197337 20130404 40120    ,716.57,REDACTED PERSONAL DATA,483157,Social Community Care,ADOPTION & FOSTERING          
CARELEAVER IN HOUSE FOSTERING ,9270,IN-HOUSE FOSTERING            ,05/04/2013,3435725,197817 20130404 40120    ,909.00,REDACTED PERSONAL DATA,569598,Unclassified Non Trade,OUT OF SCOPE FOR SIC MONITORIN
ADOPTION ALLOWANCES           ,9270,ADOPTION ALLOWANCES           ,05/04/2013,3435727,198659 20130404 40120    ,298.26,REDACTED PERSONAL DATA,534697,Social Community Care,ADOPTION & FOSTERING          
ADOPTION ALLOWANCES           ,9270,ADOPTION ALLOWANCES           ,05/04/2013,3435732,199041 20130404 40120    ,321.60,REDACTED PERSONAL DATA,459717,Social Community Care,ADOPTION & FOSTERING          
CARELEAVER IN HOUSE FOSTERING ,9270,IN-HOUSE FOSTERING            ,05/04/2013,3435733,199243 20130404 40120    ,802.00,REDACTED PERSONAL DATA,577465,Social Community Care,ADOPTION & FOSTERING          
IN HOUSE FOSTER PLACEMENT     ,9270,IN-HOUSE FOSTERING            ,05/04/2013,3435735,199287 20130404 40120    ,"1,157.13",REDACTED PERSONAL DATA,568498,Unclassified Non Trade,OUT OF SCOPE FOR SIC MONITORIN
ADOPTION ALLOWANCES           ,9270,ADOPTION ALLOWANCES           ,05/04/2013,3435736,199392 20130404 40120    ,321.60,REDACTED PERSONAL DATA,518473,Social Community Care,ADOPTION & FOSTERING          
IN HOUSE FOSTER PLACEMENT     ,9270,IN-HOUSE FOSTERING            ,05/04/2013,3435741,202495 20130404 40120    ,510.57,REDACTED PERSONAL DATA,489499,Social Community Care,ADOPTION & FOSTERING          
SPECIAL GUARDIANSHIP          ,9270,RESIDENCE ORDERS              ,05/04/2013,3435743,203296 20130404 40120    ,536.20,REDACTED PERSONAL DATA,463795,Social Community Care,ADOPTION & FOSTERING          
SPECIAL GUARDIANSHIP          ,9270,RESIDENCE ORDERS              ,05/04/2013,3435745,111606 20130404 40120    ,298.26,REDACTED PERSONAL DATA,418311,Social Community Care,ADOPTION & FOSTERING          
IN HOUSE FOSTER PLACEMENT     ,9270,IN-HOUSE FOSTERING            ,05/04/2013,3435746,203957 20130404 40120    ,806.28,REDACTED PERSONAL DATA,569169,Social Community Care,ADOPTION & FOSTERING          
IN HOUSE FOSTER PLACEMENT     ,9270,IN-HOUSE FOSTERING            ,05/04/2013,3435747,204113 20130404 40120    ,605.71,REDACTED PERSONAL DATA,479993,Social Community Care,ADOPTION & FOSTERING          
SPECIAL GUARDIANSHIP          ,9270,RESIDENCE ORDERS              ,05/04/2013,3435748,204229 20130404 40120    ,288.72,REDACTED PERSONAL DATA,527409,Social Community Care,ADOPTION & FOSTERING          
ADOPTION ALLOWANCES           ,9270,ADOPTION ALLOWANCES           ,05/04/2013,3435749,205558 20130404 40120    ,456.42,REDACTED PERSONAL DATA,537889,Social Community Care,ADOPTION & FOSTERING          
SPECIAL GUARDIANSHIP          ,9270,RESIDENCE ORDERS              ,05/04/2013,3435753,207629 20130404 40120    ,"1,670.26",REDACTED PERSONAL DATA,487226,Social Community Care,ADOPTION & FOSTERING          
ADOPTION ALLOWANCES           ,9270,ADOPTION ALLOWANCES           ,05/04/2013,3435755,207975 20130404 40120    ,415.40,REDACTED PERSONAL DATA,474647,Social Community Care,ADOPTION & FOSTERING          
IN HOUSE FOSTER PLACEMENT     ,9270,IN-HOUSE FOSTERING            ,05/04/2013,3435756,111911 20130404 40120    ,"1,451.14",REDACTED PERSONAL DATA,338765,Social Community Care,ADOPTION & FOSTERING          
IN HOUSE FOSTER PLACEMENT     ,9270,IN-HOUSE FOSTERING            ,05/04/2013,3435757,20809 20130404 40120     ,630.57,REDACTED PERSONAL DATA,333830,Social Community Care,ADOPTION & FOSTERING          
IN HOUSE FOSTER PLACEMENT     ,9270,IN-HOUSE FOSTERING            ,05/04/2013,3435760,208267 20130404 40120    ,630.57,REDACTED PERSONAL DATA,485929,Social Community Care,ADOPTION & FOSTERING          
ADOPTION SERVICE              ,9270,ADOPTION ALLOWANCES           ,05/04/2013,3435760,208267 20130404 40120    ,432.02,REDACTED PERSONAL DATA,485929,Social Community Care,ADOPTION & FOSTERING          
IN HOUSE FOSTER PLACEMENT     ,9270,IN-HOUSE FOSTERING            ,05/04/2013,3435762,208906 20130404 40120    ,769.46,REDACTED PERSONAL DATA,502527,Social Community Care,ADOPTION & FOSTERING          
IN HOUSE FOSTER PLACEMENT     ,9270,IN-HOUSE FOSTERING            ,05/04/2013,3435764,21036 20130404 40120     ,"1,101.64",REDACTED PERSONAL DATA,380258,Social Community Care,ADOPTION & FOSTERING          
IN HOUSE FOSTER PLACEMENT     ,9270,IN-HOUSE FOSTERING            ,05/04/2013,3435765,210431 20130404 40120    ,605.71,REDACTED PERSONAL DATA,502737,Social Community Care,ADOPTION & FOSTERING          
IN HOUSE FOSTER PLACEMENT     ,9270,IN-HOUSE FOSTERING            ,05/04/2013,3435766,210508 20130404 40120    ,605.71,REDACTED PERSONAL DATA,493410,Social Community Care,ADOPTION & FOSTERING          
RESIDENCE ORDERS              ,9270,RESIDENCE ORDERS              ,05/04/2013,3435768,11214 20130404 40120     ,630.00,REDACTED PERSONAL DATA,328124,Social Community Care,ADOPTION & FOSTERING          
SPECIAL GUARDIANSHIP          ,9270,RESIDENCE ORDERS              ,05/04/2013,3435770,212008 20130404 40120    ,321.60,REDACTED PERSONAL DATA,555120,Unclassified Non Trade,OUT OF SCOPE FOR SIC MONITORIN
IN HOUSE FOSTER PLACEMENT     ,9270,IN-HOUSE FOSTERING            ,05/04/2013,3435774,21312 20130404 40120     ,405.71,REDACTED PERSONAL DATA,333655,Social Community Care,ADOPTION & FOSTERING          
SPECIAL GUARDIANSHIP          ,9270,RESIDENCE ORDERS              ,05/04/2013,3435775,213411 20130404 40120    ,819.96,REDACTED PERSONAL DATA,502164,Social Community Care,ADOPTION & FOSTERING          
RESIDENCE ORDERS              ,9270,RESIDENCE ORDERS              ,05/04/2013,3435778,214328 20130404 40120    ,254.60,REDACTED PERSONAL DATA,486958,Social Community Care,ADOPTION & FOSTERING          
IN HOUSE FOSTER PLACEMENT     ,9270,IN-HOUSE FOSTERING            ,05/04/2013,3435780,21439 20130404 40120     ,"1,105.71",REDACTED PERSONAL DATA,338747,Social Community Care,ADOPTION & FOSTERING          
RESIDENCE ORDERS              ,9270,RESIDENCE ORDERS              ,05/04/2013,3435782,214697 20130404 40120    ,335.40,REDACTED PERSONAL DATA,509060,Social Community Care,CHILDCARE SERVICES            
RESIDENCE ORDERS              ,9270,RESIDENCE ORDERS              ,05/04/2013,3435783,21494 20130404 40120     ,254.60,REDACTED PERSONAL DATA,338862,Social Community Care,ADOPTION & FOSTERING          
SPECIAL GUARDIANSHIP          ,9270,RESIDENCE ORDERS              ,05/04/2013,3435785,215348 20130404 40120    ,536.20,REDACTED PERSONAL DATA,477472,Social Community Care,ADOPTION & FOSTERING          
ADOPTION ALLOWANCES           ,9270,ADOPTION ALLOWANCES           ,05/04/2013,3435786,215467 20130404 40120    ,583.10,REDACTED PERSONAL DATA,485770,Social Community Care,ADOPTION & FOSTERING          
ADOPTION ALLOWANCES           ,9270,ADOPTION ALLOWANCES           ,05/04/2013,3435789,216508 20130404 40120    ,427.60,REDACTED PERSONAL DATA,332926,Social Community Care,ADOPTION & FOSTERING          
IN HOUSE FOSTER PLACEMENT     ,9270,IN-HOUSE FOSTERING            ,05/04/2013,3435790,113481 20130404 40120    ,788.57,REDACTED PERSONAL DATA,333743,Social Community Care,ADOPTION & FOSTERING          
IN HOUSE FOSTER PLACEMENT     ,9270,IN-HOUSE FOSTERING            ,05/04/2013,3435792,21654 20130404 40120     ,405.71,REDACTED PERSONAL DATA,333123,Social Community Care,ADOPTION & FOSTERING          
ADOPTION ALLOWANCES           ,9270,ADOPTION ALLOWANCES           ,05/04/2013,3435795,216934 20130404 40120    ,295.20,REDACTED PERSONAL DATA,333296,Social Community Care,ADOPTION & FOSTERING          
RESIDENCE ORDERS              ,9270,RESIDENCE ORDERS              ,05/04/2013,3435796,217370 20130404 40120    ,353.08,REDACTED PERSONAL DATA,537668,Social Community Care,ADOPTION & FOSTERING          
RESIDENCE ORDERS              ,9270,RESIDENCE ORDERS              ,05/04/2013,3435801,114288 20130404 40120    ,254.60,REDACTED PERSONAL DATA,368110,Social Community Care,ADOPTION & FOSTERING          
RESIDENCE ORDERS              ,9270,RESIDENCE ORDERS              ,05/04/2013,3435808,217912 20130404 40120    ,268.40,REDACTED PERSONAL DATA,333717,Social Community Care,ADOPTION & FOSTERING          
RESIDENCE ORDERS              ,9270,RESIDENCE ORDERS              ,05/04/2013,3435809,217936 20130404 40120    ,415.40,REDACTED PERSONAL DATA,368015,Social Community Care,ADOPTION & FOSTERING          
RESIDENCE ORDERS              ,9270,RESIDENCE ORDERS              ,05/04/2013,3435810,217937 20130404 40120    ,368.50,REDACTED PERSONAL DATA,395005,Social Community Care,ADOPTION & FOSTERING          
IN HOUSE FOSTER PLACEMENT     ,9270,IN-HOUSE FOSTERING            ,05/04/2013,3435812,10113 20130404 40120     ,"1,495.14",REDACTED PERSONAL DATA,371949,Social Community Care,ADOPTION & FOSTERING          
RESIDENCE ORDERS              ,9270,RESIDENCE ORDERS              ,05/04/2013,3435814,217943 20130404 40120    ,415.40,REDACTED PERSONAL DATA,472721,Social Community Care,ADOPTION & FOSTERING          
SPECIAL GUARDIANSHIP          ,9270,RESIDENCE ORDERS              ,05/04/2013,3435815,217957 20130404 40120    ,368.50,REDACTED PERSONAL DATA,450972,Social Community Care,ADOPTION & FOSTERING          
RESIDENCE ORDERS              ,9270,RESIDENCE ORDERS              ,05/04/2013,3435817,217965 20130404 40120    ,415.40,REDACTED PERSONAL DATA,417741,Social Community Care,ADOPTION & FOSTERING          
RESIDENCE ORDERS              ,9270,RESIDENCE ORDERS              ,05/04/2013,3435822,217984 20130404 40120    ,368.50,REDACTED PERSONAL DATA,466697,Social Community Care,ADOPTION & FOSTERING          
IN HOUSE FOSTER PLACEMENT     ,9270,IN-HOUSE FOSTERING            ,05/04/2013,3435824,11584 20130404 40120     ,370.00,REDACTED PERSONAL DATA,338799,Social Community Care,ADOPTION & FOSTERING          
RESIDENCE ORDERS              ,9270,RESIDENCE ORDERS              ,05/04/2013,3435825,218032 20130404 40120    ,415.40,REDACTED PERSONAL DATA,406111,Social Community Care,ADOPTION & FOSTERING          
RESIDENCE ORDERS              ,9270,RESIDENCE ORDERS              ,05/04/2013,3435828,218047 20130404 40120    ,335.40,REDACTED PERSONAL DATA,455957,Social Community Care,ADOPTION & FOSTERING          
RESIDENCE ORDERS              ,9270,RESIDENCE ORDERS              ,05/04/2013,3435830,218156 20130404 40120    ,254.60,REDACTED PERSONAL DATA,349185,Social Community Care,ADOPTION & FOSTERING          
RESIDENCE ORDERS              ,9270,RESIDENCE ORDERS              ,05/04/2013,3435838,218270 20130404 40120    ,321.60,REDACTED PERSONAL DATA,431040,Social Community Care,ADOPTION & FOSTERING          
RESIDENCE ORDERS              ,9270,RESIDENCE ORDERS              ,05/04/2013,3435840,218299 20130404 40120    ,429.20,REDACTED PERSONAL DATA,425879,Social Community Care,ADOPTION & FOSTERING          
CARELEAVER IN HOUSE FOSTERING ,9270,IN-HOUSE FOSTERING            ,05/04/2013,3435843,218678 20130404 40120    ,780.50,REDACTED PERSONAL DATA,568445,Social Community Care,ADOPTION & FOSTERING          
RESIDENCE ORDERS              ,9270,RESIDENCE ORDERS              ,05/04/2013,3435844,218882 20130404 40120    ,469.20,REDACTED PERSONAL DATA,559304,Social Community Care,HOME CARE SERVICES            
IN HOUSE FOSTER PLACEMENT     ,9270,IN-HOUSE FOSTERING            ,05/04/2013,3435846,118120 20130404 40120    ,468.57,REDACTED PERSONAL DATA,333453,Social Community Care,ADOPTION & FOSTERING          
ADOPTION ALLOWANCES           ,9270,ADOPTION ALLOWANCES           ,05/04/2013,3435848,219407 20130404 40120    ,296.64,REDACTED PERSONAL DATA,483732,Social Community Care,ADOPTION & FOSTERING          
IN HOUSE FOSTER PLACEMENT     ,9270,IN-HOUSE FOSTERING            ,05/04/2013,3435852,220492 20130404 40120    ,678.86,REDACTED PERSONAL DATA,505305,Social Community Care,ADOPTION & FOSTERING          
ADOPTION ALLOWANCES           ,9270,ADOPTION ALLOWANCES           ,05/04/2013,3435853,221155 20130404 40120    ,429.20,REDACTED PERSONAL DATA,333786,Social Community Care,ADOPTION & FOSTERING          
ADOPTION ALLOWANCES           ,9270,ADOPTION ALLOWANCES           ,05/04/2013,3435856,221634 20130404 40120    ,298.26,REDACTED PERSONAL DATA,525512,Social Community Care,ADOPTION & FOSTERING          
RESIDENCE ORDERS              ,9270,RESIDENCE ORDERS              ,05/04/2013,3435862,223954 20130404 40120    ,415.40,REDACTED PERSONAL DATA,506535,Social Community Care,ADOPTION & FOSTERING          
SPECIAL GUARDIANSHIP          ,9270,RESIDENCE ORDERS              ,05/04/2013,3435863,224122 20130404 40120    ,312.06,REDACTED PERSONAL DATA,487228,Social Community Care,ADOPTION & FOSTERING          
IN HOUSE FOSTER PLACEMENT     ,9270,IN-HOUSE FOSTERING            ,05/04/2013,3435866,224702 20130404 40120    ,605.71,REDACTED PERSONAL DATA,545493,Unclassified Non Trade,OUT OF SCOPE FOR SIC MONITORIN
IN HOUSE FOSTER PLACEMENT     ,9270,IN-HOUSE FOSTERING            ,05/04/2013,3435867,224962 20130404 40120    ,"1,099.14",REDACTED PERSONAL DATA,505290,Social Community Care,ADOPTION & FOSTERING          
ADOPTION ALLOWANCES           ,9270,ADOPTION ALLOWANCES           ,05/04/2013,3435868,119121 20130404 40120    ,415.40,REDACTED PERSONAL DATA,368042,Social Community Care,ADOPTION & FOSTERING          
IN HOUSE FOSTER PLACEMENT     ,9270,IN-HOUSE FOSTERING            ,05/04/2013,3435869,225284 20130404 40120    ,576.85,REDACTED PERSONAL DATA,521455,Social Community Care,ADOPTION & FOSTERING          
RESIDENCE ORDERS              ,9270,RESIDENCE ORDERS              ,05/04/2013,3435870,226140 20130404 40120    ,523.00,REDACTED PERSONAL DATA,507229,Social Community Care,CHILDCARE SERVICES            
SPECIAL GUARDIANSHIP          ,9270,RESIDENCE ORDERS              ,05/04/2013,3435871,226347 20130404 40120    ,250.00,REDACTED PERSONAL DATA,504346,Social Community Care,ADOPTION & FOSTERING          
IN HOUSE FOSTER PLACEMENT     ,9270,IN-HOUSE FOSTERING            ,05/04/2013,3435872,226624 20130404 40120    ,559.71,REDACTED PERSONAL DATA,511885,Social Community Care,ADOPTION & FOSTERING          
CARELEAVER IN HOUSE FOSTERING ,9270,IN-HOUSE FOSTERING            ,05/04/2013,3435873,227467 20130404 40120    ,780.50,REDACTED PERSONAL DATA,558407,Social Community Care,ADOPTION & FOSTERING          
SPECIAL GUARDIANSHIP          ,9270,RESIDENCE ORDERS              ,05/04/2013,3435874,227720 20130404 40120    ,284.98,REDACTED PERSONAL DATA,490065,Social Community Care,ADOPTION & FOSTERING          
SPECIAL GUARDIANSHIP          ,9270,RESIDENCE ORDERS              ,05/04/2013,3435877,229718 20130404 40120    ,489.30,REDACTED PERSONAL DATA,489391,Social Community Care,ADOPTION & FOSTERING          
ADOPTION ALLOWANCES           ,9270,ADOPTION ALLOWANCES           ,05/04/2013,3435878,23 20130404 40120        ,295.20,REDACTED PERSONAL DATA,333139,Social Community Care,ADOPTION & FOSTERING          
IN HOUSE FOSTER PLACEMENT     ,9270,IN-HOUSE FOSTERING            ,05/04/2013,3435878,23 20130404 40120        ,605.71,REDACTED PERSONAL DATA,333139,Social Community Care,ADOPTION & FOSTERING          
IN HOUSE FOSTER PLACEMENT     ,9270,IN-HOUSE FOSTERING            ,05/04/2013,3435883,232766 20130404 40120    ,605.71,REDACTED PERSONAL DATA,518348,Social Community Care,ADOPTION & FOSTERING          
ADOPTION SERVICE              ,9270,ADOPTION ALLOWANCES           ,05/04/2013,3435883,232766 20130404 40120    ,453.64,REDACTED PERSONAL DATA,518348,Social Community Care,ADOPTION & FOSTERING          
IN HOUSE FOSTER PLACEMENT     ,9270,IN-HOUSE FOSTERING            ,05/04/2013,3435884,233079 20130404 40120    ,"1,099.14",REDACTED PERSONAL DATA,520205,Social Community Care,ADOPTION & FOSTERING          
ADOPTION ALLOWANCES           ,9270,ADOPTION ALLOWANCES           ,05/04/2013,3435885,233644 20130404 40120    ,298.26,REDACTED PERSONAL DATA,534018,Social Community Care,ADOPTION & FOSTERING          
IN HOUSE FOSTER PLACEMENT     ,9270,IN-HOUSE FOSTERING            ,05/04/2013,3435886,233714 20130404 40120    ,405.71,REDACTED PERSONAL DATA,564806,Unclassified Non Trade,OUT OF SCOPE FOR SIC MONITORIN
IN HOUSE FOSTER PLACEMENT     ,9270,IN-HOUSE FOSTERING            ,05/04/2013,3435887,234568 20130404 40120    ,"1,960.28",REDACTED PERSONAL DATA,530876,Social Community Care,ADOPTION & FOSTERING          
IN HOUSE FOSTER PLACEMENT     ,9270,IN-HOUSE FOSTERING            ,05/04/2013,3435889,23503 20130404 40120     ,269.45,REDACTED PERSONAL DATA,328023,Social Community Care,ADOPTION & FOSTERING          
RESIDENCE ORDERS              ,9270,RESIDENCE ORDERS              ,05/04/2013,3435891,119759 20130404 40120    ,268.40,REDACTED PERSONAL DATA,562742,Social Community Care,ADOPTION & FOSTERING          
ADOPTION ALLOWANCES           ,9270,ADOPTION ALLOWANCES           ,05/04/2013,3435892,238174 20130404 40120    ,321.60,REDACTED PERSONAL DATA,556456,Unclassified Non Trade,OUT OF SCOPE FOR SIC MONITORIN
ADOPTION ALLOWANCES           ,9270,ADOPTION ALLOWANCES           ,05/04/2013,3435893,23882 20130404 40120     ,368.50,REDACTED PERSONAL DATA,333142,Social Community Care,ADOPTION & FOSTERING          
IN HOUSE FOSTER PLACEMENT     ,9270,IN-HOUSE FOSTERING            ,05/04/2013,3435898,24220 20130404 40120     ,"1,131.42",REDACTED PERSONAL DATA,333435,Social Community Care,ADOPTION & FOSTERING          
ADOPTION ALLOWANCES           ,9270,ADOPTION ALLOWANCES           ,05/04/2013,3435903,246767 20130404 40120    ,321.60,REDACTED PERSONAL DATA,506032,Social Community Care,ADOPTION & FOSTERING          
ADOPTION ALLOWANCES           ,9270,ADOPTION ALLOWANCES           ,05/04/2013,3435904,24713 20130404 40120     ,254.60,REDACTED PERSONAL DATA,502697,Social Community Care,ADOPTION & FOSTERING          
SPECIAL GUARDIANSHIP          ,9270,RESIDENCE ORDERS              ,05/04/2013,3435907,249843 20130404 40120    ,335.40,REDACTED PERSONAL DATA,566432,Social Community Care,ADOPTION & FOSTERING          
IN HOUSE FOSTER PLACEMENT     ,9270,IN-HOUSE FOSTERING            ,05/04/2013,3435909,250606 20130404 40120    ,"1,373.14",REDACTED PERSONAL DATA,544195,Social Community Care,ADOPTION & FOSTERING          
RESIDENCE ORDERS              ,9270,RESIDENCE ORDERS              ,05/04/2013,3435910,251291 20130404 40120    ,321.60,REDACTED PERSONAL DATA,506065,Social Community Care,ADOPTION & FOSTERING          
IN HOUSE FOSTER PLACEMENT     ,9270,IN-HOUSE FOSTERING            ,05/04/2013,3435911,252805 20130404 40120    ,710.57,REDACTED PERSONAL DATA,547773,Social Community Care,ADOPTION & FOSTERING          
ADOPTION ALLOWANCES           ,9270,ADOPTION ALLOWANCES           ,05/04/2013,3435915,254717 20130404 40120    ,298.26,REDACTED PERSONAL DATA,549766,Social Community Care,ADOPTION & FOSTERING          
ADOPTION ALLOWANCES           ,9270,ADOPTION ALLOWANCES           ,05/04/2013,3435916,256631 20130404 40120    ,274.92,REDACTED PERSONAL DATA,510230,Social Community Care,ADOPTION & FOSTERING          
RESIDENCE ORDERS              ,9270,RESIDENCE ORDERS              ,05/04/2013,3435917,257849 20130404 40120    ,437.17,REDACTED PERSONAL DATA,580276,Unclassified Non Trade,OUT OF SCOPE FOR SIC MONITORIN
IN HOUSE FOSTER PLACEMENT     ,9270,IN-HOUSE FOSTERING            ,05/04/2013,3435921,26212 20130404 40120     ,"2,143.71",REDACTED PERSONAL DATA,333838,Social Community Care,ADOPTION & FOSTERING          
ADOPTION ALLOWANCES           ,9270,ADOPTION ALLOWANCES           ,05/04/2013,3435922,262762 20130404 40120    ,298.26,REDACTED PERSONAL DATA,543941,Social Community Care,ADOPTION & FOSTERING          
IN HOUSE FOSTER PLACEMENT     ,9270,IN-HOUSE FOSTERING            ,05/04/2013,3435923,26488 20130404 40120     ,605.71,REDACTED PERSONAL DATA,333094,Social Community Care,ADOPTION & FOSTERING          
SPECIAL GUARDIANSHIP          ,9270,RESIDENCE ORDERS              ,05/04/2013,3435924,102670 20130404 40120    ,327.96,REDACTED PERSONAL DATA,333247,Social Community Care,ADOPTION & FOSTERING          
SPECIAL GUARDIANSHIP          ,9270,RESIDENCE ORDERS              ,05/04/2013,3435927,267388 20130404 40120    ,382.30,REDACTED PERSONAL DATA,526295,Social Community Care,ADOPTION & FOSTERING          
SPECIAL GUARDIANSHIP          ,9270,RESIDENCE ORDERS              ,05/04/2013,3435928,267945 20130404 40120    ,312.06,REDACTED PERSONAL DATA,516258,Social Community Care,ADOPTION & FOSTERING          
IN HOUSE FOSTER PLACEMENT     ,9270,IN-HOUSE FOSTERING            ,05/04/2013,3435929,27047 20130404 40120     ,"1,011.42",REDACTED PERSONAL DATA,338866,Social Community Care,ADOPTION & FOSTERING          
IN HOUSE FOSTER PLACEMENT     ,9270,IN-HOUSE FOSTERING            ,05/04/2013,3435930,271426 20130404 40120    ,533.14,REDACTED PERSONAL DATA,527967,Social Community Care,ADOPTION & FOSTERING          
IN HOUSE FOSTER PLACEMENT     ,9270,IN-HOUSE FOSTERING            ,05/04/2013,3435931,272643 20130404 40120    ,430.57,REDACTED PERSONAL DATA,574519,Unclassified Non Trade,OUT OF SCOPE FOR SIC MONITORIN
RESIDENCE ORDERS              ,9270,RESIDENCE ORDERS              ,05/04/2013,3435932,273533 20130404 40120    ,469.20,REDACTED PERSONAL DATA,512546,Social Community Care,ADOPTION & FOSTERING          
SPECIAL GUARDIANSHIP          ,9270,RESIDENCE ORDERS              ,05/04/2013,3435933,274362 20130404 40120    ,335.40,REDACTED PERSONAL DATA,539000,Social Community Care,ADOPTION & FOSTERING          
IN HOUSE FOSTER PLACEMENT     ,9270,IN-HOUSE FOSTERING            ,05/04/2013,3435936,121470 20130404 40120    ,634.56,REDACTED PERSONAL DATA,453239,Social Community Care,ADOPTION & FOSTERING          
ADOPTION ALLOWANCES           ,9270,ADOPTION ALLOWANCES           ,05/04/2013,3435938,279838 20130404 40120    ,298.26,REDACTED PERSONAL DATA,549009,Social Community Care,ADOPTION & FOSTERING          
IN HOUSE FOSTER PLACEMENT     ,9270,IN-HOUSE FOSTERING            ,05/04/2013,3435940,280289 20130404 40120    ,468.57,REDACTED PERSONAL DATA,565988,Unclassified Non Trade,OUT OF SCOPE FOR SIC MONITORIN
IN HOUSE FOSTER PLACEMENT     ,9270,IN-HOUSE FOSTERING            ,05/04/2013,3435941,280294 20130404 40120    ,780.57,REDACTED PERSONAL DATA,534615,Social Community Care,ADOPTION & FOSTERING          
ADOPTION ALLOWANCES           ,9270,ADOPTION ALLOWANCES           ,05/04/2013,3435942,280499 20130404 40120    ,274.92,REDACTED PERSONAL DATA,540124,Unclassified Non Trade,OUT OF SCOPE FOR SIC MONITORIN
SPECIAL GUARDIANSHIP          ,9270,RESIDENCE ORDERS              ,05/04/2013,3435944,284355 20130404 40120    ,"2,439.90",REDACTED PERSONAL DATA,515224,Social Community Care,ADOPTION & FOSTERING          
ADOPTION ALLOWANCES           ,9270,ADOPTION ALLOWANCES           ,05/04/2013,3435945,284855 20130404 40120    ,321.60,REDACTED PERSONAL DATA,519590,Social Community Care,ADOPTION & FOSTERING          
SPECIAL GUARDIANSHIP          ,9270,RESIDENCE ORDERS              ,05/04/2013,3435946,286117 20130404 40120    ,368.50,REDACTED PERSONAL DATA,571619,Unclassified Non Trade,OUT OF SCOPE FOR SIC MONITORIN
SPECIAL GUARDIANSHIP          ,9270,RESIDENCE ORDERS              ,05/04/2013,3435948,286786 20130404 40120    ,400.00,REDACTED PERSONAL DATA,518761,Social Community Care,ADOPTION & FOSTERING          
RESIDENCE ORDERS              ,9270,RESIDENCE ORDERS              ,05/04/2013,3435949,28798 20130404 40120     ,321.60,REDACTED PERSONAL DATA,456399,Social Community Care,ADOPTION & FOSTERING          
SPECIAL GUARDIANSHIP          ,9270,RESIDENCE ORDERS              ,05/04/2013,3435950,289356 20130404 40120    ,358.96,REDACTED PERSONAL DATA,529812,Social Community Care,ADOPTION & FOSTERING          
SPECIAL GUARDIANSHIP          ,9270,RESIDENCE ORDERS              ,05/04/2013,3435952,294439 20130404 40120    ,415.40,REDACTED PERSONAL DATA,567626,Unclassified Non Trade,OUT OF SCOPE FOR SIC MONITORIN
SPECIAL GUARDIANSHIP          ,9270,RESIDENCE ORDERS              ,05/04/2013,3435953,29473 20130404 40120     ,970.10,REDACTED PERSONAL DATA,557434,Unclassified Non Trade,OUT OF SCOPE FOR SIC MONITORIN
ADOPTION ALLOWANCES           ,9270,ADOPTION ALLOWANCES           ,05/04/2013,3435954,294818 20130404 40120    ,298.26,REDACTED PERSONAL DATA,522818,Social Community Care,ADOPTION & FOSTERING          
IN HOUSE FOSTER PLACEMENT     ,9270,IN-HOUSE FOSTERING            ,05/04/2013,3435955,294952 20130404 40120    ,468.57,REDACTED PERSONAL DATA,541183,Social Community Care,ADOPTION & FOSTERING          
ADOPTION SERVICE              ,9270,ADOPTION ALLOWANCES           ,05/04/2013,3435956,295330 20130404 40120    ,459.64,REDACTED PERSONAL DATA,539221,Social Community Care,ADOPTION & FOSTERING          
IN HOUSE FOSTER PLACEMENT     ,9270,IN-HOUSE FOSTERING            ,05/04/2013,3435957,295830 20130404 40120    ,788.57,REDACTED PERSONAL DATA,539977,Social Community Care,ADOPTION & FOSTERING          
IN HOUSE FOSTER PLACEMENT     ,9270,IN-HOUSE FOSTERING            ,05/04/2013,3435960,296922 20130404 40120    ,"1,105.71",REDACTED PERSONAL DATA,537564,Social Community Care,ADOPTION & FOSTERING          
IN HOUSE FOSTER PLACEMENT     ,9270,IN-HOUSE FOSTERING            ,05/04/2013,3435961,297028 20130404 40120    ,605.71,REDACTED PERSONAL DATA,543572,Social Community Care,ADOPTION & FOSTERING          
IN HOUSE FOSTER PLACEMENT     ,9270,IN-HOUSE FOSTERING            ,05/04/2013,3435962,297215 20130404 40120    ,430.57,REDACTED PERSONAL DATA,539395,Social Community Care,HOME CARE SERVICES            
SPECIAL GUARDIANSHIP          ,9270,RESIDENCE ORDERS              ,05/04/2013,3435963,298645 20130404 40120    ,321.60,REDACTED PERSONAL DATA,538802,Social Community Care,ADOPTION & FOSTERING          
IN HOUSE FOSTER PLACEMENT     ,9270,IN-HOUSE FOSTERING            ,05/04/2013,3435964,299457 20130404 40120    ,405.71,REDACTED PERSONAL DATA,573239,Social Community Care,DO NOT USE* ADOPTION & FOSTERI
IN HOUSE FOSTER PLACEMENT     ,9270,IN-HOUSE FOSTERING            ,05/04/2013,3435966,300505 20130404 40120    ,430.57,REDACTED PERSONAL DATA,542947,Social Community Care,ADOPTION & FOSTERING          
SPECIAL GUARDIANSHIP          ,9270,RESIDENCE ORDERS              ,05/04/2013,3435967,300699 20130404 40120    ,321.60,REDACTED PERSONAL DATA,527195,Social Community Care,ADOPTION & FOSTERING          
SPECIAL GUARDIANSHIP          ,9270,RESIDENCE ORDERS              ,05/04/2013,3435969,122743 20130404 40120    ,"1,944.20",REDACTED PERSONAL DATA,502731,Social Community Care,ADOPTION & FOSTERING          
RESIDENCE ORDERS              ,9270,RESIDENCE ORDERS              ,05/04/2013,3435973,301894 20130404 40120    ,583.10,REDACTED PERSONAL DATA,532329,Social Community Care,HOME CARE SERVICES            
RESIDENCE ORDERS              ,9270,RESIDENCE ORDERS              ,05/04/2013,3435976,306248 20130404 40120    ,429.20,REDACTED PERSONAL DATA,559051,Social Community Care,ADOPTION & FOSTERING          
CARELEAVER IN HOUSE FOSTERING ,9270,IN-HOUSE FOSTERING            ,05/04/2013,3435977,307157 20130404 40120    ,798.00,REDACTED PERSONAL DATA,567247,Unclassified Non Trade,OUT OF SCOPE FOR SIC MONITORIN
IN HOUSE FOSTER PLACEMENT     ,9270,IN-HOUSE FOSTERING            ,05/04/2013,3435980,123178 20130404 40120    ,698.57,REDACTED PERSONAL DATA,368216,Social Community Care,ADOPTION & FOSTERING          
IN HOUSE FOSTER PLACEMENT     ,9270,IN-HOUSE FOSTERING            ,05/04/2013,3435981,308165 20130404 40120    ,405.71,REDACTED PERSONAL DATA,545887,Social Community Care,ADOPTION & FOSTERING          
SPECIAL GUARDIANSHIP          ,9270,RESIDENCE ORDERS              ,05/04/2013,3435983,314218 20130404 40120    ,274.92,REDACTED PERSONAL DATA,556873,Social Community Care,ADOPTION & FOSTERING          
RESIDENCE ORDERS              ,9270,RESIDENCE ORDERS              ,05/04/2013,3435985,315061 20130404 40120    ,335.40,REDACTED PERSONAL DATA,553535,Social Community Care,ADOPTION & FOSTERING          
ADOPTION ALLOWANCES           ,9270,ADOPTION ALLOWANCES           ,05/04/2013,3435986,316551 20130404 40120    ,274.92,REDACTED PERSONAL DATA,562761,Social Community Care,ADOPTION & FOSTERING          
IN HOUSE FOSTER PLACEMENT     ,9270,IN-HOUSE FOSTERING            ,05/04/2013,3435987,316839 20130404 40120    ,806.28,REDACTED PERSONAL DATA,547793,Social Community Care,ADOPTION & FOSTERING          
IN HOUSE FOSTER PLACEMENT     ,9270,IN-HOUSE FOSTERING            ,05/04/2013,3435989,319658 20130404 40120    ,800.57,REDACTED PERSONAL DATA,547113,Social Community Care,ADOPTION & FOSTERING          
IN HOUSE FOSTER PLACEMENT     ,9270,IN-HOUSE FOSTERING            ,05/04/2013,3435990,31985 20130404 40120     ,710.57,REDACTED PERSONAL DATA,379040,Social Community Care,ADOPTION & FOSTERING          
RESIDENCE ORDERS              ,9270,RESIDENCE ORDERS              ,05/04/2013,3435991,124262 20130404 40120    ,321.60,REDACTED PERSONAL DATA,554211,Social Community Care,ADOPTION & FOSTERING          
IN HOUSE FOSTER PLACEMENT     ,9270,IN-HOUSE FOSTERING            ,05/04/2013,3435993,325419 20130404 40120    ,468.57,REDACTED PERSONAL DATA,549674,Unclassified Non Trade,OUT OF SCOPE FOR SIC MONITORIN
SPECIAL GUARDIANSHIP          ,9270,RESIDENCE ORDERS              ,05/04/2013,3435994,327512 20130404 40120    ,335.40,REDACTED PERSONAL DATA,537882,Social Community Care,ADOPTION & FOSTERING          
IN HOUSE FOSTER PLACEMENT     ,9270,IN-HOUSE FOSTERING            ,05/04/2013,3435996,329424 20130404 40120    ,"1,185.14",REDACTED PERSONAL DATA,549814,Social Community Care,ADOPTION & FOSTERING          
BAIL AND REMAND               ,9270,IN-HOUSE FOSTERING            ,05/04/2013,3435996,329424 20130404 40120    ,250.00,REDACTED PERSONAL DATA,549814,Social Community Care,ADOPTION & FOSTERING          
SPECIAL GUARDIANSHIP          ,9270,RESIDENCE ORDERS              ,05/04/2013,3435997,332414 20130404 40120    ,465.96,REDACTED PERSONAL DATA,547157,Unclassified Non Trade,OUT OF SCOPE FOR SIC MONITORIN
IN HOUSE FOSTER PLACEMENT     ,9270,IN-HOUSE FOSTERING            ,05/04/2013,3435998,332665 20130404 40120    ,"1,011.42",REDACTED PERSONAL DATA,556392,Social Community Care,ADOPTION & FOSTERING          
RESIDENCE ORDERS              ,9270,RESIDENCE ORDERS              ,05/04/2013,3436000,334411 20130404 40120    ,382.30,REDACTED PERSONAL DATA,551220,Social Community Care,ADOPTION & FOSTERING          
IN HOUSE FOSTER PLACEMENT     ,9270,IN-HOUSE FOSTERING            ,05/04/2013,3436001,334785 20130404 40120    ,781.42,REDACTED PERSONAL DATA,549575,Social Community Care,ADOPTION & FOSTERING          
IN HOUSE FOSTER PLACEMENT     ,9270,IN-HOUSE FOSTERING            ,05/04/2013,3436002,125668 20130404 40120    ,605.71,REDACTED PERSONAL DATA,545888,Social Community Care,ADOPTION & FOSTERING          
IN HOUSE FOSTER PLACEMENT     ,9270,IN-HOUSE FOSTERING            ,05/04/2013,3436004,3369 20130404 40120      ,866.57,REDACTED PERSONAL DATA,332891,Social Community Care,ADOPTION & FOSTERING          
RESIDENCE ORDERS              ,9270,RESIDENCE ORDERS              ,05/04/2013,3436006,3403 20130404 40120      ,429.20,REDACTED PERSONAL DATA,333131,Social Community Care,ADOPTION & FOSTERING          
ADOPTION ALLOWANCES           ,9270,ADOPTION ALLOWANCES           ,05/04/2013,3436007,340620 20130404 40120    ,419.28,REDACTED PERSONAL DATA,547584,Unclassified Non Trade,OUT OF SCOPE FOR SIC MONITORIN
ADOPTION ALLOWANCES           ,9270,ADOPTION ALLOWANCES           ,05/04/2013,3436010,341579 20130404 40120    ,298.26,REDACTED PERSONAL DATA,568462,Social Community Care,ADOPTION & FOSTERING          
IN HOUSE FOSTER PLACEMENT     ,9270,IN-HOUSE FOSTERING            ,05/04/2013,3436016,345871 20130404 40120    ,405.71,REDACTED PERSONAL DATA,558413,Social Community Care,ADOPTION & FOSTERING          
SPECIAL GUARDIANSHIP          ,9270,RESIDENCE ORDERS              ,05/04/2013,3436018,346408 20130404 40120    ,321.60,REDACTED PERSONAL DATA,547388,Social Community Care,CAREFIRST DIRECT PAYMENTS     
IN HOUSE FOSTER PLACEMENT     ,9270,IN-HOUSE FOSTERING            ,05/04/2013,3436020,347962 20130404 40120    ,405.71,REDACTED PERSONAL DATA,481084,Unclassified Non Trade,OUT OF SCOPE FOR SIC MONITORIN
IN HOUSE FOSTER PLACEMENT     ,9270,IN-HOUSE FOSTERING            ,05/04/2013,3436021,348029 20130404 40120    ,430.57,REDACTED PERSONAL DATA,560993,Unclassified Non Trade,OUT OF SCOPE FOR SIC MONITORIN
IN HOUSE FOSTER PLACEMENT     ,9270,IN-HOUSE FOSTERING            ,05/04/2013,3436022,348102 20130404 40120    ,927.42,REDACTED PERSONAL DATA,565231,Unclassified Non Trade,OUT OF SCOPE FOR SIC MONITORIN
SPECIAL GUARDIANSHIP          ,9270,RESIDENCE ORDERS              ,05/04/2013,3436027,351763 20130404 40120    ,274.92,REDACTED PERSONAL DATA,549781,Social Community Care,ADOPTION & FOSTERING          
IN HOUSE FOSTER PLACEMENT     ,9270,IN-HOUSE FOSTERING            ,05/04/2013,3436028,352400 20130404 40120    ,"1,036.28",REDACTED PERSONAL DATA,555126,Social Community Care,ADOPTION & FOSTERING          
IN HOUSE FOSTER PLACEMENT     ,9270,IN-HOUSE FOSTERING            ,05/04/2013,3436029,352681 20130404 40120    ,586.57,REDACTED PERSONAL DATA,565043,Unclassified Non Trade,OUT OF SCOPE FOR SIC MONITORIN
IN HOUSE FOSTER PLACEMENT     ,9270,IN-HOUSE FOSTERING            ,05/04/2013,3436030,353554 20130404 40120    ,708.57,REDACTED PERSONAL DATA,576661,Social Community Care,DO NOT USE* ADOPTION & FOSTERI
IN HOUSE FOSTER PLACEMENT     ,9270,IN-HOUSE FOSTERING            ,05/04/2013,3436031,35508 20130404 40120     ,570.57,REDACTED PERSONAL DATA,562193,Social Community Care,ADOPTION & FOSTERING          
RESIDENCE ORDERS              ,9270,RESIDENCE ORDERS              ,05/04/2013,3436032,355552 20130404 40120    ,288.72,REDACTED PERSONAL DATA,557105,Social Community Care,ADOPTION & FOSTERING          
IN HOUSE FOSTER PLACEMENT     ,9270,IN-HOUSE FOSTERING            ,05/04/2013,3436033,358043 20130404 40120    ,405.71,REDACTED PERSONAL DATA,562188,Social Community Care,ADOPTION & FOSTERING          
IN HOUSE FOSTER PLACEMENT     ,9270,IN-HOUSE FOSTERING            ,05/04/2013,3436039,362387 20130404 40120    ,907.14,REDACTED PERSONAL DATA,565738,Unclassified Non Trade,OUT OF SCOPE FOR SIC MONITORIN
RESIDENCE ORDERS              ,9270,RESIDENCE ORDERS              ,05/04/2013,3436040,3633 20130404 40120      ,415.40,REDACTED PERSONAL DATA,528934,Social Community Care,ADOPTION & FOSTERING          
IN HOUSE FOSTER PLACEMENT     ,9270,IN-HOUSE FOSTERING            ,05/04/2013,3436041,36362 20130404 40120     ,505.71,REDACTED PERSONAL DATA,338824,Social Community Care,ADOPTION & FOSTERING          
RESIDENCE ORDERS              ,9270,RESIDENCE ORDERS              ,05/04/2013,3436044,37166 20130404 40120     ,254.60,REDACTED PERSONAL DATA,544764,Unclassified Non Trade,OUT OF SCOPE FOR SIC MONITORIN
IN HOUSE FOSTER PLACEMENT     ,9270,IN-HOUSE FOSTERING            ,05/04/2013,3436045,37330 20130404 40120     ,468.57,REDACTED PERSONAL DATA,553309,Social Community Care,ADOPTION & FOSTERING          
CARELEAVER IN HOUSE FOSTERING ,9270,IN-HOUSE FOSTERING            ,05/04/2013,3436046,374642 20130404 40120    ,326.93,REDACTED PERSONAL DATA,552869,Unclassified Non Trade,OUT OF SCOPE FOR SIC MONITORIN
RESIDENCE ORDERS              ,9270,RESIDENCE ORDERS              ,05/04/2013,3436047,127040 20130404 40120    ,415.40,REDACTED PERSONAL DATA,395096,Social Community Care,ADOPTION & FOSTERING          
ADOPTION ALLOWANCES           ,9270,ADOPTION ALLOWANCES           ,05/04/2013,3436050,379003 20130404 40120    ,312.06,REDACTED PERSONAL DATA,555214,Social Community Care,ADOPTION & FOSTERING          
RESIDENCE ORDERS              ,9270,RESIDENCE ORDERS              ,05/04/2013,3436051,380080 20130404 40120    ,610.32,REDACTED PERSONAL DATA,577485,Social Community Care,ADOPTION & FOSTERING          
IN HOUSE FOSTER PLACEMENT     ,9270,IN-HOUSE FOSTERING            ,05/04/2013,3436053,38284 20130404 40120     ,684.85,REDACTED PERSONAL DATA,437897,Social Community Care,ADOPTION & FOSTERING          
IN HOUSE FOSTER PLACEMENT     ,9270,IN-HOUSE FOSTERING            ,05/04/2013,3436055,387087 20130404 40120    ,468.57,REDACTED PERSONAL DATA,562889,Unclassified Non Trade,OUT OF SCOPE FOR SIC MONITORIN
IN HOUSE FOSTER PLACEMENT     ,9270,IN-HOUSE FOSTERING            ,05/04/2013,3436056,388616 20130404 40120    ,535.71,REDACTED PERSONAL DATA,566168,Social Community Care,Adoption & Fostering
ADOPTION ALLOWANCES           ,9270,ADOPTION ALLOWANCES           ,05/04/2013,3436059,38953 20130404 40120     ,469.20,REDACTED PERSONAL DATA,332995,Social Community Care,ADOPTION & FOSTERING          
IN HOUSE FOSTER PLACEMENT     ,9270,IN-HOUSE FOSTERING            ,05/04/2013,3436060,394220 20130404 40120    ,806.28,REDACTED PERSONAL DATA,566818,Social Community Care,ADOPTION & FOSTERING          
IN HOUSE FOSTER PLACEMENT     ,9270,IN-HOUSE FOSTERING            ,05/04/2013,3436063,39742 20130404 40120     ,"1,185.14",REDACTED PERSONAL DATA,333115,Social Community Care,ADOPTION & FOSTERING          
RESIDENCE ORDERS              ,9270,RESIDENCE ORDERS              ,05/04/2013,3436065,400140 20130404 40120    ,298.26,REDACTED PERSONAL DATA,566433,Social Community Care,ADOPTION & FOSTERING          
ADOPTION ALLOWANCES           ,9270,ADOPTION ALLOWANCES           ,05/04/2013,3436066,40645 20130404 40120     ,368.50,REDACTED PERSONAL DATA,371954,Social Community Care,ADOPTION & FOSTERING          
SPECIAL GUARDIANSHIP          ,9270,RESIDENCE ORDERS              ,05/04/2013,3436067,407128 20130404 40120    ,298.26,REDACTED PERSONAL DATA,558349,Social Community Care,ADOPTION & FOSTERING          
IN HOUSE FOSTER PLACEMENT     ,9270,IN-HOUSE FOSTERING            ,05/04/2013,3436069,127476 20130404 40120    ,"1,217.14",REDACTED PERSONAL DATA,394621,Social Community Care,ADOPTION & FOSTERING          
SPECIAL GUARDIANSHIP          ,9270,RESIDENCE ORDERS              ,05/04/2013,3436070,409960 20130404 40120    ,465.96,REDACTED PERSONAL DATA,563376,Social Community Care,CHILDMINDERS                  
IN HOUSE FOSTER PLACEMENT     ,9270,IN-HOUSE FOSTERING            ,05/04/2013,3436072,4239 20130404 40120      ,786.57,REDACTED PERSONAL DATA,333683,Social Community Care,ADOPTION & FOSTERING          
IN HOUSE FOSTER PLACEMENT     ,9270,IN-HOUSE FOSTERING            ,05/04/2013,3436074,427475 20130404 40120    ,831.14,REDACTED PERSONAL DATA,569417,Unclassified Non Trade,OUT OF SCOPE FOR SIC MONITORIN
RESIDENCE ORDERS              ,9270,RESIDENCE ORDERS              ,05/04/2013,3436075,42902 20130404 40120     ,646.90,REDACTED PERSONAL DATA,421999,Social Community Care,ADOPTION & FOSTERING          
IN HOUSE FOSTER PLACEMENT     ,9270,IN-HOUSE FOSTERING            ,05/04/2013,3436076,429366 20130404 40120    ,405.71,REDACTED PERSONAL DATA,571963,Unclassified Non Trade,OUT OF SCOPE FOR SIC MONITORIN
IN HOUSE FOSTER PLACEMENT     ,9270,IN-HOUSE FOSTERING            ,05/04/2013,3436079,4340 20130404 40120      ,"1,794.85",REDACTED PERSONAL DATA,338749,Social Community Care,ADOPTION & FOSTERING          
IN HOUSE FOSTER PLACEMENT     ,9270,IN-HOUSE FOSTERING            ,05/04/2013,3436080,127884 20130404 40120    ,"1,011.42",REDACTED PERSONAL DATA,382392,Social Community Care,ADOPTION & FOSTERING          
SPECIAL GUARDIANSHIP          ,9270,RESIDENCE ORDERS              ,05/04/2013,3436081,436393 20130404 40120    ,465.96,REDACTED PERSONAL DATA,563363,Social Community Care,ADOPTION & FOSTERING          
RESIDENCE ORDERS              ,9270,RESIDENCE ORDERS              ,05/04/2013,3436083,437427 20130404 40120    ,559.76,REDACTED PERSONAL DATA,572826,Social Community Care,DO NOT USE* ADOPTION & FOSTERI
IN HOUSE FOSTER PLACEMENT     ,9270,IN-HOUSE FOSTERING            ,05/04/2013,3436085,44274 20130404 40120     ,430.57,REDACTED PERSONAL DATA,394348,Social Community Care,ADOPTION & FOSTERING          
RESIDENCE ORDERS              ,9270,RESIDENCE ORDERS              ,05/04/2013,3436087,44562 20130404 40120     ,268.40,REDACTED PERSONAL DATA,451348,Social Community Care,ADOPTION & FOSTERING          
IN HOUSE FOSTER PLACEMENT     ,9270,IN-HOUSE FOSTERING            ,05/04/2013,3436088,446407 20130404 40120    ,405.71,REDACTED PERSONAL DATA,571373,Social Community Care,ADOPTION & FOSTERING          
IN HOUSE FOSTER PLACEMENT     ,9270,IN-HOUSE FOSTERING            ,05/04/2013,3436089,450550 20130404 40120    ,405.71,REDACTED PERSONAL DATA,576268,Social Community Care,DO NOT USE* ADOPTION & FOSTERI
IN HOUSE FOSTER PLACEMENT     ,9270,IN-HOUSE FOSTERING            ,05/04/2013,3436093,454791 20130404 40120    ,731.87,REDACTED PERSONAL DATA,575661,Unclassified Non Trade,OUT OF SCOPE FOR SIC MONITORIN
SPECIAL GUARDIANSHIP          ,9270,RESIDENCE ORDERS              ,05/04/2013,3436094,454875 20130404 40120    ,513.48,REDACTED PERSONAL DATA,567381,Unclassified Non Trade,OUT OF SCOPE FOR SIC MONITORIN
IN HOUSE FOSTER PLACEMENT     ,9270,IN-HOUSE FOSTERING            ,05/04/2013,3436095,455027 20130404 40120    ,568.43,REDACTED PERSONAL DATA,574529,Social Community Care,ADOPTION & FOSTERING          
BAIL AND REMAND               ,9270,IN-HOUSE FOSTERING            ,05/04/2013,3436095,455027 20130404 40120    ,250.00,REDACTED PERSONAL DATA,574529,Social Community Care,ADOPTION & FOSTERING          
IN HOUSE FOSTER PLACEMENT     ,9270,IN-HOUSE FOSTERING            ,05/04/2013,3436096,455183 20130404 40120    ,405.71,REDACTED PERSONAL DATA,571978,Unclassified Non Trade,OUT OF SCOPE FOR SIC MONITORIN
IN HOUSE FOSTER PLACEMENT     ,9270,IN-HOUSE FOSTERING            ,05/04/2013,3436098,456709 20130404 40120    ,430.57,REDACTED PERSONAL DATA,576070,Unclassified Non Trade,OUT OF SCOPE FOR SIC MONITORIN
IN HOUSE FOSTER PLACEMENT     ,9270,IN-HOUSE FOSTERING            ,05/04/2013,3436100,457513 20130404 40120    ,438.65,REDACTED PERSONAL DATA,577013,Social Community Care,ADOPTION & FOSTERING          
IN HOUSE FOSTER PLACEMENT     ,9270,IN-HOUSE FOSTERING            ,05/04/2013,3436101,459248 20130404 40120    ,786.42,REDACTED PERSONAL DATA,575917,Unclassified Non Trade,OUT OF SCOPE FOR SIC MONITORIN
IN HOUSE FOSTER PLACEMENT     ,9270,IN-HOUSE FOSTERING            ,05/04/2013,3436102,128440 20130404 40120    ,"1,011.42",REDACTED PERSONAL DATA,545489,Social Community Care,ADOPTION & FOSTERING          
SPECIAL GUARDIANSHIP          ,9270,RESIDENCE ORDERS              ,05/04/2013,3436103,459275 20130404 40120    ,368.50,REDACTED PERSONAL DATA,566036,Unclassified Non Trade,OUT OF SCOPE FOR SIC MONITORIN
IN HOUSE FOSTER PLACEMENT     ,9270,IN-HOUSE FOSTERING            ,05/04/2013,3436104,459409 20130404 40120    ,430.57,REDACTED PERSONAL DATA,576176,Unclassified Non Trade,OUT OF SCOPE FOR SIC MONITORIN
IN HOUSE FOSTER PLACEMENT     ,9270,IN-HOUSE FOSTERING            ,05/04/2013,3436105,460252 20130404 40120    ,781.42,REDACTED PERSONAL DATA,576214,Social Community Care,ADOPTION & FOSTERING          
SPECIAL GUARDIANSHIP          ,9270,RESIDENCE ORDERS              ,05/04/2013,3436107,464651 20130404 40120    ,274.92,REDACTED PERSONAL DATA,571109,Unclassified Non Trade,OUT OF SCOPE FOR SIC MONITORIN
ADOPTION ALLOWANCES           ,9270,ADOPTION ALLOWANCES           ,05/04/2013,3436115,4942 20130404 40120      ,382.30,REDACTED PERSONAL DATA,333366,Social Community Care,ADOPTION & FOSTERING          
IN HOUSE FOSTER PLACEMENT     ,9270,IN-HOUSE FOSTERING            ,05/04/2013,3436117,496947 20130404 40120    ,405.71,REDACTED PERSONAL DATA,576269,Social Community Care,DO NOT USE* ADOPTION & FOSTERI
RESIDENCE ORDERS              ,9270,RESIDENCE ORDERS              ,05/04/2013,3436122,49985 20130404 40120     ,321.60,REDACTED PERSONAL DATA,542605,Social Community Care,ADOPTION & FOSTERING          
ADOPTION ALLOWANCES           ,9270,ADOPTION ALLOWANCES           ,05/04/2013,3436123,50094 20130404 40120     ,435.90,REDACTED PERSONAL DATA,458647,Social Community Care,ADOPTION & FOSTERING          
IN HOUSE FOSTER PLACEMENT     ,9270,IN-HOUSE FOSTERING            ,05/04/2013,3436126,50815 20130404 40120     ,535.71,REDACTED PERSONAL DATA,333255,Social Community Care,ADOPTION & FOSTERING          
SPECIAL GUARDIANSHIP          ,9270,RESIDENCE ORDERS              ,05/04/2013,3436127,511208 20130404 40120    ,298.26,REDACTED PERSONAL DATA,572170,Unclassified Non Trade,OUT OF SCOPE FOR SIC MONITORIN
ADOPTION ALLOWANCES           ,9270,ADOPTION ALLOWANCES           ,05/04/2013,3436128,511587 20130404 40120    ,365.66,REDACTED PERSONAL DATA,573445,Social Community Care,ADOPTION & FOSTERING          
SPECIAL GUARDIANSHIP          ,9270,RESIDENCE ORDERS              ,05/04/2013,3436130,514147 20130404 40120    ,288.72,REDACTED PERSONAL DATA,571621,Unclassified Non Trade,OUT OF SCOPE FOR SIC MONITORIN
IN HOUSE FOSTER PLACEMENT     ,9270,IN-HOUSE FOSTERING            ,05/04/2013,3436131,52188 20130404 40120     ,710.57,REDACTED PERSONAL DATA,395410,Social Community Care,ADOPTION & FOSTERING          
IN HOUSE FOSTER PLACEMENT     ,9270,IN-HOUSE FOSTERING            ,05/04/2013,3436132,5232 20130404 40120      ,"1,339.14",REDACTED PERSONAL DATA,333284,Social Community Care,ADOPTION & FOSTERING          
ADOPTION ALLOWANCES           ,9270,ADOPTION ALLOWANCES           ,05/04/2013,3436135,13072 20130404 40120     ,415.40,REDACTED PERSONAL DATA,338873,Social Community Care,ADOPTION & FOSTERING          
ADOPTION ALLOWANCES           ,9270,ADOPTION ALLOWANCES           ,05/04/2013,3436137,53466 20130404 40120     ,321.60,REDACTED PERSONAL DATA,516788,Social Community Care,ADOPTION & FOSTERING          
IN HOUSE FOSTER PLACEMENT     ,9270,IN-HOUSE FOSTERING            ,05/04/2013,3436139,53755 20130404 40120     ,"1,221.14",REDACTED PERSONAL DATA,332878,Social Community Care,ADOPTION & FOSTERING          
IN HOUSE FOSTER PLACEMENT     ,9270,IN-HOUSE FOSTERING            ,05/04/2013,3436140,538547 20130404 40120    ,496.28,REDACTED PERSONAL DATA,572240,Social Community Care,ADOPTION & FOSTERING          
CARELEAVER IN HOUSE FOSTERING ,9270,IN-HOUSE FOSTERING            ,05/04/2013,3436142,540310 20130404 40120    ,390.25,REDACTED PERSONAL DATA,571999,Unclassified Non Trade,OUT OF SCOPE FOR SIC MONITORIN
IN HOUSE FOSTER PLACEMENT     ,9270,IN-HOUSE FOSTERING            ,05/04/2013,3436145,54948 20130404 40120     ,"1,495.14",REDACTED PERSONAL DATA,401257,Social Community Care,ADOPTION & FOSTERING          
RESIDENCE ORDERS              ,9270,RESIDENCE ORDERS              ,05/04/2013,3436146,103337 20130404 40120    ,254.60,REDACTED PERSONAL DATA,344556,Social Community Care,ADOPTION & FOSTERING          
IN HOUSE FOSTER PLACEMENT     ,9270,IN-HOUSE FOSTERING            ,05/04/2013,3436148,55871 20130404 40120     ,605.71,REDACTED PERSONAL DATA,332982,Social Community Care,ADOPTION & FOSTERING          
SPECIAL GUARDIANSHIP          ,9270,RESIDENCE ORDERS              ,05/04/2013,3436150,562507 20130404 40120    ,368.50,REDACTED PERSONAL DATA,567453,Unclassified Non Trade,OUT OF SCOPE FOR SIC MONITORIN
IN HOUSE FOSTER PLACEMENT     ,9270,IN-HOUSE FOSTERING            ,05/04/2013,3436151,56472 20130404 40120     ,796.57,REDACTED PERSONAL DATA,332894,Social Community Care,ADOPTION & FOSTERING          
SPECIAL GUARDIANSHIP          ,9270,RESIDENCE ORDERS              ,05/04/2013,3436152,565867 20130404 40120    ,312.06,REDACTED PERSONAL DATA,576608,Unclassified Non Trade,OUT OF SCOPE FOR SIC MONITORIN
ADOPTION ALLOWANCES           ,9270,ADOPTION ALLOWANCES           ,05/04/2013,3436155,586526 20130404 40120    ,726.57,REDACTED PERSONAL DATA,576283,Unclassified Non Trade,OUT OF SCOPE FOR SIC MONITORIN
IN HOUSE FOSTER PLACEMENT     ,9270,IN-HOUSE FOSTERING            ,05/04/2013,3436156,5899 20130404 40120      ,"1,255.14",REDACTED PERSONAL DATA,332893,Social Community Care,ADOPTION & FOSTERING          
IN HOUSE FOSTER PLACEMENT     ,9270,IN-HOUSE FOSTERING            ,05/04/2013,3436157,59012 20130404 40120     ,"1,036.28",REDACTED PERSONAL DATA,333610,Social Community Care,ADOPTION & FOSTERING          
IN HOUSE FOSTER PLACEMENT     ,9270,IN-HOUSE FOSTERING            ,05/04/2013,3436159,59205 20130404 40120     ,"1,857.71",REDACTED PERSONAL DATA,368211,Social Community Care,ADOPTION & FOSTERING          
IN HOUSE FOSTER PLACEMENT     ,9270,IN-HOUSE FOSTERING            ,05/04/2013,3436161,60275 20130404 40120     ,"1,255.14",REDACTED PERSONAL DATA,429874,Social Community Care,ADOPTION & FOSTERING          
IN HOUSE FOSTER PLACEMENT     ,9270,IN-HOUSE FOSTERING            ,05/04/2013,3436162,60616 20130404 40120     ,"1,202.86",REDACTED PERSONAL DATA,333511,Social Community Care,ADOPTION & FOSTERING          
IN HOUSE FOSTER PLACEMENT     ,9270,IN-HOUSE FOSTERING            ,05/04/2013,3436165,6158 20130404 40120      ,"1,529.71",REDACTED PERSONAL DATA,540317,Social Community Care,ADOPTION & FOSTERING          
IN HOUSE FOSTER PLACEMENT     ,9270,IN-HOUSE FOSTERING            ,05/04/2013,3436166,62204 20130404 40120     ,630.57,REDACTED PERSONAL DATA,333618,Social Community Care,ADOPTION & FOSTERING          
RESIDENCE ORDERS              ,9270,RESIDENCE ORDERS              ,05/04/2013,3436167,62544 20130404 40120     ,596.90,REDACTED PERSONAL DATA,333037,Social Community Care,ADOPTION & FOSTERING          
IN HOUSE FOSTER PLACEMENT     ,9270,IN-HOUSE FOSTERING            ,05/04/2013,3436168,62842 20130404 40120     ,605.71,REDACTED PERSONAL DATA,333091,Social Community Care,ADOPTION & FOSTERING          
ADOPTION ALLOWANCES           ,9270,ADOPTION ALLOWANCES           ,05/04/2013,3436168,62842 20130404 40120     ,945.70,REDACTED PERSONAL DATA,333091,Social Community Care,ADOPTION & FOSTERING          
RESIDENCE ORDERS              ,9270,RESIDENCE ORDERS              ,05/04/2013,3436171,64357 20130404 40120     ,321.60,REDACTED PERSONAL DATA,537234,Social Community Care,ADOPTION & FOSTERING          
IN HOUSE FOSTER PLACEMENT     ,9270,IN-HOUSE FOSTERING            ,05/04/2013,3436173,64992 20130404 40120     ,"1,297.14",REDACTED PERSONAL DATA,333282,Social Community Care,ADOPTION & FOSTERING          
ADOPTION ALLOWANCES           ,9270,ADOPTION ALLOWANCES           ,05/04/2013,3436174,65520 20130404 40120     ,268.40,REDACTED PERSONAL DATA,333005,Social Community Care,ADOPTION & FOSTERING          
IN HOUSE FOSTER PLACEMENT     ,9270,IN-HOUSE FOSTERING            ,05/04/2013,3436174,65520 20130404 40120     ,"1,417.13",REDACTED PERSONAL DATA,333005,Social Community Care,ADOPTION & FOSTERING          
IN HOUSE FOSTER PLACEMENT     ,9270,IN-HOUSE FOSTERING            ,05/04/2013,3436175,65854 20130404 40120     ,987.14,REDACTED PERSONAL DATA,338734,Social Community Care,ADOPTION & FOSTERING          
ADOPTION ALLOWANCES           ,9270,ADOPTION ALLOWANCES           ,05/04/2013,3436176,6608 20130404 40120      ,335.40,REDACTED PERSONAL DATA,454665,Social Community Care,ADOPTION & FOSTERING          
ADOPTION ALLOWANCES           ,9270,ADOPTION ALLOWANCES           ,05/04/2013,3436177,664 20130404 40120       ,415.40,REDACTED PERSONAL DATA,362565,Social Community Care,ADOPTION & FOSTERING          
IN HOUSE FOSTER PLACEMENT     ,9270,IN-HOUSE FOSTERING            ,05/04/2013,3436178,68046 20130404 40120     ,788.57,REDACTED PERSONAL DATA,207768,Social Community Care,ADOPTION & FOSTERING          
ADOPTION ALLOWANCES           ,9270,ADOPTION ALLOWANCES           ,05/04/2013,3436178,68046 20130404 40120     ,287.56,REDACTED PERSONAL DATA,207768,Social Community Care,ADOPTION & FOSTERING          
ADOPTION SERVICE              ,9270,ADOPTION ALLOWANCES           ,05/04/2013,3436180,132001 20130404 40120    ,469.64,REDACTED PERSONAL DATA,401464,Social Community Care,ADOPTION & FOSTERING          
IN HOUSE FOSTER PLACEMENT     ,9270,IN-HOUSE FOSTERING            ,05/04/2013,3436180,132001 20130404 40120    ,"1,994.14",REDACTED PERSONAL DATA,401464,Social Community Care,ADOPTION & FOSTERING          
IN HOUSE FOSTER PLACEMENT     ,9270,IN-HOUSE FOSTERING            ,05/04/2013,3436181,69464 20130404 40120     ,605.71,REDACTED PERSONAL DATA,333438,Social Community Care,ADOPTION & FOSTERING          
IN HOUSE FOSTER PLACEMENT     ,9270,IN-HOUSE FOSTERING            ,05/04/2013,3436182,69804 20130404 40120     ,"1,319.14",REDACTED PERSONAL DATA,333694,Social Community Care,ADOPTION & FOSTERING          
IN HOUSE FOSTER PLACEMENT     ,9270,IN-HOUSE FOSTERING            ,05/04/2013,3436183,69844 20130404 40120     ,950.57,REDACTED PERSONAL DATA,333815,Social Community Care,ADOPTION & FOSTERING          
CARELEAVER IN HOUSE FOSTERING ,9270,IN-HOUSE FOSTERING            ,05/04/2013,3436183,69844 20130404 40120     ,344.00,REDACTED PERSONAL DATA,333815,Social Community Care,ADOPTION & FOSTERING          
IN HOUSE FOSTER PLACEMENT     ,9270,IN-HOUSE FOSTERING            ,05/04/2013,3436186,71652 20130404 40120     ,660.57,REDACTED PERSONAL DATA,333207,Social Community Care,ADOPTION & FOSTERING          
IN HOUSE FOSTER PLACEMENT     ,9270,IN-HOUSE FOSTERING            ,05/04/2013,3436187,72432 20130404 40120     ,"1,036.28",REDACTED PERSONAL DATA,398055,Social Community Care,ADOPTION & FOSTERING          
IN HOUSE FOSTER PLACEMENT     ,9270,IN-HOUSE FOSTERING            ,05/04/2013,3436188,73971 20130404 40120     ,605.71,REDACTED PERSONAL DATA,332984,Social Community Care,ADOPTION & FOSTERING          
IN HOUSE FOSTER PLACEMENT     ,9270,IN-HOUSE FOSTERING            ,05/04/2013,3436190,7644 20130404 40120      ,668.57,REDACTED PERSONAL DATA,527335,Social Community Care,ADOPTION & FOSTERING          
RESIDENCE ORDERS              ,9270,RESIDENCE ORDERS              ,05/04/2013,3436191,133205 20130404 40120    ,415.40,REDACTED PERSONAL DATA,338886,Social Community Care,ADOPTION & FOSTERING          
IN HOUSE FOSTER PLACEMENT     ,9270,IN-HOUSE FOSTERING            ,05/04/2013,3436192,77354 20130404 40120     ,"1,217.14",REDACTED PERSONAL DATA,333280,Social Community Care,ADOPTION & FOSTERING          
IN HOUSE FOSTER PLACEMENT     ,9270,IN-HOUSE FOSTERING            ,05/04/2013,3436193,774 20130404 40120       ,"1,011.42",REDACTED PERSONAL DATA,333661,Social Community Care,ADOPTION & FOSTERING          
ADOPTION ALLOWANCES           ,9270,ADOPTION ALLOWANCES           ,05/04/2013,3436193,774 20130404 40120       ,295.20,REDACTED PERSONAL DATA,333661,Social Community Care,ADOPTION & FOSTERING          
IN HOUSE FOSTER PLACEMENT     ,9270,IN-HOUSE FOSTERING            ,05/04/2013,3436195,78545 20130404 40120     ,"1,099.14",REDACTED PERSONAL DATA,332919,Social Community Care,ADOPTION & FOSTERING          
IN HOUSE FOSTER PLACEMENT     ,9270,IN-HOUSE FOSTERING            ,05/04/2013,3436196,78553 20130404 40120     ,"1,263.43",REDACTED PERSONAL DATA,333703,Social Community Care,ADOPTION & FOSTERING          
IN HOUSE FOSTER PLACEMENT     ,9270,IN-HOUSE FOSTERING            ,05/04/2013,3436197,80334 20130404 40120     ,405.71,REDACTED PERSONAL DATA,333412,Social Community Care,ADOPTION & FOSTERING          
IN HOUSE FOSTER PLACEMENT     ,9270,IN-HOUSE FOSTERING            ,05/04/2013,3436199,81896 20130404 40120     ,635.71,REDACTED PERSONAL DATA,338778,Social Community Care,ADOPTION & FOSTERING          
ADOPTION SERVICE              ,9270,ADOPTION ALLOWANCES           ,05/04/2013,3436199,81896 20130404 40120     ,470.24,REDACTED PERSONAL DATA,338778,Social Community Care,ADOPTION & FOSTERING          
ADOPTION SERVICE              ,9270,ADOPTION ALLOWANCES           ,05/04/2013,3436201,82275 20130404 40120     ,342.40,REDACTED PERSONAL DATA,338910,Social Community Care,ADOPTION & FOSTERING          
IN HOUSE FOSTER PLACEMENT     ,9270,IN-HOUSE FOSTERING            ,05/04/2013,3436202,133315 20130404 40120    ,650.71,REDACTED PERSONAL DATA,517411,Social Community Care,ADOPTION & FOSTERING          
IN HOUSE FOSTER PLACEMENT     ,9270,IN-HOUSE FOSTERING            ,05/04/2013,3436204,84339 20130404 40120     ,"1,276.28",REDACTED PERSONAL DATA,333060,Social Community Care,ADOPTION & FOSTERING          
CARELEAVER IN HOUSE FOSTERING ,9270,IN-HOUSE FOSTERING            ,05/04/2013,3436205,84463 20130404 40120     ,344.00,REDACTED PERSONAL DATA,333636,Social Community Care,ADOPTION & FOSTERING          
IN HOUSE FOSTER PLACEMENT     ,9270,IN-HOUSE FOSTERING            ,05/04/2013,3436205,84463 20130404 40120     ,522.57,REDACTED PERSONAL DATA,333636,Social Community Care,ADOPTION & FOSTERING          
IN HOUSE FOSTER PLACEMENT     ,9270,IN-HOUSE FOSTERING            ,05/04/2013,3436206,84605 20130404 40120     ,750.57,REDACTED PERSONAL DATA,333262,Social Community Care,ADOPTION & FOSTERING          
IN HOUSE FOSTER PLACEMENT     ,9270,IN-HOUSE FOSTERING            ,05/04/2013,3436207,84825 20130404 40120     ,"1,137.14",REDACTED PERSONAL DATA,332976,Social Community Care,ADOPTION & FOSTERING          
RESIDENCE ORDERS              ,9270,RESIDENCE ORDERS              ,05/04/2013,3436208,8496 20130404 40120      ,536.20,REDACTED PERSONAL DATA,489216,Social Community Care,ADOPTION & FOSTERING          
CARELEAVER IN HOUSE FOSTERING ,9270,IN-HOUSE FOSTERING            ,05/04/2013,3436210,86667 20130404 40120     ,250.00,REDACTED PERSONAL DATA,333523,Social Community Care,ADOPTION & FOSTERING          
IN HOUSE FOSTER PLACEMENT     ,9270,IN-HOUSE FOSTERING            ,05/04/2013,3436212,90340 20130404 40120     ,"1,099.14",REDACTED PERSONAL DATA,333663,Social Community Care,ADOPTION & FOSTERING          
IN HOUSE FOSTER PLACEMENT     ,9270,IN-HOUSE FOSTERING            ,05/04/2013,3436213,133705 20130404 40120    ,"1,011.42",REDACTED PERSONAL DATA,419128,Social Community Care,ADOPTION & FOSTERING          
IN HOUSE FOSTER PLACEMENT     ,9270,IN-HOUSE FOSTERING            ,05/04/2013,3436214,90657 20130404 40120     ,"1,441.99",REDACTED PERSONAL DATA,371936,Social Community Care,ADOPTION & FOSTERING          
RESIDENCE ORDERS              ,9270,RESIDENCE ORDERS              ,05/04/2013,3436215,90883 20130404 40120     ,254.60,REDACTED PERSONAL DATA,428291,Social Community Care,ADOPTION & FOSTERING          
IN HOUSE FOSTER PLACEMENT     ,9270,IN-HOUSE FOSTERING            ,05/04/2013,3436216,9093 20130404 40120      ,"1,036.57",REDACTED PERSONAL DATA,333249,Social Community Care,ADOPTION & FOSTERING          
IN HOUSE FOSTER PLACEMENT     ,9270,IN-HOUSE FOSTERING            ,05/04/2013,3436217,91090 20130404 40120     ,"1,099.14",REDACTED PERSONAL DATA,333434,Social Community Care,ADOPTION & FOSTERING          
IN HOUSE FOSTER PLACEMENT     ,9270,IN-HOUSE FOSTERING            ,05/04/2013,3436218,91281 20130404 40120     ,500.00,REDACTED PERSONAL DATA,502223,Social Community Care,ADOPTION & FOSTERING          
ADOPTION SERVICE              ,9270,ADOPTION ALLOWANCES           ,05/04/2013,3436218,91281 20130404 40120     ,461.22,REDACTED PERSONAL DATA,502223,Social Community Care,ADOPTION & FOSTERING          
IN HOUSE FOSTER PLACEMENT     ,9270,IN-HOUSE FOSTERING            ,05/04/2013,3436219,91723 20130404 40120     ,727.71,REDACTED PERSONAL DATA,333048,Social Community Care,ADOPTION & FOSTERING          
IN HOUSE FOSTER PLACEMENT     ,9270,IN-HOUSE FOSTERING            ,05/04/2013,3436220,91857 20130404 40120     ,478.29,REDACTED PERSONAL DATA,414480,Social Community Care,ADOPTION & FOSTERING          
IN HOUSE FOSTER PLACEMENT     ,9270,IN-HOUSE FOSTERING            ,05/04/2013,3436223,92756 20130404 40120     ,"1,533.14",REDACTED PERSONAL DATA,332988,Social Community Care,ADOPTION & FOSTERING          
IN HOUSE FOSTER PLACEMENT     ,9270,IN-HOUSE FOSTERING            ,05/04/2013,3436224,133938 20130404 40120    ,405.71,REDACTED PERSONAL DATA,384614,Social Community Care,ADOPTION & FOSTERING          
IN HOUSE FOSTER PLACEMENT     ,9270,IN-HOUSE FOSTERING            ,05/04/2013,3436225,92844 20130404 40120     ,"1,259.14",REDACTED PERSONAL DATA,377924,Social Community Care,ADOPTION & FOSTERING          
IN HOUSE FOSTER PLACEMENT     ,9270,IN-HOUSE FOSTERING            ,05/04/2013,3436226,93353 20130404 40120     ,"2,305.70",REDACTED PERSONAL DATA,333631,Social Community Care,ADOPTION & FOSTERING          
IN HOUSE FOSTER PLACEMENT     ,9270,IN-HOUSE FOSTERING            ,05/04/2013,3436227,93512 20130404 40120     ,316.87,REDACTED PERSONAL DATA,329192,Social Community Care,ADOPTION & FOSTERING          
IN HOUSE FOSTER PLACEMENT     ,9270,IN-HOUSE FOSTERING            ,05/04/2013,3436228,93777 20130404 40120     ,605.71,REDACTED PERSONAL DATA,333179,Social Community Care,ADOPTION & FOSTERING          
RESIDENCE ORDERS              ,9270,RESIDENCE ORDERS              ,05/04/2013,3436229,93800 20130404 40120     ,327.96,REDACTED PERSONAL DATA,333100,Social Community Care,ADOPTION & FOSTERING          
BAIL AND REMAND               ,9270,IN-HOUSE FOSTERING            ,05/04/2013,3436230,93897 20130404 40120     ,250.00,REDACTED PERSONAL DATA,333547,Social Community Care,ADOPTION & FOSTERING          
IN HOUSE FOSTER PLACEMENT     ,9270,IN-HOUSE FOSTERING            ,05/04/2013,3436230,93897 20130404 40120     ,"1,255.14",REDACTED PERSONAL DATA,333547,Social Community Care,ADOPTION & FOSTERING          
ADOPTION ALLOWANCES           ,9270,ADOPTION ALLOWANCES           ,05/04/2013,3436231,94151 20130404 40120     ,415.40,REDACTED PERSONAL DATA,384635,Social Community Care,ADOPTION & FOSTERING          
RESIDENCE ORDERS              ,9270,RESIDENCE ORDERS              ,05/04/2013,3436232,94349 20130404 40120     ,583.10,REDACTED PERSONAL DATA,332876,Social Community Care,ADOPTION & FOSTERING          
IN HOUSE FOSTER PLACEMENT     ,9270,IN-HOUSE FOSTERING            ,05/04/2013,3436234,95231 20130404 40120     ,706.57,REDACTED PERSONAL DATA,333600,Social Community Care,ADOPTION & FOSTERING          
ADOPTION SERVICE              ,9270,ADOPTION ALLOWANCES           ,05/04/2013,3436235,133942 20130404 40120    ,458.02,REDACTED PERSONAL DATA,391833,Social Community Care,ADOPTION & FOSTERING          
IN HOUSE FOSTER PLACEMENT     ,9270,IN-HOUSE FOSTERING            ,05/04/2013,3436235,133942 20130404 40120    ,"1,141.42",REDACTED PERSONAL DATA,391833,Social Community Care,ADOPTION & FOSTERING          
ADOPTION ALLOWANCES           ,9270,ADOPTION ALLOWANCES           ,05/04/2013,3436236,95738 20130404 40120     ,313.74,REDACTED PERSONAL DATA,434082,Social Community Care,ADOPTION & FOSTERING          
RESIDENCE ORDERS              ,9270,RESIDENCE ORDERS              ,05/04/2013,3436237,96520 20130404 40120     ,335.40,REDACTED PERSONAL DATA,518748,Social Community Care,CHILDCARE SERVICES            
SPECIAL GUARDIANSHIP          ,9270,RESIDENCE ORDERS              ,05/04/2013,3436238,97475 20130404 40120     ,321.60,REDACTED PERSONAL DATA,568469,Social Community Care,ADOPTION & FOSTERING          
IN HOUSE FOSTER PLACEMENT     ,9270,IN-HOUSE FOSTERING            ,05/04/2013,3436239,98203 20130404 40120     ,668.57,REDACTED PERSONAL DATA,333450,Social Community Care,ADOPTION & FOSTERING          
ADOPTION ALLOWANCES           ,9270,ADOPTION ALLOWANCES           ,05/04/2013,3436241,98735 20130404 40120     ,268.40,REDACTED PERSONAL DATA,333528,Social Community Care,ADOPTION & FOSTERING          
ADOPTION ALLOWANCES           ,9270,ADOPTION ALLOWANCES           ,05/04/2013,3436242,98772 20130404 40120     ,482.80,REDACTED PERSONAL DATA,368010,Social Community Care,ADOPTION & FOSTERING          
IN HOUSE FOSTER PLACEMENT     ,9270,IN-HOUSE FOSTERING            ,05/04/2013,3436243,99174 20130404 40120     ,605.71,REDACTED PERSONAL DATA,528898,Social Community Care,ADOPTION & FOSTERING          
IN HOUSE FOSTER PLACEMENT     ,9270,IN-HOUSE FOSTERING            ,05/04/2013,3436250,135152 20130404 40120    ,"1,211.14",REDACTED PERSONAL DATA,418759,Social Community Care,ADOPTION & FOSTERING          
IN HOUSE FOSTER PLACEMENT     ,9270,IN-HOUSE FOSTERING            ,05/04/2013,3436251,136081 20130404 40120    ,630.57,REDACTED PERSONAL DATA,413709,Social Community Care,ADOPTION & FOSTERING          
IN HOUSE FOSTER PLACEMENT     ,9270,IN-HOUSE FOSTERING            ,05/04/2013,3436252,137064 20130404 40120    ,668.57,REDACTED PERSONAL DATA,333536,Social Community Care,ADOPTION & FOSTERING          
RESIDENCE ORDERS              ,9270,RESIDENCE ORDERS              ,05/04/2013,3436253,137645 20130404 40120    ,469.20,REDACTED PERSONAL DATA,338763,Social Community Care,ADOPTION & FOSTERING          
ADOPTION ALLOWANCES           ,9270,ADOPTION ALLOWANCES           ,05/04/2013,3436258,138968 20130404 40120    ,368.50,REDACTED PERSONAL DATA,421932,Social Community Care,ADOPTION & FOSTERING          
CARELEAVER IN HOUSE FOSTERING ,9270,IN-HOUSE FOSTERING            ,05/04/2013,3436260,139839 20130404 40120    ,250.00,REDACTED PERSONAL DATA,457380,Social Community Care,ADOPTION & FOSTERING          
IN HOUSE FOSTER PLACEMENT     ,9270,IN-HOUSE FOSTERING            ,05/04/2013,3436260,139839 20130404 40120    ,838.57,REDACTED PERSONAL DATA,457380,Social Community Care,ADOPTION & FOSTERING          
RESIDENCE ORDERS              ,9270,RESIDENCE ORDERS              ,05/04/2013,3436261,142 20130404 40120       ,268.40,REDACTED PERSONAL DATA,333055,Social Community Care,ADOPTION & FOSTERING          
RESIDENCE ORDERS              ,9270,RESIDENCE ORDERS              ,05/04/2013,3436262,142014 20130404 40120    ,429.20,REDACTED PERSONAL DATA,456400,Social Community Care,ADOPTION & FOSTERING          
IN HOUSE FOSTER PLACEMENT     ,9270,IN-HOUSE FOSTERING            ,05/04/2013,3436263,142307 20130404 40120    ,"1,217.14",REDACTED PERSONAL DATA,502726,Social Community Care,ADOPTION & FOSTERING          
RESIDENCE ORDERS              ,9270,RESIDENCE ORDERS              ,05/04/2013,3436264,142933 20130404 40120    ,335.40,REDACTED PERSONAL DATA,333581,Social Community Care,ADOPTION & FOSTERING          
CARELEAVER IN HOUSE FOSTERING ,9270,IN-HOUSE FOSTERING            ,05/04/2013,3436265,143715 20130404 40120    ,829.08,REDACTED PERSONAL DATA,574472,Unclassified Non Trade,OUT OF SCOPE FOR SIC MONITORIN
IN HOUSE FOSTER PLACEMENT     ,9270,IN-HOUSE FOSTERING            ,05/04/2013,3436266,14509 20130404 40120     ,"1,185.14",REDACTED PERSONAL DATA,338767,Social Community Care,ADOPTION & FOSTERING          
RESIDENCE ORDERS              ,9270,RESIDENCE ORDERS              ,05/04/2013,3436267,145113 20130404 40120    ,483.00,REDACTED PERSONAL DATA,400926,Social Community Care,ADOPTION & FOSTERING          
IN HOUSE FOSTER PLACEMENT     ,9270,IN-HOUSE FOSTERING            ,05/04/2013,3436268,103638 20130404 40120    ,516.57,REDACTED PERSONAL DATA,333706,Social Community Care,ADOPTION & FOSTERING          
ADOPTION SERVICE              ,9270,ADOPTION ALLOWANCES           ,05/04/2013,3436270,146973 20130404 40120    ,714.00,REDACTED PERSONAL DATA,443421,Social Community Care,ADOPTION & FOSTERING          
IN HOUSE FOSTER PLACEMENT     ,9270,IN-HOUSE FOSTERING            ,05/04/2013,3436271,147484 20130404 40120    ,605.71,REDACTED PERSONAL DATA,434175,Social Community Care,ADOPTION & FOSTERING          
IN HOUSE FOSTER PLACEMENT     ,9270,IN-HOUSE FOSTERING            ,05/04/2013,3436272,147500 20130404 40120    ,"1,011.42",REDACTED PERSONAL DATA,400934,Social Community Care,ADOPTION & FOSTERING          
IN HOUSE FOSTER PLACEMENT     ,9270,IN-HOUSE FOSTERING            ,05/04/2013,3436273,147787 20130404 40120    ,"1,158.96",REDACTED PERSONAL DATA,435614,Social Community Care,ADOPTION & FOSTERING          
SPECIAL GUARDIANSHIP          ,9270,RESIDENCE ORDERS              ,05/04/2013,3436273,147787 20130404 40120    ,470.80,REDACTED PERSONAL DATA,435614,Social Community Care,ADOPTION & FOSTERING          
RESIDENCE ORDERS              ,9270,RESIDENCE ORDERS              ,05/04/2013,3436276,148313 20130404 40120    ,298.26,REDACTED PERSONAL DATA,534632,Social Community Care,ADOPTION & FOSTERING          
IN HOUSE FOSTER PLACEMENT     ,9270,IN-HOUSE FOSTERING            ,05/04/2013,3436278,149394 20130404 40120    ,"1,413.14",REDACTED PERSONAL DATA,453957,Social Community Care,ADOPTION & FOSTERING          
SCR GRANT - PREVENTATIVE AGEND,9120,OTHER AGENCIES                ,05/04/2013,3436469,ERS INVOICE81672         ,"19,465.00",SHEFFIELD COMMUNITY TRANSPORT           ,296356,Unclassified Non Trade,CHARITIES & VOLUNTARY ORGANISA
CORPORATE ADJUSTMENTS         ,9940,CORPORATE ADJUSTMENTS TO COSTS,05/04/2013,3436470,ERS INVOICE81673         ,"1,521,127.00",SOUTH YORKSHIRE POLICE                  ,346012,Unclassified Non Trade,POLICE                        
